{"text_format":"1","workbook":"xlsx","n_sheets":21,"sheets":["Energia i canvi climàtic","Educació","Ocupació","Cultura","Mobilitat","Medi ambient","Serveis socials i dependència","Turisme","Sector primari i alimentació","Esports","Investigació i transferència de","Innovació i tecnologia","Habitatge","Empreses i autònoms","Salut i benestar","Igualtat","Industria","Cicle de l'aigua","Residus","Govern obert","Infancia, joventut i famílies"],"not_rendered":{"charts":0,"images":0,"macros":1,"external_links":0,"defined_names":5,"comments":0,"pivot_tables":0},"unopened":[],"bounds":{"document_bytes":16777216,"sheet_cells":100000,"rows_first":2000,"rows_last":500,"rows_between":2000,"halvings":0,"cell_chars":16384,"cell_head_chars":4096},"cells_cut":0,"cells_raw":0,"read":"whole","date_system":"1900"}

{"sheet":"Energia i canvi climàtic","index":0,"n_rows":109,"n_cols":10,"rows_kept":109,"cut":false,"hidden":false,"merged":[[107,5,107,8],[101,1,102,1],[102,5,102,8],[103,5,103,8],[104,5,104,8],[106,5,106,8],[105,5,105,8],[108,5,108,8],[109,5,109,8],[101,5,101,8],[23,1,29,1],[35,1,40,1],[95,5,95,8],[100,5,100,8],[96,5,96,8],[97,5,97,8],[42,1,43,1],[98,5,98,8],[96,1,99,1],[99,5,99,8],[106,1,107,1],[30,1,33,1],[44,1,81,1]]}
["ÀREA.","Energia i canvi climàtic"]
[]
["Components"]
[null,"C31.","C31. Autoconsum. Renovable, emmagatzematge darrera del comptador i comunitats energètiques."]
[null,"C02.","C02. Pla de rehabilitació d'habitatge i regeneració urbana"]
[null,"C08.","C08. Infraestructures elèctriques, promoció de xarxes intel·ligents i desplegament de la flexibilitat i l'emmagatzematge"]
[null,"C07.","C07. Desplegament i integració d'energies renovables"]
[null,"C01.","C01. Pla de xoc de mobilitat sostenible, segura i connectada a entorns urbans i metropolitans"]
[]
[]
["Assignació CAIB"]
[null,"Component i Inversió","ASSIGNACIÓ 2020","ASSIGNACIÓ 2021","ASSIGNACIÓ 2022","ASSIGNACIÓ 2023","ASSIGNACIÓ 2024","ASSIGNACIÓ 2025","ASSIGNACIÓ 2026","TOTAL"]
[null,"C01.I02.",1930000,9875856,8400000,8300000,11445000,2100000,null,{"$f":"SUM(C13:I13)","v":42050856}]
[null,"C02.I03.",7128000,null,null,null,null,null,null,{"$f":"SUM(C14:I14)","v":7128000}]
[null,"C02.I04.",null,532500,null,null,null,null,null,532500]
[null,"C07.I01.",null,14403351,11458467,{"$f":"4718048","v":4718048},null,null,null,30579866]
[null,"C07.I02.",null,null,197000000,null,null,null,null,197000000]
[null,"C08.I01.",null,1941288,1941288,{"$f":"385555","v":385555},null,null,null,4268131]
[null,"C31.I01.",null,null,null,{"$f":"11496724","v":11496724},null,null,null,11496724]
[null,"TOTAL",{"$f":"SUM(C13:C19)","v":9058000},26752995,218799755,24900327,11445000,2100000,0,{"$f":"SUM(J13:J19)","v":293056077}]
[]
["Actuacions CAIB"]
[null,"Component + Inversió","Descripció","Mobilitzat","Executat","Beneficiaris"]
[null,"C01.I2","Suvenció -suport a la mobilitat eficient i sostenible (Programa MOVES II)  ",1930000,1930000,388]
[null,null,"Subvenció – Suport a la mobilitat elèctrica (programa MOVES III)",35348000,30408579,6967]
[null,null,"Suport en la tramitació de l’ampliació de les subvencions Moves III, autoconsum elèctric renovable i renovables tèrmiques",773322.93,773322.93,1]
[null,null,"Subministrament de tres vehicles híbrids endollables, tres vehicles elèctrics i subministrament i instal·lació de quatre punts de recàrrega dobles.",33664,33664,1]
[null,null,"Encàrrec de gestió a la Fundació Universitat-Empresa de les Illes Balears, MP (FUEIB) l’objecte del qual és la prestació d’un servei de suport per a la tramitació d’expedients de subvencions MOVES III, inclòs dins el marc de Pla de recuperació, transformació i resiliència europeu, finançat per la Unió Europea -Next Generation UE-",264030,264030,1]
[null,null,"Suport al programa d'ajudes MOVES II",59805.850000000006,59805.850000000006,1]
[null,null,"Suport Programa d’ajudes MOVES III",335287.11,335287.11,1]
[null,"C02.I3","Convocatòria pública de subvencions per a actuacions de rehabilitació energètica en edificis existents (Programa PREE)",5990000,3751600.87,74]
[null,null,"Obres per a la rehabilitació de tres edificis d'habitatges de protecció oficial situats a Eivissa, Palma i Es castell. Contracte cofinançat en el marc de l'instrument de finançament Next Generation EU.",1712000,1598627.68,1]
[null,null,"Obres pendents de 35 habitatges de protecció pública i aparcaments en c/ Fornaris, 34, de Palma. Contracte cofinançat en el marc de l'instrument de finançament Next Generation EU",1153845,1153845,1]
[null,null,"Obres per a la rehabilitació de tres edificis d'habitatges de protecció oficial situats a Eivissa i Es castell. Contracte cofinançat en el marc de l'instrument de finançament Next Generation EU.",1712000,1712000,2]
[null,"C02.I4","Subvenció – Rehabilitació energètica en edificis existents en municipis de repte demogràfic (Programa PREE 5000)",513330,497743.08,8]
[null,"C07.I1+C08.I1","Instal·lacions d’autoconsum amb fonts d’energia renovable en el sector serveis i altres sectors productius de l’economia (incentius 1, 2 i 3)",13893189.43,12965629.119999999,1198]
[null,null,"Implantació de sistemes tèrmics renovables en el sector residencial (incentius 6)",2305087.63,2305087.63,907]
[null,null,"Ajuts per a la implantació d'energies renovables tèrmiques en diferents sectors de l’economia",2856537,1889432,51]
[null,null,"Encàrrec a TRAGSATEC per al servei de suport en la tramitació de subvencions d’energia",184729.34,184729.34,1]
[null,null,"Encàrrec de gestió per a la prestació del servei per a la gestió d’expedients de subvencions d’autoconsum i renovables tèrmiques a realitzar per la Fundació Universitat-Empresa de les Illes Balears, MP (FUEIB) durant els anys 2024-2026 per a la Direcció General d’Economia Circular, Transició Energètica i Canvi Climàtic ",543292.5,543292.5,1]
[null,null,"Suport al Programa d’ajuts Next Generation Autoconsum i Tèrmiques",374021.84,374021.84,1]
[null,"C07.I1+C08.I1+C31.I1","Instal·lacions d’autoconsum amb fonts d’energia renovable en el sector residencial, les administracions públiques i el tercer sector (incentius 4 i 5)",24410757.16,24410757.16,6232]
[null,"C07.I1","Licitació -Execució d'instal·lacions fotovoltaiques per a autoconsum als IES de Portocristo i Santa Maria del Camí (Mallorca)",367676.12,229399.9,1]
[null,null,"Direcció d'obra i coordinació de seguretat i salut per a la construcció d'una nova marquesina amb dues instal·lacions fotovoltaiques per a autoconsum en la la seva coberta, situada en el pati del CEIP Son Oliva de Palma.",19360,15569.2,1]
[null,"C07.I2","Ajudes per al foment de comunitats d'energies renovables, comunitats ciutadanes d'energia, comunitats de propietaris, associacions empresarials i entitats sense ànim de lucre de les Illes Balears (PITEIB)",20000000,964364.68,38]
[null,null,"Convocatòria pública de subvencions per al foment d’actuacions combinades d’energies renovables, eficiència energètica i mobilitat elèctrica promogudes per AAPP (PITEIB)",10000000,3756404.98,22]
[null,null,"Convocatòria pública de subvencions per al foment de la implantació de sistemes de vehicle compartit (car sharing). PITEIB",316858.88,316858.88,1]
[null,null,"Convocatòria pública de subvencions per al foment d'instal·lacions de generació renovable en ports de les Illes Balears ,d'emmagatzematge elèctric, d'infraestructura de recàrrega elèctrica o d'hidrogen renovable (PITEIB)",10000000,36738,2]
[null,null,"Convocatòria de subvencions per al foment d'instal·lacions fotovoltaiques per autoconsum en pèrgoles i marquesines en aparcaments públics o privats i punts de recàrrega de vehicle elèctric a les Illes Balears (PITEIB)",15000000,4028068.94,34]
[null,null,"Convocatòria pública d’ajuts destinats a la descarbonització del sector nàutic de les Illes Balears (PITEIB).",3092174.78,3092174.78,47]
[null,null,"Per actuacions d’eficiència energètica i/o instal·lacions de generació elèctrica renovable per entitats locals i empreses de subministrament i tractament de l’aigua (PITEIB)",25000000,1854419.75,22]
[null,null,"Convocatòria pública de subvencions per al foment d'actuacions combinades d'energies renovables, eficiència energètica i mobilitat elèctrica promogudes per empreses del sector privat considerades com a grans consumidors d'energia (PITEIB)",2365396.0699999998,2365396.0699999998,25]
[null,null,"Subvencions per a l’aprovació i implementació de Zones de Baixes Emissions a les Illes Balears (PITEIB)",8600000,1708894,4]
[null,null,"Subvencions pel foment d'actuacions combinades d'energies renovables i eficiència energètica en edificis i llars vulnerables (PITEIB)",10000000,20000,1]
[null,null,"Subvencions per a l’adquisició de vehicles zero emissions destinats al servei col·lectiu de llançadora i la dotació d’infraestructura de recàrrega (PITEIB)",5000000,78230.86,1]
[null,null,"Ajuts per a la transició energètica en inversions en projectes innovadors, tractors o estratègics (PITEIB)",30000000,20467248.280000001,2]
[null,null,"Convocatòria pública de subvencions per al foment d’actuacions de millora de l’eficiència energètica en instal·lacions existents d’enllumenat públic exterior promogudes per les administracions públiques (PITEIB)",5650171.1900000004,5650171.1900000004,25]
[null,null,"Convocatoria d'ajudes per a autoconsum col·lectiu, renovables tèrmiques i mobilitat zero emissions per a polígons industrials PITEIB",15000000,2958258.51,28]
[null,null,"PITEIB PF: Convocatòria pública de subvencions per al foment d'instal·lacions d'autoconsum amb o sense emmagatzematge elèctric amb fonts d'energia renovable, així com de renovables tèrmiques",42000000,38050067.359999999,5452]
[null,null,"PITEIB comunitats de propietaris: Convocatòria pública de subvencions per al foment d'instal·lacions d'autoconsum, així com actuacions en eficiència en enllumenat interior i/o grups de pressió (PITEIB)",8000000,235829.16,18]
[null,null,"PITEIB PIME: Convocatòria pública de subvencions per al foment d'instal·lacions d'autoconsum amb o sense emmagatzematge elèctric amb fotns d'energia renovable, així com actuacions en eficiència energètica en enllumenat interior",28000000,19520605.149999999,856]
[null,null,"PITEIB SECTORS: Convocatòria pública de subvencions per al foment d'instal·lacions d'autoconsum amb o sense emmagatzematge elèctric amb fonts d'energia renovable promogudes pel sector públic, comunitats energètiques, associacions empresarials, cooperatives i entitats sense ànim de lucre dins les actuacions previstes en el Pla d'Inversions per a la Transició Energètica de les Illes Balears, en el marc del Pla de Recuperació, Transformació i Resiliència. ",10000000,1188703.1100000001,32]
[null,null,"Encàrrec a TRAGSATEC per al suport subvencions PITEIB ",1339870.54,1339870.54,1]
[null,null,"Execució de cinc instal·lacions fotovoltaiques a les illes de Mallorca i Menorca (PITEIB)",1960068.38,1587121.96,5]
[null,null,"Execució de tres instal·lacions fotovoltaiques d'autoconsum sobre instituts d'educació secundària a les illes de Mallorca i Menorca (PITEIB)",1298710.6499999999,928651.75,3]
[null,null,"Encàrrec de gestió a la Fundació Bit per al servei de desenvolupament, manteniment i modernització del sistema de gestió de subvencions SICIE (PITEIB)",88853.75,88853.75,1]
[null,null,"Encàrrec de gestió per a la prestació del servei per a la gestió d’expedients de subvencions del PITEIB a realitzar per la Fundació Universitat-Empresa de les Illes Balears (FUEIB) durant els anys 2024-2026 per a la Direcció General d’Economia Circular, Transició Energètica i Canvi Climàtic ",1221556.3,1221556.3,1]
[null,null,"Estudi del potencial fotovoltaic de les cobertes dels edificis de la Comunitat Autònoma dels Illes Balears i desenvolupament d'una eina web interactiva per a l'obtenció d'un mapa solar d'aquest potencial fotovoltaic en el marc del Pla de Recuperació, Transformació i Resiliència - Finançat per la Unió Europea – Next Generation EU",99220,75778.27,1]
[null,null,"Execució de set instal·lacions fotovoltaiques en instituts d'educació secundària, dividit en dos lots per a les illes de Mallorca, Eivissa i Formentera",1316822.0900000001,805628.84,2]
[null,null,"Substitució de lluminàries convencionals per altres més eficients amb tecnologia LED, així com la incorporació de detecció de presència en cinc instituts d'educació secundària.",976989.86,564205.56999999995,2]
[null,null,"Execució d'una marquesina amb dues instal·lacions fotovoltaiques per a autoconsum al pati del CEIP Son Oliva de Palma.",793392.51,773492.5,1]
[null,null,"Instal·lació fotovoltaica flotant sobre la bassa de reg d'Inca, situada en el Polígon 12, parcel·la 173 d'Inca, amb una potència de 1.400 kWn en el marc del Pla de Recuperació, Transformació i Resiliència - Finançat per la Unió Europea – NextGenerationEU",2689694.48,1809494.5,1]
[null,null,"Execució d'una instal·lació fotovoltaica sobre pèrgoles en l'aparcament del Parc Bit i la instal·lació de punts de càrrega per a vehicles elèctrics, en el marc del Pla de Recuperació, Transformació i Resiliència - Finançat per la Unió Europea – NextGenerationEU",6247589.5999999996,4276008.7,1]
[null,null,"Obres de substitució de lluminàries convencionals existents per noves tipus led i instal·lació de detecció de presència en determinades zones del Velòdrom dels Illes Balears.",1184221.79]
[null,null,"Subministrament i instal·lació de noves lluminàries de tecnologia led, en substitució de les convencionals actuals, en l'Edifici Són Rossinyol de la CAIB, així com les actuacions complementàries de millora i renovació del sistema d'il·luminació, consistent en la incorporació de mecanismes de detecció de presència en algunes zones, per a la millora de l'eficiència energètica del centre.",727667.41,384151.37,1]
[null,null,"Execució d'una instal·lació fotovoltaica sobre pèrgoles en l'aparcament de l'Hospital Comarcal d'Inca, així com la instal·lació de 10 punts de recàrrega de vehicles elèctrics.",2244693.7799999998,1108335.74,1]
[null,null,"Direcció facultativa i coordinació de seguretat i salut de les obres per a la instal·lació fotovoltaica sobre pèrgoles en l'aparcament del Parc Bit, així com la instal·lació de punts de recàrrega per a vehicles elèctrics.",54208,40656,1]
[null,null,"Projecte inversió PITEIB 2024 (Nòmines)",516202.94,516202.94,1]
[null,null,"Resolució del conseller d’Empresa, Autònoms i Energia per la qual s’aprova, mitjançant el procediment de despesa anticipada, la convocatòria pública d’ajuts per al foment d’instal·lacions d’autoconsum amb o sense emmagatzematge elèctric amb fonts d’energia renovable promogudes per\nbeneficiaris amb activitat econòmica dins les actuacions previstes en el Pla d’Inversions per a la Transició Energètica de les Illes Balears en el marc del Pla de Recuperació, Transformació i Resiliència finançat per la Unió Europea (Next Generation EU)",2000000]
[null,null,"subvenció directa a favor de l’EMT de Palma per a la\ncompra d’autobusos 100% elèctrics dins el Pla d'Inversions per a la Transició Energètica dels Illes Balears i al «Pla de Recuperació, Transformació i Resiliència—Finançat per la Unió Europea— Next Generation EU» (Exp. SINCO 2025 14041)",20000000,20000000,1]
[null,null,"Execució per lots de diferents instal·lacions fotovoltaiques per a autoconsum compartit a edificis municipals.",1717539.6]
[null,null,"Substitució de lluminàries convencionals per altres de més eficients amb tecnologia LED als edificis de la Universitat de les Illes Balears (UIB)."]
[null,"TOTAL",59,{"$f":"SUM(D24:D82)","v":389281838.51000011},{"$f":"SUM(E24:E82)","v":227248866.64000005},{"$f":"SUM(F24:F82)","v":22473}]
[null,"Sobremobilitzat",null,77076412.340000004]
[]
[]
[null,"COMP","Fons assignats","Mobilitzat","Executat","% Iniciada mobilització s/assignat ","% Executat s/ mobilitzat","% Executat s/ assignat "]
[null,"C01",{"$f":"J13","v":42050856},{"$f":"SUM(D24:D30)","v":38744109.890000001},{"$f":"SUM(E24:E30)","v":33804688.890000001},{"$f":"D88/C88","v":0.92136316773194815},{"$f":"E88/D88","v":0.8725116923830819},{"$f":"E88/C88","v":0.80390013677723948}]
[null,"C02",{"$f":"J14+J15","v":7660500},{"$f":"SUM(D31:D35)","v":11081175},{"$f":"SUM(E31:E35)","v":8713816.629999999},{"$f":"D89/C89","v":1.4465341687879381},0.78636215293053302,{"$f":"E89/C89","v":1.1374997232556621}]
[null,"C07 + C07+C08 + C07+C08+C31",{"$f":"J16+J17+J18","v":231847997},{"$f":"SUM(D36:D82)-D84","v":262380141.28000006},{"$f":"SUM(E36:E82)","v":184730361.12000003},1.1316903517609431,0.70405618435453265,0.79677359093164835]
[null,"C31",{"$f":"J19","v":11496724},0,0,0,"-",{"$f":"E91/C91","v":0}]
[null,null,{"$f":"SUM(C88:C91)","v":293056077},{"$f":"SUM(D88:D91)","v":312205426.17000008},{"$f":"SUM(E88:E91)","v":227248866.64000005},1.0653436344539617,0.72788250168419544,0.77544498979968279]
[]
[]
["Actuacions AGE"]
[null,"Component + Inversió","Descripció","Executat","Beneficiaris","Dades beneficiaris"]
[null,"C01.I2","2ª Convocatòria projectes d'electrificació de flotes de vehicles (Programa Moves Flotes)",1058600,1,"OK Mobility España (B57334609; Palma): 1.058.600 €."]
[null,null,"3ª Convocatòria projectes d'electrificació de flotes de vehicles (Programa Moves Flotes)",1295806.3700000001,2,"Globalia Handling, SA (A57218737; Llucmajor): 156.539,63 € sense IVA.\nOK Mobility España (B57334609; Palma): 1.139.266,74 € sense IVA."]
[null,null,"Subvenció – MOVES II Singulars",1867257,4,"ACCIONA GENERACION RENOVABLE SA (Infraestructura de recàrrega de vehicles elèctrics innovadora, recàrrega d'H2 per a vehicles i integració amb xarxes intel·ligents altres xarxes intel·ligents) + E-boats Experience (2 prototips d'embarcacions elèctriques) + PROA GROUP JPG SL (mobilitat alternativa i aplicacions TIC - Ecovacances) + B. EMT (Projecte demostrador d'autobusos amb tecnologia d'hidrogen en l'entorn balear)"]
[null,null,"Subvenció – Moves Flotes",1343342.22,1,"Working4U everywhere SL  (Solució integral i sostenible per a la mobilitat elèctrica a les províncies de València i IB )"]
[null,"C02.I4","Programa DUS 5000. Ayudas para inversiones a proyectos singulares locales de energía limpia en municipios de reto demográfico",1852711.42,5,"Aj. Es Migjorn Gran (3 projectes) per import de: 364.438,68€ i Aj. Maria de la Salut (1 projecte): 68.000€;  Aj. De Sant Lluis (1 projecte): 1.070.769,40€;  Aj. Des Mercadal (3 projectes): 370.797,40€; "]
[null,"C07.R3","Subvenció – Projectes pilot singulars de comunitats energètiques – CE Implementa",227241.1,3,"Som energia + Com Energètica Sant Lluís: Aj, IBE, Menorca Preservation Foundation i 13 EMPRESES + Som serveis energètics S.COOP (F02869535)"]
[null,null,"Primera convocatòria d'ajudes a Oficines de Transformació Comunitària per a la promoció i dinamització de comunitats energètiques (Programa CE OFICINAS)",299425.59999999998,1,"Consell Insular de Menorca (S0733002J): 299.425,60€"]
[null,"C07.I1","Primera convocatòria del Programa d'incentius a projectes singulars d'instal·lacions de biogàs.",73250,2,"Proyecte MILÀGAS: Generació d'energía elèctrica a partir de biogás de digestió anaerobia en\nEs Milà - Menorca (Adalmo,SL-B07047525 i Prezero Gestion de Residuos sa-A59202861)"]
[null,"C07.I2","b. i A. Programa d'incentius a projectes singulars en mobilitat elèctrica. Programa MOVES Singulars II (1ª Convocatòria)",28053016.559999999,11,"Ventaja Solar 32, SL (B09881046). Santa Maria del Camí: 485.347,95€; Ventaja Solar 44, SL (B10700052). Manacor: 1.397.648,30€; Boccherini Solar sl (B16844961). Llucmajor: 10.587.499,85€; Ventaja Solar 32, SL (B09881046) Santa Maria del Camí: 1.948.656,88€; Ventaja Solar 16 sl (B02702223). Marratxí: 1.800.780,56€; STARWING SL (B16595456). Palma: 4.408.728,34€; Gall Solar sl (B57469942). Sant Llorenç des Cardassar: 2.783.792,27€; Parc Cami de Sant Joan SL (B57605982). Ciutadella de Menorca: 1.362.302,88€; Fotovoltaica Son Magraner, SL (B04993531). Palma: 2.629.035,63€; Energias Renovables Wtf Comercio Internacional Sl (B10358778). Es Mercadal: 3.161.427,75€. "]
[null,"C07+C31.I1","Programa 5: Projectes innovadors d'instal·lacions de bombes de calor renovables (ENERGIES RENOVABLES INNOVADORES) en el marc del Pla de Recuperació, Transformació i Resiliència, finançat per la Unió Europea-Next Generation EU",529510,1,"ANLUGA, S.A. (A07178908)"]
[null,"C08.I1","Ajudes projectes innovadors d'emmagatzematge energètic hibridat amb instal·lacions de generació d'energia elèctrica a partir de fons d'energia renovables",2925000,1,"Emmagatzematge Hibridat Ses Vinyes I i II (Inmobiliaria Jardines de Hesperia sl: B87739561). Es Mercadal."]
[null,null,"Convocatòria d'ajudes per a projectes innovadors d'emmagatzematge elèctric independent i emmagatzematge tèrmic en el marc del Pla de Recuperació, Transformació i Resiliència – Finançat per la Unió Europea – Next GenerationEU.",6729002.6600000001,1,"Planta d'emmagatzematge d'electricitat independent en el nus Sant Martí (Alcudia, Mallorca 66KV)"]
[null,"TOTAL",12,{"$f":"SUM(D97:D108)","v":46254162.929999992},{"$f":"SUM(E97:E108)","v":33}]

{"sheet":"Educació","index":1,"n_rows":135,"n_cols":10,"rows_kept":135,"cut":false,"hidden":false,"merged":[[86,1,95,1],[110,1,111,1],[132,5,132,8],[45,1,60,1],[23,1,35,1],[36,1,44,1],[61,1,85,1],[96,1,109,1],[133,5,133,8],[134,5,134,8],[125,5,125,8],[126,1,129,1],[126,5,126,8],[127,5,127,8],[128,5,128,8],[129,5,129,8],[130,5,130,8],[130,1,131,1],[131,5,131,8]]}
["ÀREA ","Educació"]
[]
["Components"]
[null,"C19.","C19. Pla Nacional de Competències Digitals (digital skills)"]
[null,"C21.","C21. Modernització i digitalització del sistema educatiu, inclosa l'educació primerenca de 0 a 3 anys"]
[null,"C20.","C20. Pla estratègic d'impuls de la formació professional"]
[]
[]
["Assignació CAIB"]
[null,"Component i Inversió","ASSIGNACIÓ 2020","ASSIGNACIÓ 2021","ASSIGNACIÓ 2022","ASSIGNACIÓ 2023","ASSIGNACIÓ 2024","ASSIGNACIÓ 2025","ASSIGNACIÓ 2026","TOTAL"]
[null,"C19.I01.",null,null,955400,945643.16,null,null,null,{"$f":"SUM(C11:I11)","v":1901043.1600000001}]
[null,"C19.I02.",null,22806977,7153219,null,null,null,null,29960196]
[null,"C20.I01.",10722936,{"$f":"4636206.87","v":4636206.87},{"$f":"11240160","v":11240160},{"$f":"7351440","v":7351440},null,null,null,{"$f":"SUM(C13:I13)","v":33950742.870000005}]
[null,"C20.I02.",null,461327.81,3535500,530000,1506750,null,null,{"$f":"SUM(C14:I14)","v":6033577.8100000005}]
[null,"C20.I03.",null,6178706.25,6998598.75,10195500,null,null,null,23372805]
[null,"C21.I01.",null,7423456,12238475,4982773,1666500,null,null,{"$f":"SUM(C16:I16)","v":26311204}]
[null,"C21.I02.",null,2591502,3910871,3910871,null,null,null,10413244]
[null,"C21.I03.",null,842735,1096100,1566125,null,null,null,3504960]
[null,"C21.I06.",null,null,null,{"$f":"1321806","v":1321806},null,null,null,{"$f":"1321806","v":1321806}]
[null,"TOTAL",{"$f":"SUM(C12:C19)","v":10722936},44940910.93,{"$f":"SUM(E11:E19)","v":47128323.75},{"$f":"SUM(F11:F19)","v":30804158.16},3173250,0,0,{"$f":"SUM(J11:J19)","v":136769578.84}]
[]
["Actuacions CAIB"]
[null,"Component + Inversió","Descripció","Mobilitzat","Executat","Beneficiaris"]
[null,"C19.I1","Contracte de subministrament de 85 monitors LENOVO, Lot 9 del AM 02/2020",9770.75,9770.75,1]
[null,null,"Contracte de subministrament de 380 ordinadors portàtils, Lot 4 del AM 02/2020",361862.6,265019.52000000002,1]
[null,null,"Contracte de subministrament de 85 ordinadors de taula del Lote 2 del AM 02/2020 para CEPAs",52308.480000000003,52308.480000000003,1]
[null,null,"Publicitar els cursos de capacitació digital pertanyents al fons finalista Europeu MR082. Lot 1 Disseny gràfic",605,605,1]
[null,null,"Publicitar els cursos de capacitació digital pertanyents al fons finalista Europeu MR082. Lot 2 Campanya publicitat autobusos",17478.45,17478.45,1]
[null,null,"Adquisició de 30 ordinadors de sobretaula per als centres educatius inclosos en la Xarxa de Centres de Capacitació Digital",14628.9,14628.9,1]
[null,null,"Subministrament de 15 ordinadors portàtils per als centres educatius inclosos en la Xarxa de Centres de Capacitació Digital",12396.45,12396.45,1]
[null,null,"Subministrament de 20 monitors per als centres d'adults inclosos en la Xarxa de Centres de Capacitació Digital del Pla de Recuperació, Transformació i Resiliència",4650.03,4650.03,1]
[null,null,"Adquisició 72 monitors de 27\" per a la Direcció General de Planificació i Gestió Educatives per a la posterior distribució entre els centres educatius inclosos en la xarxa de Centres de Capacitació Digital del Pla de Recuperació, Transformació i Resiliència",10929.2,10929.2,1]
[null,null,"Subministrament de 68 ordinadors de taula per a la DG Planificació i Gestió Educatives de la Conselleria d'Educació i Universitats",37437.4,37437.4,1]
[null,null,"Subministrament de 93 portàtils ultralleugers estàndard per a la Direcció General de Planificació i Gestió Educatives",61666.44,61666.44,1]
[null,null,"Marxandatge per a la promoció dels cursos de capacitació digital",15875.2,15875.2,1]
[null,null,"Nòmines personal centres públics i material aules capacitació digital",588017.77,588017.77]
[null,"C19.I2","Licitació - Subministrament de dispositius portàtils per a l’alumnat en situació de vulnerabilitat de centres educatius no universitaris",2247696,2065470,1]
[null,null,"Licitació -Subministrament d'aules digitals de centres educatius no universitaris",18826269,18826269,3]
[null,null,"Licitació – Subministrament de pòrtatils de pantalla 17”",14719.8,14719.8,1]
[null,null,"Panells digitals interactius ",14542.99,14542.99,1]
[null,null,"Subministrament de 20 ordinadors portàtils superiors per a aules, tallers i espais formatius del IBSTEAM",13691.15,13691.15,1]
[null,null,"Contrato de suministro de dispositivos portátiles para el alumnado en situación de vulnerabilidad de centros educativos no universitarios de las Illes Balears en el marco del Plan de Recuperación, Transformación y Resiliencia financiado por la Unión Europea - NextGenerationEU",1226048,25500,1]
[null,null,"Subministrament d'aules digitals i la capacitació en el seu ús del professorat de centres educatius no universitaris de les Illes Balears en el marc del Pla de Recuperació, Transformació i Resiliència, finançat per la Unió Europea - NextGenerationEU",513600,504454.13,1]
[null,null,"Nòmines, publicitat, d”altres – Competència Digital. Contractació professorat i despeses funcionament Centres Escolars",7470334.9500000002,7470334.9500000002,1]
[null,null,"\"Adquisició d'equips informàtics per a alumnat en situació de vulnerabilitat de centres públics de educació.\"",17814.52,17814.52,1]
[null,"C20.I1","Procediment per avaluar i acreditar les competències professionals adquirides a través de l’experiència laboral o de vies no formals de formació (vid. Resolucions posteriors) ",11111396.300000001,11111396.300000001,1]
[null,null,"Resolució del director general de Formació Professional i Ensenyaments Artístics Superiors de 4 de març de 2022 per la qual es convoca un curs de formació específica per a l’habilitació com a assessors i avaluadors de les unitats de competència de diverse "]
[null,null,"Procediment per avaluar i acreditar les competències professionals adquirides a través de l’experiència laboral o de vies no formals de formació (vid. BOIB de 17/02/22) "]
[null,null,"Procediment per avaluar i acreditar les competències professionals adquirides a través de l’experiència laboral o de vies no formals de formació (vid. BOIB de 17/02/22) "]
[null,null,"Procediment per avaluar i acreditar les competències professionals adquirides a través de l’experiència laboral o de vies no formals de formació (vid. BOIB de 17/02/22) "]
[null,null,"Procediment per avaluar i acreditar les competències professionals adquirides a través de l’experiència laboral o de vies no formals de formació "]
[null,null,"Procediment per avaluar i acreditar les competències professionals adquirides a través de l’experiència laboral o de vies no formals de formació"]
[null,null,"Procediment per avaluar i acreditar les competències professionals adquirides a través de l’experiència laboral o de vies no formals de formació "]
[null,null,"Procediment per avaluar i acreditar les competències professionals adquirides a través de l’experiència laboral o de vies no formals de formació "]
[null,null,"Conveni de col·laboració amb els representants de CAEB per a promocionar la qualificació professional dels treballadors de les Illes. (Conveni)",268000,268000,1]
[null,null,"Conveni de col·laboració amb els representants de PIMEM per a promocionar la qualificació professional dels treballadors de les Illes. (Conveni)",108000,108000,1]
[null,null,"Conveni de col·laboració amb els representants de UGT per a promocionar la qualificació professional dels treballadors de les Illes. (Conveni)",188000,188000,1]
[null,null,"Conveni de col·laboració amb els representants de CCOO per a promocionar la qualificació professional dels treballadors de les Illes. (Conveni)",188000,188000,1]
[null,null,"Procediment per avaluar i acreditar les competències professionals adquirides a través de l’experiència laboral o de vies no formals de formació (Formació)"]
[null,null,"Conversió d”aules en espais de tecnologia aplicada, cració d”aules d”emprenedoria, avaluació i acreditació de competències profesionals i programa de cooperació territorial (Nòmines i despeses menors)",6468183.7599999998,6468183.7599999998,1]
[null,null,"Procediment per avaluar i acreditar les competències professionals adquirides a través de l’experiència laboral o de vies no formals de formació "]
[null,"C20.I2","Ajuts als centres concertats per crear quatre aules d’emprenedoria en Formació Professional durant l’any 2024",20000,10000,2]
[null,null,"Subministrament d’equip i material per a les aules de Tecnologia Aplicada de l´actuació \"Conversió d’aules en espais de tecnologia aplicada\"",75975.56,75849.06,1]
[null,null,"Subministrament dequips i materials per dotar les Aules de Tecnologia Aplicada (ATECA) amb elements virtuals i 3D i altres equips i materials específics de diferents famílies professionals de diferents centres educatius de FP de les Illes Balears.",271984,175613.69,3]
[null,null,"Eficiència energètica, monitoratge, anàlisi i propostes",8470,8470,1]
[null,null,"Estudi detecció nous perfils professionals sector turístic",17545,17545,1]
[null,null,"Subministrament d'equips i materials per a acabar de dotar a les Aules de Tecnologia Aplicada (ATECA) amb equips i materials especificos de la famílies Sanitat, Instalacions i manteniment, Energia i aigua i Hosteleria i Turisme de diferents centres educatius de Formació Professional de les illes Balears, finançat pel Ministeri de Educacion i Formacion",84459,82706.679999999993,3]
[null,null,"Subministrament, transport i posada en funcionament per als Centres d'Excel·lència CIFP Francesc de Borja Moll, CIFP Juníper Serra i CIFP Pau Casesnoves de l'actuació “Creació de la xarxa de Centres d'Excel·lència i Innovació en Formació Professional de la Convocatòria 2022” NextGenerationEU",1462120,966846.66,12]
[null,null,"Substitució de fusteries exteriors en el CIFP Francesc de Borja Moll. TM Palma",50000,50000,1]
[null,null,"Subministrament d'equips i materials per a les Aules de Tecnologia Aplicada de l'actuació “Conversió d'aules en espais de tecnologia aplicada” (repartiment 2023) en el marc del Pla de Recuperació, Transformació i Resiliència finançat pel Ministeri d'Educació, Formació Professional i Esports i per la Unió Europea – NextGenerationEU,",273148.5,238316.47999999998,3]
[null,null,"Implantació d'una planta generadora fotovoltaica en el CIFP Pau Casesnoves. TM Inca",219500,210869.52,1]
[null,null,"Subministrament per a l'adquisició d'equip i material de mecànica en el marc del Pla de Recuperació, Transformació i Resiliència - Finançat per la Unió Europea – NextGenerationEU (ATECA) IES M.Àngels Cardona",26681,26680.5,1]
[null,null,"Subministrament de sistema d'hidrogen per al Centre d'Excel·lència CIFP Pau Casesnoves de l'actuació C20.I02.P04 “Creació de la xarxa de Centres d'Excel·lència i Innovació en Formació Professional de la Convocatòria 2022” finançada pel Ministeri d'Educació, Formació Professional i Esports i per la Unió Europea - NextGenerationEU.",29993,29916,1]
[null,null,"Subministrament de 40 ordinadors portàtils de gamma alta AM 02/2020. Lot 5",35090,35090,1]
[null,null,"Finestres i vidrieres IES Felanitx",7273.44,7273.44,1]
[null,null,"Talladora d'aigua",15805.02,15805.02,1]
[null,null,"Subministrament material activitats físiques i esportives IES Albuhaira",10406,10406,1]
[null,null,"Subministrament sistema domòtica nàutica CIFP L'eMBAT",13360.11,13360.11,1]
[null,null,"L'objecte del contracte consisteix en el subministrament d'equips i materials per a les Aules de Tecnologia Aplicada de l'actuació “Conversió d'aules en espais de tecnologia aplicada” (repartiment 2024) en el marc del Pla de Recuperació, Transformació i Resiliència finançat pel Ministeri d'Educació, Formació Professional i Esports i per la Unió Europea – NextGenerationEU,",679669,259025.96000000002,6]
[null,null,"Subministrament de 100 ordinadors portàtils per al centre d'excel·lència CIFP Juníper Serra",80481.94,80481.94,1]
[null,null,"Subministrament, transport i posada en funcionament d'equips i materials per als Centres d'Excel·lència finançada pel Ministeri i per la Unió Europeaa NextGenerationEU, en el marc del Mecanisme del Pla de Recuperació, Transformació i Resiliència",333082,309447.87,6]
[null,null,"Formació digital. Despeses funcionament centres escolars",70352.240000000005,70352.240000000005,1]
[null,null,"Aules emprenedor FP.Despeses funcionament centres escolars",435000,435000,1]
[null,null,"Impuls FP-oferta FP. Nómina + transferència centres concertats",1253461.04,1253461.04,1]
[null,null,"Nòmines personal centres públics (centres d'excel·lència)",2568522.63,2568522.63,1]
[null,null,"Subministrament, transport i posada en funcionament d'equips i materials per als Centres d'Excel·lència finançada pel Ministeri i per la Unió Europea NextGenerationEU, en el marc del Mecanisme del Pla de Recuperació, Transformació i Resilienc",380841]
[null,"C20.I3","Subvenció – Establiment de les condicions per atorgar ajuts a associats a la impartició del Pla Pilot de Reforç en Llengües Estrangeres en els Cicles Formatius de Grau Mitjà en centres educatius",0,0,121]
[null,null,"Establir les condicions per atorgar un mínim de 60 ajuts a alumnes i un mínim de 20 ajuts a professors de cicles formatius de grau mitjà associats a la impartició del Pla Pilot de Reforç en Llengües Estrangeres en centres educatius "]
[null,null,"Ajuts per a alumnes i professors de cicles formatius de grau mitjà associats a la impartició dels Plans de Reforç en Llengües Estrangeres en els centres educatius sostinguts amb fons públics de la Comunitat Autònoma de les Illes Balears, finançats pel Ministeri d’Educació, Formació Professional i Esports i per la Unió Europea-NextGenerationEU, en el marc del Mecanisme del Pla de Recuperació, Transformació i Resiliència ",436800]
[null,null,"Licitació - Organització, coordinació i impartició de dos programes d'immersió lingüística en llengües estrangeres associats a la impartició del Pla de Reforç en Llengües Estrangeres de centres educatius",494000,494000,2]
[null,null,"Servei d'organització, coordinació i impartició de dos programes d'immersió lingüística a llegües estrangeres durant l'estiu de 2023 per a alumnat i professorat de Cicles Formatius de grau Mitjà associats a la impartició del Pla de Reforç en Llengües Estrangeres de centres educatius sostinguts mitjançant fons públics",256000,256000,2]
[null,null,"Organització, coordinació i impartició de 2 programes d'immersió lingüística durant l'estiu del 2024 per a alumnat i professorat de Cicles Formatius de Grau Mitjà de centres educatius sostinguts mitjançant fons públics de la CA de les Illes Balears en el marc del Pla de Recuperació, Transformació i Resiliència - Finançat per la Unió Europea Next Generation EU",436800,436800,2]
[null,null,"Organització, coordinació i impartició de dos programes d'immersió lingüística en 2025 per a alumnat i professorat de Cicles Formatius de Grau Mitjà associats a la impartició del Pla de Reforç en Llengües Estrangeres de centres educatius sostinguts mitjançant fons públics de la CAIB. Pla de Recuperació, Transformació i Resiliència Finançat per la UE Next Generation",304500,293652.89,2]
[null,null,"Impuls FP-tecnològic. Despeses de funcionament centres concertats",11591587.1,11591587.1,1]
[null,null,"Nòmines – Impuls FP-Graus. Nòmina",9341760.9499999993,9341760.9499999993,1]
[null,null,"Convocatòria del programa Pla pilot de reforç en llengües estrangeres en els cicles formatius de grau mitjà als centres concertats que imparteixen alguns ensenyaments d'FP ",1076957.8399999999,1076957.8399999999,1]
[null,"C21.I1","Subvenció - Creació i consolidació de places públiques de primer cicle d’educació infantil i per a la reconversió de centres privats de 0-3 anys",14400000,11365546.82,36]
[null,null,"Subvenció - xarxa d’escoletes públiques any 2022.",84000,84000,4]
[null,null,"Subvenció-Creació de places públiques de primer cicle d’educació infantil, ajuts en espècie i complementaris per a l’acompanyament i assessorament a les EEPP",9124600.2199999988,9089624.75,33]
[null,null,"Licitació – Encàrrec a TRAGSATEC  per l’acompanyament i assessorament d'entitats públiques per a la creació i consolidació de places públiques de primer cicle d’educació infantil",695396,695396,1]
[null,null,"Subministrament de mobiliari escolar i material per a aules del primer cicle d'educació infantil per als CEIP Miquel Porcel, el CEIP Sa Indioteria i el CEIP Joan Veny i Clar",156940.98000000001,140697.59,1]
[null,null,"Conveni - CEFP-AJ VILLAFRANCA",90000,90000,1]
[null,null,"Conveni CEFP-AJ ESTELLENCS",5000,5000,1]
[null,null,"Conveni CEFP-AJ LLUBI",55000,55000,1]
[null,null,"Conveni CEFP-AJ SANTA EULALIA",95000,95000,1]
[null,null,"Conveni CEFP-AJ CONSELL INSULAR FORMENTERA",180000,180000,1]
[null,null,"Nòmines - Modernització escoletes 0 – 3.",1088436.06,1088436.06,1]
[null,null,"Ajuts per a la creació de places públiques de primer cicle d’educació infantil, ajuts en espècie per a l’acompanyament i assessorament a les entitats públiques sol·licitants dels ajuts de creació de places públiques de primer cicle d’educació infantil i ajuts complementaris"]
[null,null,"Adquisició 3 switchos SWITCH GESTIONABLE HUAWEI S5735- L24P4XE-A-V2 i 33 PUNT ACCES AIRENGINE 5760-51 AP + LIC i suports de paret",17836.77,17836.77,1]
[null,null,"Aportació econòmica extraordinària per a nous centres d'educació infantil (Despeses de funcionament i despeses complementaris de funcionament)",10000,10000,9]
[null,"C21.I2","Encàrrec de gestió a l'entitat Fundació Universitat-Empresa dels Illes Balears, MP (FUEIB) per a dur a terme l'assessorament en els centres adherits al programa per a l'orientació, l'avanç i l'enriquiment educatius PROA+ que implementen l'activitat palanca A302-itinerari 3, programa finançat pel Ministeri d'Educació, Formació Professional i Esports i per la Unió Europea – NextGenerationEU.",8052.38,8052.38,1]
[null,null,"PROA. Nòmina i Despeses: funcionament centres escolars+Despeses concertats",10411815.529999999,10411815.529999999,1]
[null,"C21.I3","Nòmines – Sistema educatiu Orienta",3504930.5300000003,3504930.5300000003,1]
[null,"C21.I6","Transferència extraordinària UIB Microcredencials",1321806,1321806,1]
[null,"TOTAL",91,{"$f":"SUM(D24:D114)","v":123474363.98},{"$f":"SUM(E24:E114)","v":116980101.23999999},{"$f":"SUM(F24:F114)","v":308}]
[]
[]
[]
[null,"COMP + INV","Fons assignats","Mobilitzat","Excutat","% Iniciada mobilització s/assignat ","% Executat s/ mobilitzat","% Executat s/ assignat "]
[null,"C19",{"$f":"SUM(J11:J12)","v":31861239.16},{"$f":"SUM(D24:D45)","v":31532343.079999998},{"$f":"SUM(E24:E45)","v":30043580.129999995},{"$f":"D120/C120","v":0.9896772351399028},{"$f":"E120/D120","v":0.95278616161752094},{"$f":"E120/C120","v":0.94295077410918859}]
[null,"C20",{"$f":"J13+J14+J15","v":63357125.680000007},{"$f":"SUM(D46:D96)","v":50693206.430000007},{"$f":"SUM(E46:E96)","v":48773378.680000007},{"$f":"D121/C121","v":0.80011846948420473},0.96212850034153974,{"$f":"E121/C121","v":0.76981678314040591}]
[null,"C21",{"$f":"SUM(J16+J17+J18+J19)","v":41551214},{"$f":"SUM(D97:D114)","v":41248814.469999999},{"$f":"SUM(E97:E114)","v":38163142.43},0.99272224561236644,0.92519367939061159,0.91846034703101576]
[null,null,{"$f":"SUM(C120:C122)","v":136769578.84},{"$f":"SUM(D120:D122)","v":123474363.98},{"$f":"SUM(E120:E122)","v":116980101.24000001},0.90279113986631909,0.94740395875979633,0.85530789984261979]
[]
["Actuacions AGE"]
[null,"Component + Inversió","Descripció","Executat","Beneficiaris","Dades beneficiaris"]
[null,"C20.I1","Subvenció – Aules Mentor 2020",4000,1,"Ajuntament Santa Margalida"]
[null,null,"Subvenció - Aules Mentor 2021",{"$f":"4000+4000+4000+4000+4000+4000+4000+4000","v":32000},8,"Ajuntament de Sant Llorenç, Ajuntament Selva, Ajuntament Estellencs, Ajuntament Muro, Aj Esporles, Aj Puigpunyent, Aj Ses Salines, Aj Marratxí."]
[null,null,"Ayudes a la creación d'Unitats d'Orientació Professional (UOP) depenents del Programa Aules Mentor",28500,1,"Ajuntament de Santa Eulàlia des Riu"]
[null,null,"Subvenció - Aules Mentor 2022",4000,1,"Ajuntament de Sant Llorenç"]
[null,"C20.I3"," Ajudes per a la realització de projectes d'innovació e investigació aplicades i transferències del coneixement a la FP, any 2023",290812.14,10,"IES Politècnic (Q0768180B): 33.257,18€; Wireless DNS.S.L. (B57869521): 20.000,00€; IES Politècnic (Q0768180B): 50.000,00€; CIFP Pere de Son Gall (S0700143A): 50.000,00€; IES Pasqual Calbo i Caldes (S0718165D): 29.311,60€; CIFP Francesc de Borja Moll (S0718140G): 30.000,00€; Centro Integrado de Formación Profesional Joan Taix (S0700071D): 21.935,00€; Centre Integrat de Formació Professional CIFP Politècnic de Llevant (S0700142C): 33.300,00€; IES Felanitx (S0768284B): 23.008,36€; "]
[null,null,"Subvenció - Projectes Innovació FP 2021",37204,2,"Participació empreses al projecte Circular FP (Cesgarden SL + Innovation Training Center SL)"]
[null,"C21.I4","Subvenció - Ajudes per la qualificació del sistema universitari espanyol 2021-2023",925788.9,1,"UIB"]
[null,"C21.I5","Ajudes a universitat públiques per a la modernització i digitalització del sistema universitari espanyol 2021",3629151,1,"UIB"]
[null,"TOTAL",8,{"$f":"SUM(D127:D134)","v":4951456.04},{"$f":"SUM(E127:E134)","v":25}]

{"sheet":"Ocupació","index":2,"n_rows":67,"n_cols":10,"rows_kept":67,"cut":false,"hidden":false,"merged":[[66,5,66,8],[64,5,64,8],[63,5,63,8],[23,1,24,1],[32,1,34,1],[25,1,28,1],[35,1,50,1],[29,1,31,1],[64,1,65,1],[65,5,65,8]]}
["ÀREA ","Ocupació"]
[]
["Components"]
[null,"C19.","C19. Pla Nacional de Competències Digitals (digital skills)"]
[null,"C20.","C20. Pla estratègic d'impuls de la formació professional"]
[null,"C23.","C23. Noves polítiques públiques per a un mercat de treball dinàmic, resilient i inclusiu"]
[]
[]
["Actuacions CAIB"]
[null,"Component i Inversió","ASSIGNACIÓ 2020","ASSIGNACIÓ 2021","ASSIGNACIÓ 2022","ASSIGNACIÓ 2023","ASSIGNACIÓ 2024","ASSIGNACIÓ 2025","ASSIGNACIÓ 2026","TOTAL"]
[null,"C19.I03.",null,2491395,780134,754968,null,null,null,{"$f":"SUM(C11:I11)","v":4026497}]
[null,"C20.I01.",null,3610363.33,2940787.96,2831447.36,null,null,null,{"$f":"SUM(C12:I12)","v":9382598.6500000004}]
[null,"C23. I01.",null,{"$f":"2350168+2364872","v":4715040},{"$f":"1592049+1964605","v":3556654},{"$f":"833931+886827","v":1720758},null,null,null,{"$f":"SUM(C13:I13)","v":9992452}]
[null,"C23.I02.",null,592998,430826,268656,null,null,null,{"$f":"SUM(C14:I14)-608142-507867","v":176471}]
[null,"C23.I03.",null,12713,12713,12713,null,null,null,38139]
[null,"C23.I04.",null,6334307,3231907,1724274,null,null,null,11290488]
[null,"C23.I05.",null,1569920,1253564,1873564,null,null,null,4697048]
[null,"TOTAL",{"$f":"SUM(C11:C17)","v":0},19326736.329999998,12206585.960000001,9186380.3599999994,0,0,0,{"$f":"SUM(J11:J17)","v":39603693.649999999}]
[]
["Actuacions CAIB"]
[null,"Component + Inversió","Descripció","Mobilitzat","Executat","Beneficiaris"]
[null,"C19.I3","Licitació – Encàrrec de gestió a Tragsatec per a la millora de les Capacitats digitals per a persones desocupades per impulsar l”emprenedoria i el desenvolupament rural i reduir la bretxa de gènere.",1610960,1610960,1]
[null,"C20.I1","Nòmines i despeses – Resolució del conseller de Model Econòmic i president del SOIB i del conseller d”Educació i FP, per la qual s”estableix la gestió conjunta, Projecte Formació modular en reskilling i upskilling per ocupats i desocupats.",1032854.93,1032854.93,1]
[null,"C23.I1","Subvenció – SOIB Qualificats – Primera experiència",5216304,4697360.5199999996,34]
[null,null,"Subvenció - «Programa SOIB Recerca i Innovació», per al període 2022-2025 destinada a executar projectes d’inversió de «Noves polítiques públiques per a un mercat de treball dinàmic, resilient i inclusiu»",4776148,4626545.82,8]
[null,"C23.I2","Licitació -Diagnòstic de les necessitats en relació a l'aplicació de la transversalitat de gènere en la gestió de les polítiques actives d'ocupació del SOIB",13673,13673,1]
[null,null,"Licitació – Servei especialitzat per implantar accions, mètodes, sistemàtiques, processos i avaluacions per l’aplicació de la transversalitat de gènere en la gestió de les polítiques actives d’ocupació (SOIB)",144611.70000000001,106242.24000000001,1]
[null,null,"Planificació, organització, disseny de continguts, seguiment, avaluació i tramitació de les acreditacions amb l’EBAP, del Pla formatiu COE",193173.3,193173.3,1]
[null,null,"Servei de videocàpsules comunicatives transversal de gèneres",18089.5,18089.5,1]
[null,"C23.I3","Licitació - Revisió d’especialitats formatives incloses al Catàleg del Servicio Público deEmpleo Estatal (SEPE)",12713,12713,1]
[null,null,"Servei per a la revisió de l’estat actual de les especialitats formatives del sector nàutic incloses al Catàleg del Servicio Público de Empleo Estatal (SEPE) en el marc del C23.I3 del Pla de Recuperació, Transformació i Resiliència de l’Economia Espanyola.",13189,13189,1]
[null,null,"Servei per a la modificació i creació d’especialitats formatives del sector nàutic incloses al Catàleg del Servicio Público de Empleo Estatal (SEPE) en el marc del C23.I3 del Pla de Recuperació, Transformació i Resiliència de l’Economia Espanyola",12236.97,12236.97,1]
[null,"C23.I4","Subvenció - SOIB Projectes territorials per a col·lectius vulnerables\n",5450675,2997044.45,18]
[null,null,"Subvenció – Promoció de l’ocupació autònoma per abordar el repte demogràfic i facilitar la transformació productiva cap a una economia verda i digital",3939813,2030000,406]
[null,null,"Subvenció -Segona oportunitat dels treballadors autònoms o per compte propi per facilitar la transformació productiva cap a una economia verda i digital",1900000,5000,2]
[null,"C23.I5","Licitació -Adquisició directa d’un immoble per a ubicar el nou Centre d’Orientació, Emprenedoria, Acompanyament i Innovació per a l’Ocupació (COE)",480000,480000,1]
[null,null,"Licitació – Contracte menor servei redacció d’un projecte d’adequació i condicionament del local del SOIB del carrer Julià Álvarez per a la creació d’un COE",17545,17545,1]
[null,null,"Licitació- Encàrrec de gestió a la FUEIB del servei d”avaluació del model diagnòstic d”orientació prestat pel SOIB i les entitats col·laboradores del projecte Orientació i Emprenedoria.",45905.88,45905.88,1]
[null,null,"Licitació -Encàrrec de gestió a la FUEIB del servei d”avaluació del model d”intermediació laboral  prestat pel SOIB i les entitats col·laboradores del projecte Orientació i Emprenedoria.",58837.8,58837.8,1]
[null,null,"Licitació-Obra de reforma del Centre d'Orientació, Emprenedoria i Innovació per a l'Ocupació carrer Julián Álvarez, número 7, a Palma",919052.35,740021.77,1]
[null,null,"Servei de direcció facultativa de l'obra d'adequació i condicionament de l'immoble propietat SOIB situat al carrer Julià Álvarez 7, 7a, Local COE",17545,17545,1]
[null,null,"Servei per al càlcul de la cimentació dels pilars i de disseny de redistribució d’espai del projecte d’arquitectura del immoble propietat del SOIB situat al carrer Julián Álvarez 7 i 7-A per a la creació d’un Centre d’Orientació, Emprenedoria, Acompanyament i Innovació per a la ocupació (COE)",10890,10890,1]
[null,null,"Servei Programa de realitat virtual a l'àmbit de l'orientació laboral",17663.580000000002,17663.580000000002,1]
[null,null,"Servei de millora dels recursos formatius existents per afavorir l'acollida i l'adaptació del nou personal del Servei d'Ocupació de les Illes Balears com a recurs de suport i de formació inicial, en el marc del Component 23, Inversió 5, Projecte Pla d'Activitats del Centre d'Orientació, Emprenedoria, Acompanyament i Innovació per a l'Ocupació (COE) a realitzar durant l'any 2024",13859.34,13859.34,1]
[null,null,"Servei de coordinació integral de seguretat i salut per dur a terme el contracte d’obra de reforma del Centre d’Orientació, Emprenedoria, Acompanyament i Innovació per a l’Ocupació (COE) ubicat al carrer Julian Álvarez, 7 i 7-A, de Palma",7545.56,7545.56,1]
[null,null,"Subministrament de material tecnològic i audiovisual per equipar el Centre d’Orientació, Emprenedoria, Acompanyament i Innovació per a l’Ocupació de les Illes Balears en el marc del Pla de Recuperació, Transformació i Resiliència - Finançat per la Unió Europea – NextGenerationEU -",13189,13189,1]
[null,null,"Subministrament i instal·lació de mobiliari d'oficina destinat al Centre d’Orientació, Emprenedoria i Innovació per al Treball (COE) de les Illes Balears en el marc del Pla de Recuperació, Transformació i Resiliència - Finançat per la Unió Europea – NextGenerationEU -",114940.32,108043.9,1]
[null,null,"subministrament i instal·lació d’un taulell i unes taules fets a mida per l’oficina pel Centre d’Orientació, Emprenedoria, Acompanyament i Innovació per a l’Ocupació (COE) del Servei d’Ocupació de les Illes Balears (SOIB)",98490.62,75669.77,1]
[null,null,"subministrament i instal·lació d’un taulell i unes taules fets a mida per l’oficina pel Centre d’Orientació, Emprenedoria, Acompanyament i Innovació per a l’Ocupació (COE) del Servei d’Ocupació de les Illes Balears (SOIB)",7770.62,7770.62,1]
[null,null,"Depeses menors – PAE Ocupació",14433.31,14433.31,1]
[null,null,"Projecte d'inversió- Formació SOIB",79821.62,79821.62,1]
[null,"TOTAL",30,{"$f":"SUM(D22:D51)","v":26251931.399999999},{"$f":"SUM(E22:E51)","v":19077824.879999995},{"$f":"SUM(F22:F51)","v":493}]
[]
[]
[]
[null,"COMP + INV","Fons assignats","Mobilitzat","Excutat","% Iniciada mobilització s/assignat ","% Executat s/ mobilitzat","% Executat s/ assignat "]
[null,"C19",{"$f":"J11","v":4026497},{"$f":"SUM(D22)","v":1610960},{"$f":"SUM(E22)","v":1610960},{"$f":"D57/C57","v":0.40008970576657577},{"$f":"E57/D57","v":1},{"$f":"E57/C57","v":0.40008970576657577}]
[null,"C20",{"$f":"J12","v":9382598.6500000004},{"$f":"SUM(D23:D23)","v":1032854.93},{"$f":"E23","v":1032854.93},{"$f":"D58/C58","v":0.11008196860258965},1,{"$f":"E58/C58","v":0.11008196860258965}]
[null,"C23",{"$f":"J13+J14+J15+J16+J17","v":26194598},{"$f":"SUM(D24:D51)","v":23608116.469999999},{"$f":"SUM(E24:E51)","v":16434009.950000001},0.90125897217433915,0.69611694651216716,0.62738164372669514]
[null,null,{"$f":"SUM(C57:C59)","v":39603693.649999999},{"$f":"SUM(D57:D59)","v":26251931.399999999},19077824.880000003,0.66286573247442537,0.72672081110192155,0.48171832275548376]
[]
[]
["Actuacions AGE"]
[null,"Component + Inversió","Descripció","Executat","Beneficiaris","Dades beneficiaris"]
[null,"C19.I3","Ordre ICT/1081/2022, de 7 de novembre, per la qual s'estableixen les bases reguladores per a la concessió de subvencions per al Programa «Generació Digital Pimes: persones d'equips directius i qualificació de persones ocupades en Pimes», en el PRTR",567450,1,"Espais de formació innovacio y consultoria, SL (B57730368)"]
[null,null,"Subvenció Programa “Xec Capacitació Digital en el Transport”, en el marc del Pla de Recuperació, Transformació i Resiliència - finançat per la Unió Europea – Next Generation EU",112000,112,"Subvenció Programa “Xec Capacitació Digital en el Transport”, en el marc del Pla de Recuperació, Transformació i Resiliència - finançat per la Unió Europea – Next Generation EU"]
[null,"TOTAL",2,{"$f":"SUM(D65:D66)","v":679450},{"$f":"SUM(E65:E66)","v":113}]

{"sheet":"Cultura","index":3,"n_rows":60,"n_cols":10,"rows_kept":60,"cut":false,"hidden":false,"merged":[[55,5,55,9],[56,5,56,9],[59,5,59,9],[51,5,51,9],[52,1,54,1],[52,5,52,9],[53,5,53,9],[54,5,54,9],[57,5,57,9],[55,1,58,1],[58,5,58,9],[16,2,16,3],[17,2,17,3],[18,2,18,3],[20,2,20,3],[24,2,24,3],[33,2,33,3],[25,2,25,3],[26,2,26,3],[27,2,27,3],[21,2,21,3],[22,2,22,3],[23,2,23,3],[34,1,39,1],[18,1,33,1],[19,2,19,3],[40,2,40,3],[41,2,41,3],[34,2,34,3],[35,2,35,3],[36,2,36,3],[37,2,37,3],[38,2,38,3],[39,2,39,3],[28,2,28,3],[29,2,29,3],[30,2,30,3],[31,2,31,3],[32,2,32,3]]}
["ÀREA ","Cultura"]
[]
["Components"]
[null,"C25.","C25. Espanya hub audiovisual d'Europa (Spain AVS Hub)"]
[null,"C24.","C24. Revaloració de la indústria cultural"]
[]
[]
["Assignació CAIB"]
[null,"Component i Inversió","ASSIGNACIÓ 2020","ASSIGNACIÓ 2021","ASSIGNACIÓ 2022","ASSIGNACIÓ 2023","ASSIGNACIÓ 2024","ASSIGNACIÓ 2025","ASSIGNACIÓ 2026","TOTAL"]
[null,"C24.I01.",null,null,177639.03,120776.67,null,null,null,298415.7]
[null,"C24.I02.",null,979303.8600000001,1365603.02,148229.96,null,null,null,2493136.84]
[null,"C24.I03.",null,49457.729999999996,110090.58,80090.58,null,null,null,239638.89]
[null,"C25.I01.",null,371381.49,null,null,null,null,null,371381.49]
[null,"TOTAL",{"$f":"SUM(C10:C13)","v":0},1400143.08,1653332.6300000001,349097.21,0,0,0,{"$f":"SUM(J10:J13)","v":3402572.92}]
[]
["Actuacions CAIB"]
[null,"Component + Inversió","Descripció",null,"Mobilitzat","Executat","Beneficiaris"]
[null,"C24.I1","Subvenció - Convocatòria de subvencions per donar suport a l'acceleració de les indústries culturals i creatives de les Illes Balears  ",null,298417,157275.42000000001,10]
[null,"C24.I2","Subvenció - Projectes d’inversió en infraestructures escèniques i musicals 2021",null,720889.41,720889.41,20]
[null,null,"convocatòria de subvencions per donar suport als projectes d’inversió en infraestructures escèniques i musicals de les Illes Balears",null,524283.21,485950.71999999997,8]
[null,null,"Licitació – Subministrament de material bibliogràfic, audiovisual i multimèdia per formar part del fons documental de la Biblioteca Pública de Palma",null,2153.4,2153.4,3]
[null,null,"Prorroga del contracte de subministrament de llibres de fons local en suport paper per a formar part del fons documental de la biblioteca pública de Palma per a la Conselleria de Turisme, Cultura i Esports, Lot 1 (expedient d'origen CONTR 2022/8049)",null,10000,10000,1]
[null,null,"Pròrroga del contracte de subministrament de llibres en suport paper per al públic infantil per a formar part del fons documental de la Biblioteca pública de Palma per a la Conselleria de Turisme, Cultura i Esports (expedient d'origen CONTR 2022/8051",null,9324,9324,1]
[null,null,"Pròrroga del contracte de subministrament de llibres en suport paper per al públic juvenil per a formar part del fons documental de la Biblioteca pública de Palma per a la Conselleria de Turisme, Cultura i Esports, Lot 3 (expedient d'origen CONTR 2022/8051)",null,6216,6216,1]
[null,null,"Transferència - a favor del Consell Insular de Menorca destinats a la dotació de biblioteques",null,14999,14999,1]
[null,null,"Transferència - a favor del Consell Insular d”Eivissa destinats a la dotació de biblioteques",null,38837.25,38837.25,1]
[null,null,"Transferència - a favor del Consell Insular de Formentera destinats a la dotació de biblioteques",null,4306.8999999999996,4306.8999999999996,1]
[null,null,"Transferència - a favor del Consell Insular de Formentera destinats a actuacions sobre el patrimoni",null,84874,84874,1]
[null,null,"Transferència - a favor del Consell Insular de Menorca destinats a actuacions sobre el patrimoni",null,356076.7,356076.7,1]
[null,null,"Transferència - a favor del Consell Insular de Mallorca destinats a la dotació de biblioteques",null,152894.95000000001,152894.95000000001,1]
[null,null,"Transferència - a favor del Consell Insular de Mallorca destinats a actuacions a Bellpuig",null,100345.3,100345.3,1]
[null,null,"Transferència - a favor de l”Ajt. Palma destinats a la dotació de biblioteques",null,45222.45,45222.45,1]
[null,null,"Transferència - Pla ajuts oferta cultural àrees no urbanes. Consell Insular de Mallorca",null,271459.92,271459.92,1]
[null,null,"Transferència - Pla ajuts oferta cultural àrees no urbanes. Consell Insular d”Eivissa",null,25500,25500,1]
[null,"C24.I3","Licitació – Descripció de documents i digitalització de documentació de l'Arxiu del Regne de Mallorca",null,29815.84,29815.84,1]
[null,null,"Transferència - a favor del Consell Insular de Menorca destinats a l”Arxiu de Maó, per a la descripció i la digitalització de fons documentals.",null,29819.5,29819.5,1]
[null,null,"Transferència -a favor del Consell Insular de Formentera per a la digitalització de l’inventari del patrimoni de l’església",null,11616,11616,1]
[null,null,"Transferència -a favor del Consell Insular d”Eivissa per a la digitalització de l’inventari del patrimoni de l’església",null,75600,75600,1]
[null,null,"Transferència -a favor del Consell Insular de Menorca per a la digitalització de l’inventari del patrimoni de l’església",null,43706,43706,1]
[null,null,"Transferència - a  favor del Consell Insular de Mallorca per a  l’execució dels fons europeus del projecte C24.I3.P5.1-3",null,49078,49078,1]
[null,"C25.I1","Subvenció – Per donar suport a les sales d’exhibició cinematogràfica de les Illes Balears,",null,371381.49,172200,5]
[null,"TOTAL",24,null,{"$f":"SUM(E18:E41)","v":3276816.3199999994},{"$f":"SUM(F18:F41)","v":2898160.76},{"$f":"SUM(G18:G41)","v":65}]
[]
[]
[]
[null,"COMP + INV","Fons assignats","Mobilitzat","Excutat","% Iniciada mobilització s/assignat ","% Executat s/ mobilitzat","% Executat s/ assignat "]
[null,"C24",{"$f":"J10+J11+J12","v":3031191.43},{"$f":"SUM(E18:E40)","v":2905434.8299999996},{"$f":"SUM(F18:F40)","v":2725960.76},{"$f":"D47/C47","v":0.95851248497360642},{"$f":"E47/D47","v":0.93822815499186407},{"$f":"E47/C47","v":0.89930340031345357}]
[null,"C25",{"$f":"J13","v":371381.49},{"$f":"E41","v":371381.49},{"$f":"F41","v":172200},{"$f":"D48/C48","v":1},0.46367415888174718,{"$f":"E48/C48","v":0.46367415888174718}]
[null,null,{"$f":"SUM(C47:C48)","v":3402572.92},{"$f":"SUM(D47:D48)","v":3276816.3199999994},{"$f":"SUM(E47:E48)","v":2898160.76},0.96304073330484252,0.88444406917504625,0.8517556649454554]
[]
["Actuacions AGE"]
[null,"Component + Inversió","Descripció","Executat","Beneficiaris","Dades beneficiaris"]
[null,"C24.I1","Subvenció - Modernització de les petites i mitjanes empreses del sector del llibre, 2022",{"$f":"3440+2325+30400+20000+28000+5770.24+2716+5000+35000+2094+6000+880","v":141625.24},12,"Documenta Balear Sl; Drac Llegendari SL; ICE print Ibiza SL; Imprenta Muro SL; Impremta Manonelles SL; Biblioteca de Babel SL; La Salina Cultura SL; Nova editorial Moll SL; Nuevas impresiones Disgraf SL; Fausto Puerto Quetglas; Maria Riutord Morillas; Cor"]
[null,null,"Subvenció - Digitalització de continguts editorials 2022",{"$f":"3500+2860","v":6360},2,"Nova editorial Moll SL; Plan B publicaciones"]
[null,null,"Subvenció - Foment de la mobilitat internacional d'autors literaris (escriptors, traductors i il·lustradors), 2021",{"$f":"5264.43+6382","v":11646.43},2,"B. Oliver Rubert (Inca) i I. Ramírez García Peralta (Sant Joan de Labritja)"]
[null,"C25.I1","Subvenció -  Laboratoris i incubadores de creació i desenvolupament de projectes audiovisuals 2022 i 2023",{"$f":"166650+41675+41676","v":250001},3,"Fundació Mallorca Turisme, Fundació Foment del Turisme de Menorca i Consell d'Eivissa"]
[null,null,"Ajudes per a la organització de Festivals i certamens cinematogràfics a Espanya 2023 ",115460,3,"Filmin Mallorca, SL(B42999060): 80.700€; El Obrador (B04974010): 28.760€; Evolution International Film Festival, SL (B57813198): 6.000€."]
[null,null,"Ajudes públiques per a la promoció del sector del videojoc, del pòdcast i d'altres formes de creació digital, corresponent a l'any 2024 en el marc del Pla de Recuperació, Transformació i Resiliència.",160000,2,"Mansion Studios SL (B16607731): 80.000€; Agrup Inno Tech SL (B56233778): 80.000€"]
[null,null,"Resolución de 14 de junio de 2024 de la Dirección General del Instituto de la Cinematografía y de las Artes Audiovisuales, O.A., por la que se convocan para el año 2024 ayudas generales para la producción de largometrajes sobre proyecto",70435.5,1,"CINETICA PRODUCCIONS, SL (B57517070)"]
[null,"TOTAL",7,{"$f":"SUM(D53:D59)","v":755528.16999999993},{"$f":"SUM(E53:E59)","v":25}]

{"sheet":"Mobilitat","index":4,"n_rows":55,"n_cols":10,"rows_kept":55,"cut":false,"hidden":false,"merged":[[43,5,43,8],[53,5,53,8],[54,5,54,8],[15,1,20,1],[40,5,40,8],[41,1,42,1],[41,5,41,8],[42,5,42,8],[21,1,29,1],[43,1,52,1],[48,5,48,8],[49,5,49,8],[50,5,50,8],[51,5,51,8],[52,5,52,8],[46,5,46,8],[45,5,45,8],[44,5,44,8]]}
["ÀREA ","Mobilitat"]
[]
["Components"]
[null,"C01.","C01. Pla de xoc de mobilitat sostenible, segura i connectada a entorns urbans i metropolitans"]
[null,"C06.","C06. Mobilitat sostenible, segura i connectada"]
[]
[]
["Assignació CAIB"]
[null,"Component i Inversió","ASSIGNACIÓ 2020","ASSIGNACIÓ 2021","ASSIGNACIÓ 2022","ASSIGNACIÓ 2023","ASSIGNACIÓ 2024","ASSIGNACIÓ 2025","ASSIGNACIÓ 2026","TOTAL"]
[null,"C01.I01.",null,25841700,3621025,1082145.3999999999,383865.01,null,null,30928735.41]
[null,"C06.I04.",null,1172758,4266128,null,null,null,null,5438886]
[null,"TOTAL",{"$f":"SUM(C10:C11)","v":0},27014458,7887153,1082145.3999999999,383865.01,0,0,{"$f":"SUM(J10:J11)","v":36367621.409999996}]
[]
["Actuacions CAIB"]
[null,"Component + Inversió","Descripció","Mobilitzat","Executat","Beneficiaris"]
[null,"C01.I1","Subvenció- Ajudes per transformar les flotes de transport de viatgers i mercaderies d’empreses privades prestadores de serveis de transport per carretera, així com d’empreses que realitzin transport privat complementari.",8708060.4100000001,8485296.5999999996,200]
[null,null,"Licitació – Contracte d'obres per executar el projecte  d'ampliació de la línia de metro Palma - UIB fins al Parc Bit",19893534.52,19893534.52,1]
[null,null,"Transferència a favor del Consell Insular d'Eivissa per a l'execució de l'actuació \"obres de noves aturades i millores de les aturades existents en la xarxa d'autobús interurbà\".  ",900000,900000,1]
[null,null,"Transferència a favor del Consell Insular de Menorca per a l'execució de l'actuació \"obres de noves aturades i millores de les aturades existents en la xarxa d'autobús interurbà\".  ",900000,900000,1]
[null,null,"Transferència a favor del Consell Insular de Menorca per a l'execució de l'actuació \"implantació de sistemas digitals publics en les aturades d'autobús\"",200000,200000,1]
[null,null,"Transferencia a favor del Consell Insular d'Eivissa per a l'execució de l'actuació \"implantació de sistemas digitals publics en les aturades d'autobús\"",320000,320000,1]
[null,"C6.I4","Modernització d’empreses privades de transport de viatgers prestadores de serveis de transport per carretera i d’empreses privades que intervenen en el transport de mercaderies per carretera",2723026,72000,9]
[null,null,"Licitació - Diseny i creació del nou portal web del CTM",350900,319440,1]
[null,null,"Exp 15-23 Contracte de subministrament i implantació de sistemes digitals públics dinformació en temps real sobre els serveis ferroviaris prestats per Serveis Ferroviaris de Mallorca",786500,631700.65,1]
[null,null,"Solució tecnològica basada en Big Data/Machine Learning",464640,414969.98,1]
[null,null,"Servei de programari factory proposta per perfils especialitzats que permetin evolucionar el Sistema Tarifari Integrat per al transport regular a Mallorca ",941210.6,941210.6,1]
[null,null,"La contractació d'un servei de disseny, desenvolupament, posada en marxa i manteniment d'aplicacions de gestió dels serveis de taxi en mobilitat en l'àmbit de les illes Balears en el marc del Pla de Recuperació, Transformació i Resiliència – Finançat per la Unió Europea – NextGenerationEU",638956.39,556600,1]
[null,null,"Factoria de software per al desenvolupament de capacitats per a la integració de nous operadors de mobilitat i noves entitats de transport",2256166,2256166,1]
[null,null,"Redacció de plecs tècnics pel desenvolupament de solucions IT de gestió de serveis de taxi i pel desenvolupament d'una plataforma BI/Big Data",8651,8651,1]
[null,null,"Redacció dels plecs tècnics pel desenvolupament de solucions MaaS per el CTM",9438,9438,1]
[null,"TOTAL",15,{"$f":"SUM(D16:D30)","v":39101082.920000002},{"$f":"SUM(E16:E30)","v":35909007.349999994},{"$f":"SUM(F16:F30)","v":222}]
[null,"Sobremobilitzat",null,2733461.51]
[]
[]
[null,"Component","Fons assignats","Mobilitzat","Executat","% Iniciada mobilització s/assignat ","% Executat s/ mobilitzat","% Executat s/ assignat "]
[null,"C01",{"$f":"J10","v":30928735.41},{"$f":"SUM(D16:D21)","v":30921594.93},{"$f":"SUM(E16:E21)","v":30698831.119999997},{"$f":"D36/C36","v":0.99976913120095778},{"$f":"E36/D36","v":0.99279584993903802},{"$f":"E36/C36","v":0.99256664435346853}]
[null,"C06",{"$f":"J11","v":5438886},{"$f":"SUM(D22:D30)-D32","v":5446026.4799999995},{"$f":"SUM(E22:E30)","v":5210176.2300000004},{"$f":"D37/C37","v":1.0013128570813949},0.95669315034252289,{"$f":"E37/C37","v":0.9579491517196721}]
[null,null,{"$f":"SUM(C36:C37)","v":36367621.409999996},{"$f":"SUM(D36:D37)","v":36367621.409999996},{"$f":"SUM(E36:E37)","v":35909007.349999994},1,0.98738949531975995,0.98738949531975995]
[]
["Instruments AGE"]
[null,"Component + Inversió","Descripció","Executat","Beneficiaris","Dades beneficiaris"]
[null,"C01.I1","Subvenció – Programa d'ajudes als municipis per a la implantació de zones de baixes emissions",21325373.539999999,2,"Aj. d'Eivissa (bici i aparcaments) + Aj. de Palma per 2 projectes (ORA, Bicis, ZBE, busos elèctrics, electrolinera…)"]
[null,null,"Subvenció – Segona convocatòria del programa d'ajudes a municipis per a la implantació de Zones de baixes emissions i la transformació digital i sostenible del transport urbà, en el marc del PRTR PROVISIONAL",{"$f":"653385+13176476.3","v":13829861.300000001},2,"Aj. Eivissa (implantació ZBE Eivissa), Aj. Palma (adquisició busos elèctrics i hidrogen, punts de càrrega i adaptació cotxeres, accessibilitat transport públic, humanització eix cívic Cotlliure, ampliació biciPalma i millora EMT)"]
[null,"C06.I3","Actuacions per a la millora de l'eficiència energètica de l'enllumenat públic al Port de Palma\n",2968864.32,1,"SAMPOL INGENIERIA Y OBRAS, S.A."]
[null,null,"Assistència Tècnica a la Direcció d'obra d'Actuacions per a la millora de\nl'eficiència energètica de l'enllumenat públic al port d'Eivissa",58850.23,1,"LETTER INGENIEROS, S.L.,"]
[null,null,"A.T. per a la redacció de projecte constructiu i direcció d'obra de reparació de deficiències detectades a l'Informe d'avaluació d'edificis (IEE) i l'informe d'auditoria energètica dels edificis de l'APB",384562.48,1,"UTE RP Y AT DO DE LOS EDIFICIOS DE LA APB"]
[null,null,"Actuacions per a la millora de l'eficiència energètica de l'enllumenat públic al port d'Alcúdia",978942.44,1,"ELECNOR SERVICIOS Y PROYECTOS, S.A.U."]
[null,null,"Infraestructura elèctrica en el port d'Alcúdia per la conexió elèctrica dels vaixells a terra en la primera alineació dels molls de ponent",2595224,1,"UTE SERVEO-URBIA-CUERVA"]
[null,null,"Infraestructura elèctrica per la conexió  dels vaixells a terra en el moll del Cos Nou del port de Maó ",3444888.79,1,"U.T.E MUELLES MAHON"]
[null,null,"A.T. a la direcció d'obra dels projectes d'Infraestructura elèctrica en els ports de Palma, Alcúdia, Eivissa i Maó, per la conexió elèctrica dels vaixells a terra",568908.44000000006,1,"PROYECTOS, EJECUCIÓN Y CONTROL DE OBRAS SA, TÉCNICAS Y PROYECTOS SA"]
[null,null,"Infraestructura eléctrica en el puerto de Ibiza para la conexión eléctrica de los buques a tierra en los muelles de Botafoc del puerto de Eivissa",5674174.1799999997,1,"SAMPOL INGENIERIA Y OBRAS, S.A."]
[null,null,"Instal·lació elèctrica de subministrament a ferries en el primer tram exterior de les Molles Comercials del port de Palma",2921725.74,1,"SAMPOL INGENIERIA Y OBRAS, S.A."]
[null,null,"Actuacions per a la millora energètica del enllumenat públic al port d'Eivissa",1703202.05,1,"Vilor Infraestructuras SL"]
[null,"C06.I4","Subvenció – Programa de Suport al Transport Sostenible i Digital",{"$f":"281515.6+4415756.275+1576025+75000","v":6348296.875},3,"Aglomerados Mallorca SA: 281.515,60 € (Instal·lació de pretractament i reutilització de paviment en planta d'aglomerat existent). Autoritat Portuària Balears: 4.415.756,275 € (Desplegament de solucions de subministrament elèctric per a Cold Ironing)."]
[null,"TOTAL",13,{"$f":"SUM(D42:D54)","v":62802874.38499999},{"$f":"SUM(E42:E54)","v":17}]

{"sheet":"Medi ambient","index":5,"n_rows":78,"n_cols":10,"rows_kept":78,"cut":false,"hidden":false,"merged":[[77,5,77,8],[72,5,72,8],[56,5,56,8],[57,5,57,8],[58,5,58,8],[75,5,75,8],[62,5,62,8],[66,5,66,8],[67,5,67,8],[52,5,52,8],[53,5,53,8],[54,5,54,8],[69,5,69,8],[50,1,70,1],[70,5,70,8],[14,1,34,1],[35,1,39,1],[74,5,74,8],[73,5,73,8],[71,5,71,8],[71,1,76,1],[76,5,76,8],[59,5,59,8],[60,5,60,8],[61,5,61,8],[64,5,64,8],[68,5,68,8],[49,5,49,8],[55,5,55,8],[50,5,50,8],[51,5,51,8]]}
["ÀREA ","Medi ambient"]
[]
["Components"]
[null,"C04.","C04. Conservació i restauració d'ecosistemes i biodiversitat"]
[]
[]
["Assignació CAIB"]
[null,"Component i Inversió","ASSIGNACIÓ 2020","ASSIGNACIÓ 2021","ASSIGNACIÓ 2022","ASSIGNACIÓ 2023","ASSIGNACIÓ 2024","ASSIGNACIÓ 2025","ASSIGNACIÓ 2026","TOTAL"]
[null,"C04.I02.",null,12384789.82,6421956,null,null,null,null,18806745.82]
[null,"C04.I04.",null,2885000,753491,null,null,1783989.37,null,{"$f":"SUM(D10:I10)","v":5422480.3700000001}]
[null,"TOTAL",{"$f":"SUM(C9:C10)","v":0},15269789.82,7175447,0,0,1783989.37,0,{"$f":"SUM(J9:J10)","v":24229226.190000001}]
[]
["Actuacions CAIB"]
[null,"Component + Inversió","Descripció","Mobilitzat","Executat","Beneficiaris"]
[null,"C04.I2","Subvencions per a actuacions en la Reserva de la Biosfera Menorca per a l’any 2022",755383,755383,10]
[null,null,"Convocatòria de subvencions per a actuacions d’adaptació de línies elèctriques d’alta tensió previstes en el Reial decret 1432/2008",864863.82,864863.82,12]
[null,null,"Actuacions en l'àrea d'influència socioeconómica del Parc Nacional Marítimo-Terrestre de l'Arxiu de Cabrera",3890000,1610148.46,13]
[null,null,"Licitació-Subministrament d'una embarcació per dur a terme les tasques de control i, si escau, eradicació de diferents espècies invasores a diferents hàbitats i localitzacions geogràfiques de les Illes Balears",50000,41016.58,1]
[null,null,"Licitació - Redacció d’avantprojecte i del projecte per a la remodelació i execució de la reforma integral interpretativa del Centre de visitants del Parc nacional marítimoterrestre de l’arxipèlag de Cabrera",144546.5,144546.5,1]
[null,null,"Subministrament de gàbies per a dur a terme les tasques necessàries per al control d'espècies invasores de les illes Balears",11797.5,11797.5,1]
[null,null,"Primera pròrroga del servei de vigilància de les praderes de posidònia a les Illes Balears.",552860.9,403806.2,1]
[null,null,"Estudi de localització i identificació d'escombraries al fons marí de Mallorca, Menorca, Eivissa i Formentera",18137.900000000001,17908,1]
[null,null,"Estudi per la identificació de localitzacions per a la nidificació de l'àguila peixatera a les illes de Mallorca, Menorca, Eivissa i Formentera",18137.900000000001,18029,1]
[null,null,"Subministrament de dispositius telemàtics d'alerta primerenca de captura, nodes sensors LoRaWAN de llarg abast (\"avisadors\") per la millora i optimització de les tasques necessàries per al control d'espècies invasores, concretament d'os rentador a Mallorca.",16510.45,16510.45,1]
[null,null,"Subministrament de dispositius telemàtics d'alerta primerenca de captura, nodes sensors LoRaWAN de llarg abast (\"avisadors\") per la millora i optimització de les tasques necessàries per al control d'espècies invasores, concretament d'os rentador a Mallorca.",171193.65,171193.65,1]
[null,null,"Prestació del servei de control de plagues (desratització) dels Illots d'És Vedrà, És Vedranell, S'Espalmador i Tagomago",373260.64,373260.64,1]
[null,null,"Subministrament d’emissors de seguiment telemètric (GPS) per a àguila peixatera (Pandion haliaetus)",14157,11482.9,1]
[null,null,"Segona pròrroga del servei de vigilància de les prades de posidònia a les illes Balears.",527447.59,527447.59,2]
[null,null,"Redacció d’un projecte d’habilitació d’una passarel·la elevada al sistema dunar de la platja de s’Oberta, al Parc Natural de s’Albufera a Mallorca.",11495,9680,1]
[null,null,"Prospecció i retirada d'espècies invasores a l'àrea d'influència socioeconòmica del PNMT Cabrera: bosc de Bellver i pedrera de Génova, TM de Palma",391457.73,391457.73,1]
[null,null,"Despeses en inversions de caràcter inmaterial. Actuacions conservació",61371.199999999997,61371.199999999997,1]
[null,null,"Addenda del conveni entre el Consorci per a la Recuperació de la Fauna de les Illes Balears COFIB i la Fundació Natura Parc, per al desenvolupament de la Recuperació de Fauna Silvestre i Control d'Espècies Invasores a les Illes Balears",321860.28000000003,321860.28000000003,1]
[null,null,"Subministrament d'embarcacions i remolcs per a la conservació de la biodiversitat marina a les illes de Mallorca, Menorca, Eivissa i Formentera, en el marc del Pla de Recuperació, Transformació i Resiliència - Finançat per la Unió Europea - Next Generarion EU",1056475.2,1056475.2,1]
[null,null,"\"Millora de l'eficiència energètica mitjançant l'actualització del sistema de climatització del centre d'interpretació Rodríguez Femenías a Maó\"","\n91.702,98","\n91.702,98",1]
[null,null,"Localització i retirada de residus del fons marí del PNMT Cabrera per a la conservació i la recuperació d'hàbitats marins i la millora de la biodiversitat a càrrec del PRTR, finançat per la UE","398.712,91 €","398.712,91 €",1]
[null,"C04.I4","Encàrrec de gestió de la Conselleria de Medi Ambient i Territori a l’Empresa de Transformación Agraria SA (TRAGSA) per al servei d’adaptació de les masses forestals insulars al canvi climàtic - MEPRO 1052/2022",904911.63,904911.63,1]
[null,null,"Encàrrec de gestió de la Conselleria de Medi Ambient i Territori a l’Empresa de Transformació Agraria SA (TRAGSA) per al servei d’actuacions preventives en els punts estratègics de gestió per a la defensa contra els incendis forestals - MEPRO 991/2022",919545.56,919545.56,1]
[null,null,"Servei per a la millora de l'eficiència energètica a través de la biomassa forestal local en edificis públics de la CAIB",672305,672305,1]
[null,null,"Renovació de la flota de vehicles per a la prevenció i extinció d'incendis forestals en el marc del Pla de Recuperació, Transformació i Resiliència-finançat per la Unió Europea- Next Generation EU",1049896.02,1049896.02,2]
[null,null,"Restauració de masses forestals en fase avançada de decaïment a les Illes Balears","\n1.783.989,37","\n1.783.989,37",1]
[null,"TOTAL",26,{"$f":"SUM(D15:D40)","v":12797614.470000003},{"$f":"SUM(E15:E40)","v":10354896.91},{"$f":"SUM(F15:F40)","v":60}]
[]
[]
[]
[null,"COMP + INV","Fons assignats","Mobilitzat","Executat","% Iniciada mobilització s/assignat ","% Executat s/ mobilitzat","% Executat s/ assignat "]
[null,"C04",{"$f":"J9+J10","v":24229226.190000001},{"$f":"SUM(D15:D40)","v":12797614.470000003},{"$f":"SUM(E15:E40)","v":10354896.91},{"$f":"D46/C46","v":0.52818915344815653},{"$f":"E46/D46","v":0.80912711773540391},{"$f":"E46/C46","v":0.42737216734860983}]
[null,null,{"$f":"SUM(C46:C46)","v":24229226.190000001},{"$f":"SUM(D46:D46)","v":12797614.470000003},{"$f":"SUM(E46:E46)","v":10354896.91},{"$f":"D47/C47","v":0.52818915344815653},0.80912711773540391,{"$f":"E47/C47","v":0.42737216734860983}]
[]
["Actuacions AGE"]
[null,"Component + Inversió","Descripció","Executat","Beneficiaris","Dades beneficiaris"]
[null,"C04.I2","Subvenció - Impuls a la bioeconomia com a motor del desenvolupament i conservació i la transició ecològica 2021",{"$f":"228081.78+671208.97","v":899290.75},2,"APAEMA (Pasture+) i Fundación Vida Silvestre Mediterránea (Impuls bioeconomia a la Serra de Tramuntana)"]
[null,null,"Subvenció – Reforç de xarxes de envaraments i rescat d'espècies marines 2021",{"$f":"354451.41+227421.06","v":581872.47},2," Palma Aquàrium (Conservació i protecció d'espècies marines amenaçades (tortugues marines, cetacis i taurons) a les Illes Balears + Associació OCEANUM (Xarxa de avaraments i rescat d'espècies marines a les illes Pitiüses)"]
[null,null,"Subvenció – Canvis d'estils de vida impactants sobre la biodiversitat 2021",13280,1,"Particular"]
[null,null,"Treballs de recuperació de murs de maçoneria en sec a Menorca, en el marc del pla de recuperació, transformació i resiliència europeu (prtr), per al projecte actuacions per a la conservació de la biodiversitat, adequació i millora del medi natural a la finca d'Alforí de Dalt.",64577.7,1,"JULISANRA SLU"]
[null,null,"Instal·lació d'un nou sistema de reforç per du a terme l'actuació de rehabilitació i millora de la infraestructura del dipòsit d'aigua de Can Feliu",62514.06,1,"SISTEMA NOU BAU SL"]
[null,null,"Subministrament d'una furgoneta electrica per al Parc Nacional Maritimo Terrestre del Archipielago de Cabrera (Organisme Autònom Parcs Nacionals)",47795,1,"Stellantis España SL"]
[null,null,"Lloguer de maquinària sense operari, per a les obres 1634043 i 1633131 al Parc Nacional Marítim-Terrestre de l'Arxipèlag de Cabrera.",95679.42,1,"POTENCIA ALQUILER DE MAQUINARIA S.L.U"]
[null,null,"Execució de la instal·lació elèctrica per al projecte de rehabilitació d'edificis destinats a la gestió del PNMT de l'Arxipèlag de Cabrera (uso públic i recerca)",40917.360000000001,1,"Balinseg SL"]
[null,null,"Servei de navegació per a les sortides programades en els treballs de seguiment, gestió i protecció en els espais, hàbitats i espècies protegides de l'equip 9, a les illes Balears.",201102,3,"José Del Moral De La Bastida, TREMAR IB, S.L."]
[null,null,"Subministrament d'una embarcació semirígida cabinada per a la vigilància, la conservació de la biodiversitat i el suport logístic en illes i illots menors del Parc Nacional Marítim-Terrestre de l'arxipèlag de Cabrera en el Marc del Pla de Recuperació, Transformació i Resiliència (PRTR)",375100,1,"ZYON GALICIA SL"]
[null,null,"contracte derivat d'acord marc per al subministrament de material de ferreteria, per a les actuacions de la gerència de balears durant dues anualitats, en el ambito general i dins del marc del pla de recuperació, transformació i resiliència europeu-prtr, a adjudicar per procediment simplificat. Núm. 1634043 REHAB.EDIFICIS CABRERA, PRTR",49998.41,1,"FERRETERIA SON GARRIT S.L."]
[null,null,"Subministrament de productes fungibles per al parany goodnature a24 o similar per al projecte d'actuacions per a la conservació de la biodiversitat terrestre: control i erradicació d'espècies invasores en el pnmt de l'arxipèlag de cabrera), en el marc del pla de recuperació, transformació i resiliència finançat per la unió europea – nextgeneration (prtr)",22792.77,1,"P&M GRUP21, SL"]
[null,null,"Subministrament de dos vehicles submarins d'operació remota (ROV) i equips accessoris per a les actuacions de conservació, millora del coneixement del medi marí i protecció ambiental dels hàbitats i espècies marines i dels espais marins protegits en les Illes Balears.",42446.68,1,"TOTAL MARITIME SOLUTIONS, S.L.U."]
[null,null,"Servei de transport de personal i mitjans auxiliars per a diverses actuacions al Parc Nacional Marítim Terrestre de l'Arxipèlag de Cabrera.",219675.25,1,"Excursions a Cabrera SL"]
[null,null,"Subministrament d'acer corrugat per al projecte de rehabilitació d'edificis destinats a la gestió del PNMT de l'Arxipèlag de Cabrera.",37669.919999999998,1,"Perfiles y placas S.L."]
[null,null,"Suministro e instalación de sistemas de tratamiento de percolación oxigenada (TPO) para el proyecto de mejora de los sistemas de saneamiento de la Isla de Cabrera.",123420,1,"Sistemas de oxidación biocidas distribuidores sl"]
[null,null,"Subministrament de materials de construcció per al projecte de rehabilitació d'edificis destinats a la gestió del PNMT de l'Arxipèlag de Cabrera (uso públic i recerca).",20383.87,1,"MASGUAIT, S.L."]
[null,null,"Servei de transport de materials i maquinària a demanda per a les actuacions del projecte de PRTR-rehabilitació d'edificis destinats a la gestió del PNMT de l'Arxipèlag de Cabrera.",{"$f":"58080+129536.19","v":187616.19},2,"ONA MAR SERVEIS MARITIMS SL I NAVIERA DAEDALUS SL"]
[null,null,"Recuperació de la funcionalitat de l'antic moll de pedra del port de Cabrera per a la difusió, l'ús públic i la gestió del Parc Nacional Marítim-Terrestre de l'Arxipèlag de Cabrera, en el marc del Pla de Recuperació, Transformació i Resiliència (PRTR)",1588286.49,1,"SERVICIOS PROFESIONALES SUBMARINOS, S.L."]
[null,null,"servei de retirada de residus del fons marí mitjançant equip de bussejadors professionals al parc nacional marítim terrestre de l'arxipèlag de cabrera, en el marc del pla de recuperació, transformació i resiliència finançat per la unió europea – nextgeneration (prtr).",42592,1,"ONA MAR SERVEIS MARITIMS SL "]
[null,null,"Subministrament de materials de construcció per al projecte de rehabilitació d'edificis destinats a la gestió del PNMT de l'Arxipèlag de Cabrera (uso públic i recerca).",122561.76,1,"MASGUAIT, S.L"]
[null,"C04.I4","servicio para la realización de trabajos silvícolas de roza, clareo y poda en las islas baleares, actuaciones preventivas en puntos estratégicos de gestión para la defensa contra los incendios forestales en Islas Baleares",91076.68,2,"ATFORTIS I BECEITE FORESTAL "]
[null,null,"subministrament de paranys d'aire comprimit tipus goodnature a-24 d'autorecàrrega per a rosegadors o de carácterísticas similars, en el marc del pla de recuperació, transformació i resiliència finançat per la unió europea – nextgenerationeu, a adjudicar per procediment obert simplificat",30250,1,"P&M GRUP21, SL"]
[null,null,"Servei de transport de personal i medis auxiliars per a diferentes actuacions en el parc nacional marítim terrestre de l'arxipèlag de Cabrera",154000,1,"Excursions a Cabrera SL"]
[null,null,"Servei de transport de materials i maquinària per a diferents actuacions en el parc nacional marítim terrestre de Cabrera",139210.5,2,"Naviera Daedalus, S.L."]
[null,null,"Subministrament de astilladora autònoma remolcada amb llança ajustable, per al projecte de millora de l'eficiència energètica a través de la biomassa forestal local en edificis públics del Govern dels Iles Balears.",226123.15,1,"Comercial de suministtros, S.L."]
[null,null,"Obres d'instal·lació de calderes de biomassa, per al projecte de millora de l'eficiència energètica a través de la biomassa forestal local en edificis públics del govern de les illes Balears.",309737.62,3,"Instalaciones Mecánicas Muñoz SLU "]
[null,"TOTAL",27,{"$f":"SUM(D51:D77)","v":5789970.0499999998},{"$f":"SUM(E51:E77)","v":36}]

{"sheet":"Serveis socials i dependència","index":6,"n_rows":49,"n_cols":10,"rows_kept":49,"cut":false,"hidden":false,"merged":[[15,1,36,1],[41,1,42,1],[37,1,40,1]]}
["ÀREA ","Serveis socials i dependència"]
[]
["Components"]
[null,"C22.","C22. Pla de xoc per a l'economia de les cures i el reforçament de les polítiques d'inclusió"]
[]
[]
["Assignació CAIB"]
[null,"Component i Inversió","ASSIGNACIÓ 2020","ASSIGNACIÓ 2021","ASSIGNACIÓ 2022","ASSIGNACIÓ 2023","ASSIGNACIÓ 2024","ASSIGNACIÓ 2025","ASSIGNACIÓ 2026","TOTAL"]
[null,"C22. I01.",null,11952900.5,14720320.810000001,17239714.399999999,null,null,null,{"$f":"SUM(C9:I9)","v":43912935.710000001}]
[null,"C22.I02.",null,3859338.32,4752879.7,5280977.46,null,null,null,{"$f":"SUM(C10:I10)","v":13893195.48}]
[null,"C22.I03.",null,{"$f":"268004.04+1100276.13","v":1368280.17},330054.24,366726.93,null,null,null,{"$f":"SUM(C11:I11)","v":2065061.3399999999}]
[null,"TOTAL",{"$f":"SUM(C9:C11)","v":0},17180518.990000002,19803254.75,22887418.789999999,0,0,0,{"$f":"SUM(J9:J11)","v":59871192.530000001}]
[]
["Actuacions CAIB"]
[null,"Component + Inversió","Descripció","Mobilitzat","Executat","Beneficiaris"]
[null,"C22.I1","Licitació -Direcció de l'execució i coordinació de la seguretat i salut de les obres del nou Centre de llargues estades al complexe de Son Dureta, a Palma, Mallorca",137492.28,125117.98,1]
[null,null,"Licitació- Construcció d’un centre de llarga estança per a persones majors dependents en el complex sanitari de Son Dureta, Palma",10333651.060000001,10333651.060000001,1]
[null,null,"Licitació - Contractació d'un arquitecte per a la redacció d'un projecte bàsic i d'execució, la direcció de les obres, l'estudi de seguretat i salut, el projecte d'activitats, així com la certificació de les instal·lacions i la implantació del pla d'autoprotecció, per a una residència a l'avinguda David Russell, Es Migjorn Gran",211017.95,211017.95,1]
[null,null,"Licitació – Contractació d’un arquitecte per a la redacció d’un projecte bàsic i d’execució, la direcció de les obres, l’estudi de seguretat i salut, el projecte d’activitats, així com la certificació de les instal·lacions i redacció i implantació del pla d’autoprotecció per una residència a Bunyola",437200.93,437200.93,1]
[null,null,"Licitació – Reforma i adaptació d'un local al centre de dia i activitats comunitàries al carrer Sebel·lí, núm.23 baixos, de Palma (Son Xigala).",531523.83999999997,531523.83999999997,1]
[null,null,"Obra de reforma de la Caserna Duc de Crillón al municipi des Castell (Menorca) en residència i centre de dia (veure 69L)",6623220.7000000002,7207587.4699999997,1]
[null,null,"Obra de construcció d' una residència per a gent gran dependents al municipi d' Es Migjorn Gran.",2658740.6800000002,2658740.6800000002,1]
[null,null,"Direcció de l'execució i coordinació de seguretat i salut de les obres de construcció d”una residència per a persones majors dependents a Bunyola",119209.03,93579.09,1]
[null,null,"Subministrament de l'equipament d'un centre de dia per a persones majors dependents al carrer Sebel·*lí 23 de Palma, dividit en cinc lots ",50643.99,49468.27,5]
[null,null,"Contracte d'obra de una residència en el municipi de Bunyola",6598704.3899999997,6598704.3899999997,1]
[null,null,"Construcció d'una residència per a persones dependents a Sant Llorenç des Cardassar",5692521.0099999998,5692521.0099999998,1]
[null,null,"Subministrament i Instal·lació del mobiliari i electrodomèstics del centre de dia de Son Xigala",14900,14900,1]
[null,null,"Contractació dels serveis d'enginyeria forestal per a la direcció i coordinació de seguretat i salut de les actuacions que estableix el Pla de prevenció contra incendis forestals (tallafocs) per a la residència de Son Dureta a Palma",2017.95,2017.95,1]
[null,null,"Contracte Menor retirada de la coberta de fibrociment de l'edifici annexada a les obre Residència Son Dureta ",7709.17,7709.17,1]
[null,null,"contracte menor de serveis per a la realització d'estudi geotècnic per a un solar en li complex sociosanitari a Son Dureta",8228,8213.82,1]
[null,null,"Realització de treballs forestals establerts al Pla de prevenció contra incendis forestals (tallafocs) per a la residència de Son Dureta (CM 16/2021). ",14447.7,14447.7,1]
[null,null,"Contractació dels serveis d'enginyeria per a la realització d'un projecte tècnic de tallafocs per a la residència de Son Dureta. ",1064.8,1064.8,1]
[null,null,"Finalització de les obres del centre sociosanitari de llargues estades per a persones majors dependents a Son Dureta, Palma",6828911.6799999997,6275647.8700000001,1]
[null,null,"Contracte d'obra de una residència en el municipi de Sant Llorenç",12000,12000,1]
[null,null,"Abierto de ingeniería de Son Dureta",63750.42,63750.42,1]
[null,null,"Conveni – Realització d’actuacions incloses dins els projectes estratègics números 6 (residència Trepucó a Bintaufa) i 9 (servei per a Menors centre es Fabiol)",1231739,1231739,1]
[null,null,"Conveni de col·laboració entre la Conselleria d’Afers Socials i Esports i l’Institut Mallorquí d’Afers Socials (IMAS)",12566616.439999999,12566616.439999999,1]
[null,"C22.I2","Licitació-Servei de factoria de programari per a la migració tecnològica i la millora funcional dels aplicatius que conformen la història social única electrònica de les Illes Balears",6110683.9199999999,6110683.9199999999,1]
[null,null,"Servei per al disseny d’un pla director per al desenvolupament de la Història Única Electrònica a realitzar per la Fundació Balear d’Innovació i Tecnologia (Encàrrec a la Fund. BIT)",66471.44,66471.44,1]
[null,null,"Servei de desenvolupament i implantació del repositori únic d'informació compartit amb tots els sistemes de la Història Social Única Electònica (HSUe), en el marc del Pla de Recuperació, Transformació i Resiliència - finançat per la Unió Europea-Next Generation EU",676828.6,676828.6,1]
[null,null,"Concurs públic, per a l'adquisició de quatre immobles a Mallorca i Eivissa destinats a habitatges de la Xarxa d'Emancipació per part de la Comunitat Autònoma de les Illes Balears",1850715.7]
[null,"C22.I3","Subvencions destinades a la millora de l'accessibilitat d'infraestructures i equipaments de les entitats locals de les Illes Balears.",964785.21,964785.21,11]
[null,null,"Subvenció – Per la realització d’inversions per assegurar l'accessibilitat universal als immobles a persones grans, amb discapacitat i/o en situació de dependència.",1100276.1299999999,809514.79,44]
[null,"TOTAL",27,{"$f":"SUM(D16:D43)","v":64915072.020000003},{"$f":"SUM(E16:E43)","v":62765503.800000004},{"$f":"SUM(F16:F43)","v":84}]
[null,"Sobremobilització",null,5043879.49]
[null,"Sobreexecució",null,null,2894311.27]
[]
[null,"COMP + INV","Fons assignats","Mobilitzat","Excutat","% Iniciada mobilització s/assignat ","% Executat s/ mobilitzat","% Executat s/ assignat "]
[null,"C22",{"$f":"J9+J10+J11","v":59871192.530000001},{"$f":"D44-D45","v":59871192.530000001},{"$f":"E44-E46","v":59871192.530000001},{"$f":"D49/C49","v":1},{"$f":"E49/D49","v":1},{"$f":"E49/C49","v":1}]

{"sheet":"Turisme","index":7,"n_rows":143,"n_cols":10,"rows_kept":143,"cut":false,"hidden":false,"merged":[[112,1,124,1],[16,1,111,1],[125,1,126,1],[141,5,141,8],[142,5,142,8],[135,5,135,8],[136,5,136,8],[137,5,137,8],[138,5,138,8],[139,5,139,8],[140,5,140,8],[136,1,141,1]]}
["ÀREA ","Turisme"]
[]
["Components"]
[null,"C14.","C14. Pla de modernització i competitivitat del sector turístic"]
[null,"C19.","C19. Pla Nacional de Competències Digitals (digital skills)"]
[]
["Assignació CAIB"]
[null,"Component i Inversió","ASSIGNACIÓ 2020","ASSIGNACIÓ 2021","ASSIGNACIÓ 2022","ASSIGNACIÓ 2023","ASSIGNACIÓ 2024","ASSIGNACIÓ 2025","ASSIGNACIÓ 2026","TOTAL"]
[null,"C14.I01.",null,47750000,55229230,35412175.189999998,null,null,null,{"$f":"SUM(C9:I9)","v":138391405.19}]
[null,"C14.I03.",null,20000000,50000000,30000000,null,null,null,{"$f":"SUM(C10:I10)","v":100000000}]
[null,"C14.I04.",null,null,12721880,8950216,null,null,null,{"$f":"SUM(C11:I11)","v":21672096}]
[null,"C19.I03.",null,null,null,4852336.6500000004,null,null,null,{"$f":"SUM(C12:I12)","v":4852336.6500000004}]
[null,"TOTAL",{"$f":"SUM(C9:C11)","v":0},67750000,117951110,{"$f":"SUM(F9:F12)","v":79214727.840000004},0,0,0,{"$f":"SUM(J9:J12)","v":264915837.84}]
[]
["Actuacions CAIB"]
[null,"Component + Inversió","Descripció","Mobilitzat","Executat","Beneficiaris"]
[null,null,"Subvenció – Per a l'execució del Pla de Sostenibilitat Turística en Destinacions PSTD Consell de Menorca 2021",3636500,3636500,1]
[null,null,"Subvenció – Per l'execució del Pla de Sostenibilitat Turística en Destinacions PSTD Consell d’Eivissa 2021",2017714,2017714,1]
[null,null,"Subvenció – Per a l'execució del Pla de Sostenibilitat Turística en Destinacions PSTD Consell de Formentera 2021",2000000,2000000,1]
[null,null,"Subvenció - Per a l'execució del Pla de Sostenibilitat Turística en Destinacions PSTD Consell de Mallorca 2021",13051752,13051752,1]
[null,null,"Subvenció – Per a l'execució del Pla de Sostenibilitat Turística en Destinacions PSTD Mancomunitat del Pla 2021.",2994037,2994037,1]
[null,null,"Subvenció – Per a la execució de l”Actuació de Cohesió en Destí ACD Ajuntament de Calvià 2021",4000000,4000000,1]
[null,null,"Subvenció - Per a l'execució de l’Actuació de Cohesió en Destí (ACD) Consell de Menorca 2021",3006541,3006541,1]
[null,null,"Subvenció - Per a l'execució de l’Actuació de Cohesió en Destí (ACD) Ajuntament de Palma 2021",4000000,4000000,1]
[null,null,"Subvenció - Per a l'execució de l'Actuació de Cohesió en Destí ACD Ajuntament de Sant Antoni de Portmany 2021",3000000,3000000,1]
[null,null,"Subvenció – Per l”execució de l’Actuació de Cohesió en Destí ACD Ajuntament de Sant Josep de sa Talaia 2021",1693000,1693000,1]
[null,null,"Subvenció - Ajudes per finançar l'elaboració dels plans de circularitat d'allotjaments turístics, amb l'objectiu d'executar les mesures previstes en els capítols I i II del títol V de la Llei",1940000,546982.74,380]
[null,null,"Subvenció directa a l”Ajuntament de Sant Joan de Labritja per a l'execució del PSTD, de la convocatòria extraordinària de 2022",2000000,2000000,1]
[null,null,"Subvenció directa a l”Ajuntament de Capdepera per a l'execució del PSTD, de la convocatòria extraordinària de 2022",4000000.01,4000000.01,1]
[null,null,"Subvenció directa al Consell Insular de Menorca per a l'execució del PSTD, de la convocatòria extraordinària de 2022",4708499.99,4708499.99,1]
[null,null,"Subvenció directa al Consell Insular de Formentera per a l'execució del PSTD, de la convocatòria extraordinària de 2022",2000000,2000000,1]
[null,null,"Subvenció directa a l”Ajuntament de Manacor per a l'execució del PSTD, de la convocatòria extraordinària de 2022",2001027.81,2001027.81,1]
[null,null,"Subvenció directa al Consell Insular de Mallorca per a l'execució del PSTD, de la convocatòria extraordinària de 2022",6100000,6100000,1]
[null,null,"Subvenció directa a l”Ajuntament de Santa Margalida per a l'execució del PSTD, de la convocatòria extraordinària de 2022",3356000,3356000,1]
[null,null,"Subvenció directa a l”Ajuntament de San Llorenç per a l'execució del PSTD, de la convocatòria extraordinària de 2022",4002129.34,4002129.34,1]
[null,null,"Subvenció directa a l”Ajuntament de Son Servera per a l'execució del PSTD, de la convocatòria extraordinària de 2022",3000604,3000604,1]
[null,null,"Subvenció directa a l”Ajuntament de San Josep de Sa Talaia per a l'execució del PSTD, de la convocatòria extraordinària de 2022",3225118,3225118,1]
[null,null,"Subvenció directa a l”Ajuntament de Pollença per a l'execució del PSTD, de la convocatòria extraordinària de 2022",2000000,2000000,1]
[null,null,"Subvenció - ACD 2022 Ajuntament de Calvià",600000,600000,1]
[null,null,"ACD 2022 Ajuntament de Palma",60000,60000,1]
[null,null,"Resolució del conseller de Turisme, Cultura i Esports per la qual es concedeix una subvenció directa a l'Ajuntament d'Inca per a l'execució del  PSTD, de la convocatòria extraordinària de 2023",1299998,1299998,1]
[null,null,"Resolució del conseller de Turisme, Cultura i Esports per la qual es concedeix una subvenció directa a l'Ajuntament de Calvià per a l'execució del  PSTD, de la convocatòria extraordinària de 2023. Millora i embelliment del Bulevar de Peguera",2000000,2000000,1]
[null,null,"Resolució del conseller de Turisme, Cultura i Esports per la qual es concedeix una subvenció directa a l'Ajuntament de Felanitx per a l'execució del  PSTD, de la convocatòria extraordinària de 2023. Felanitx és cultura i naturalesa. Cap a un destí intel·ligent i sostenible.",2500000,2500000,1]
[null,null,"Resolució del conseller de Turisme, Cultura i Esports per la qual es concedeix una subvenció directa a l'Ajuntament de Muro per a l'execució del  PSTD, de la convocatòria extraordinària de 2023. Muro destí accessible, intel·ligent i sostenible.",3500000,3500000,1]
[null,null,"Resolució del conseller de Turisme, Cultura i Esports per la qual es concedeix una subvenció directa a l'Ajuntament de Santa Eulària des Riu per a l'execució del  PSTD, de la convocatòria extraordinària de 2023. Pla de diversificació de l'oferta turística i augment de la competitivitat del sector MICE - Aparcament de la Fase II del Palau de Congressos d'Eivissa",6500000,6500000,1]
[null,null,"Resolució del conseller de Turisme, Cultura i Esports per la qual es concedeix una subvenció directa a l'Ajuntament de Santanyí per a l'execució del  PSTD, de la convocatòria extraordinària de 2023. Pla de millora urbana sostenible del nucleo turístic de Cala D'Or",1998167.18,1998167.18,1]
[null,null,"Resolució del conseller de Turisme, Cultura i Esports per la qual es concedeix una subvenció directa al Consell Insular de Mallorca per a l'execució del  PSTD, de la convocatòria extraordinària de 2023. Mallorca Living Sustainable Hub III",8499121.5800000001,8499121.5800000001,1]
[null,null,"Resolució del conseller de Turisme, Cultura i Esports per la qual es concedeix una subvenció directa al Consell Insular de Menorca per a l'execució del  PSTD, de la convocatòria extraordinària de 2023. Transformació cap al Model socioambiental, integrador, conectat i resilient.",4200000,4200000,1]
[null,null,"Resolució del conseller de Turisme, Cultura i Esports per la qual es concedeix una subvenció directa a la Mancomunitat del Raiguer per a l'execució del  PSTD, de la convocatòria extraordinària de 2023. ",2000000,2000000,1]
[null,null,"ACD Consell Insular de Formentera i Ports de les Illes Balears. Circularitat com eix de competivitat sostenible de les Illes Balears. Fase II",630000,630000,1]
[null,null,"Convocatòria de subvencions per a la concessió d'ajudes per finançar projectes innovadors a través de la cooperació amb l'objectiu de cercar, implementar i digitalitzar solucions innovadores sostenibles als establiments turístics de les Illes Balears en el marc del component C14.I1, transformació del model turístic cap a la sostenibilitat, en el marc del Pla de Recuperació, Transformació i Resiliència finançat per la Unió Europea Next Generation EU",13632302.210000001,11497612.369999999,73]
[null,null,"ACD 2022 Consell Insular de Menorca",5500000,5500000,1]
[null,null,"Convocatòria d'ajudes per a la millora de l'eficiència energètica en el disseny i desenvolupament de processos i sistemes d'empaquetat, emmagatzematge, logística i distribució de productes agraris i agroalimentaris al seu accés al canal HORECA, a l'any 2024, en el marc del Pla de Recuperació, Transformació i Resiliència - Finançades per la UE - Next GenerationEU",1024899,1024899,1]
[null,null,"Convocatòria d'ajudes de minimis relacionades amb la circularitat alimentària del sector turístic per a la creació i desenvolupament de productes i experiències de turisme enogastronòmic, per l'any 2024, en el marc del Pla de Recuperació, Transformació i Resiliència",100000,100000,1]
[null,null,"Convocatòria d'ajudes de minimis relacionades amb la circularitat alimentària del sector turístic per a la creació i desenvolupament de productes i experiències de turisme enogastronòmic, per l'any 2024, en el marc del Pla de Recuperació, Transformació i Resiliència",837500,837500,1]
[null,null,"Ajudes de minimisen el marc del Pla de Recuperació, Transformació i Resiliència, per a l'execució de projectes pilot per a estudiar la viabilitat de la producció de fumet per a la seva distribució en el canal HORECA, l'any 2024",75000,74244,1]
[null,null,"Resolució del president de l’Agència d’Estratègia Turística de les Illes Balears per la qual s’aprova la convocatòria d’ajuts de minimis per finançar projectes en matèria de circularitat en l’àmbit turístic de les Illes Balears en el marc del Pla de Recuperació, Transformació i Resiliència finançat per la Unió Europea amb Next Generation EU",1490000]
[null,null,"Transferencia pla de sostenibilitat a favor de l'AETIB - Pla de sostenibilitat",902175.19,902175.19,1]
[null,null,"Licitació – Patrocini projecte Mallorca Live Festival 2022",150360,150360,1]
[null,null,"Licitació – Patrocini projecte Menorca Ioga Gallery Festival",16385.5,16385.5,1]
[null,null,"Licitació – Patrocini per a projecte Cranc Illa de Menorca Festival 2022",19880,19880,1]
[null,null,"Licitació – Patrocini Projecte Epic Camí de Cavalls 360º 2022",23219,23219,1]
[null,null,"Licitació – Patrocini esdeveniment singular \"East Mallorca L&L hsted by JM Olazábal\"\"",137616,137616,1]
[null,null,"Licitació – Patrocini esdeveniment singular \"Mallorca 140.6 Triathlon\"",90000,90000,1]
[null,null,"Licitació - Modificació de les condicions per a la realització de contractes de patrocini amb entitats privades per a grans esdeveniments que generin repercussió mediàtica per a les marques de les Illes Balears i l’Agència d’Estratègia Turística (AETIB) durant el 2022, per adaptar-la a l’establert al PRTR",null,null,1]
[null,null,"Licitació – Patrocini COOKINGFILMS Menorca",12981.5,12981.5,1]
[null,null,"Licitació – Patrocini singular \"XXV Gala dels premis Max de les arts escèniques 2022\" Menorca",34064,34064,1]
[null,null,"Licitació – Patrocini estratègic «16a volta a Menorca en BTT»",17013.5,17013.5,1]
[null,null,"Licitació – Patrocini estratègic \"Campeonato de España de Ciclismo en Carretera Mallorca 2022\"",44290,44290,1]
[null,null,"Licitació – Patrocini Grans Esdeveniments \"Mallorca Championships 2022\"",359472,359472,2]
[null,null,"Assessorament tècnic en la definició d'un marc per als plecs que desenvolupin una solució estratègica de Business Inteligence del turisme de l'AETIB",36108.47,28435,1]
[null,null,"Licitació – Patrocini 4t Majordocs-Festival de Cinema Documental de Mallorca",22738.5,22738.5,1]
[null,null,"Licitació -Patrocini esdeveniment singular \"Zafiro Palma Marathon Mallorca\"",126600,126600,1]
[null,null,"Licitació – Patrocini Estratègic \"3 Dies Trial Eivissa-Ultra Eivissa\"",24160,24160,1]
[null,null,"Licitació – Patrocini esdeveniment Singular \"UCI Track Champions League Mallorca\"",126168,126168,1]
[null,null,"Licitació – Patrocini Alternatilla Jazz Festival",60220,60220,1]
[null,null,"Licitació – Plecs de les condicions generals que han de regir la tramitació dels expedients de contractació que es derivin de les sol·licituds de patrocinis estratègics amb entitats privades que generin repercussió mediàtica  "]
[null,null,"Patrocini Trail Menorca Camí De Cavalls 2023",44504,44504,1]
[null,null,"Patrocini Mallorca 312",150792,150792,1]
[null,null,"Assistència tècnica per a la posada en marxa d'una solució estratègica de Business Inteligence de turisme d'AETIB ",969654.26,848934.67999999993,3]
[null,null,"Patrocini Eivissa Marathon",63010,63010,1]
[null,null,"Patrocini HIC Summit Ibiza",25852,25852,1]
[null,null,"Patrocini III Trail del Nord",16635.5,16635.5,1]
[null,null,"Patrocini XXXII Challenge Ciclista Mallorca 2023",141504,141504,1]
[null,null,"Patrocini Trail Menorca Camí De Cavalls 2023. Premis de la Música Independents (PREMIS MIN)",51941,51941,1]
[null,null,"Patrocini XIV Mitja Marató + 8 km Formentera",12692.5,12692.5,1]
[null,null,"Patrocini V October Trail",13422.5,13422.5,1]
[null,null,"Patrocini UEFA Futsal Final Four Mallorca 2023",32860,32860,1]
[null,null,"Patrocini The Meadower OCR Menorca",13926.5,13926.5,1]
[null,null,"Patrocini VIII Edició 10 & 5 Milles Ciutat de Maó – Menorca",16635.5,16635.5,1]
[null,null,"Patrocini Spartan Mallorca",46810,46810,1]
[null,null,"Patrocini Triathlon International Portocolom",53650,53650,1]
[null,null,"Patrocini X Trail Dels Fars",17000,17000,1]
[null,null,"Patrocini X Trail Dels Fars Nocturna",16320.5,16320.5,1]
[null,null,"Patrocini Formentera All Round Trail ",12602.5,12602.5,1]
[null,null,"Patrocini Artiem Half Menorca Triathlon",15000,15000,1]
[null,null,"Patrocini Challenge Peguera Mallorca 2023",53650,53650,1]
[null,null,"Patrocini 52 Trofeu S.A.R. Princesa Sofia Mallorca",46270,46270,1]
[null,null,"Patrocini YogaGallery Menorca Festival 2023",16856,16856,1]
[null,null," Patrocini X Triatlo illa de Formentera de 2023 ",12622.5,12622.5,1]
[null,null,"CONCURS D'IDEES QUE SERVIRÀ PER PORTAR A TERME LA LICITACIÓ DE LES ACCIONS DE SENSIBILITZACIÓ DESTINADES A FOMENTAR I POSAR EN VALOR LES ACCIONS DE CIRCULARITAT A LES ILLES BALEARS.",14900,2396.6999999999998,1]
[null,null,"Servei per a la definició i redacció del pla estratègic estratègic turístic de enogastronomía de les Illes Balears 2024-2035 i el seu desenvolupament en un pla operatiu (pa director) 2025-2030.",142680,107901.75,1]
[null,null,"Servei de creació i producció de contingut multimèdia i editorial que permeti executar i reforçar les\ndiferents activitats derivades de les accions dutes a terme per la AETIB, destinades a posicionar el\nturisme enogastronómico a les illes Balears i fomentar la circularitat alimentària en el sector turístic.\n(Exp 008/2024-2) CoFFEE:C14.I01.P06.S03.PROVISIONAL. SI02.",240000,240000,1]
[null,null,"Patrocini Galatzó Trail 2023 Mallorca Mountain Marathon",10014.5,10014.5,1]
[null,null,"Serveis de desenvolupament de la Plataforma en línia especialitzada en turisme enogastronómico de les Illes Balears en el marc del Pla de Recuperació, Transformació i Resiliciencia -Finançat per la Unió Europea- Next Generation EU.",150000,121782.87,2]
[null,null,"Obres per a l'execució del projecte d'instal·lació de plaques solars fotovoltaiques amb sistema d'emmagatzematge d'energia integrat en la seu de Ports dels Illes Balears situada al carrer Vicente Tofiño,36, emmarcat en el Pla de Recuperació, Transformació i Resiliència Next Generation EU",80000,80000,1]
[null,null,"Contracte mixt de subministrament d'estacions meteorològiques i servei per a la implantació de sistema de mesurament continu de la qualitat de l'aire i contaminació acústica en els ports de Ciutadella (Menorca) i Sant Antoni de Portmany (Eivissa), emmarcat en el Pla de Recuperació, Transformació i Resiliència Next Generation EU",225000]
[null,null,"Contracte mixt de servei per a la redacció de projecte i d'obra per a executar la implantació de OPS (cold ironing) en els molls del Port Exterior de Ciutadella, Menorca",1444318.64,1444318.64,1]
[null,null,"Contracte de serveis dividit en lots per al desenvolupament d'una app mòbil de reserves de boies i amarraments (lot 1) i per a la implantació de la nova web corporativa (lot 2), emmarcat en el Pla de Recuperació, Transformació i Resiliència, per a Europa Next Generation UE",202713.24,180895,2]
[null,null,"Serveis de desenvolupament d'actuacions de màrqueting per al posicionament de l'oferta gastronòmica de les illes Balears en el marc del Pla de Recuperació, Transformació i Resiliència - Finançat per la Unió europea- Next Generation EU",512201.31,440677.92,2]
[null,null,"Gestió dels projectes turístics finançats amb fons MRR",47333.69,47333.69,1]
[null,null,"Contracte mixt d'obra i servei, dividit en quatre lots, per a la gestió dels camps de fondeig regulat en la xarxa natura 2000 de les Illes Balears per a la protecció de les prades de posidònia oceanica i l'assistència tècnica per al seguiment ambiental i direcció facultativa, emmarcat en el Pla De Recuperació, Transformació i Resiliència, per a Europa Next Generation UE",875000]
[null,"C14.I3","Subvenció – Per a la modernització i la innovació en la higiene i en la neteja dels establiments d'allotjament turístic, destinada a la compra de mecanismes d'elevació de llits,",15000000,5149690.88,536]
[null,null,"Subvenció  -Per a la substitució d'instal·lacions tèrmiques per altres que emprin fonts d'energia que redueixin l'impacte mediambiental, amb l'objectiu d’executar el que s’estableix en l'article 102.1.a) de la Llei 8/2012, del turisme de les Illes Balears",8000000,555434.09,18]
[null,null,"Convocatoria d'ajudes a la modernització i la innovació i en la neteja dels establiments d'allotjament turístic, destinada a la compra de mecanismes d'elevació de llits",9800000,3863005.15,479]
[null,null,"Convocatoria d'ajudes per finançar actuacions per a la millora de la competitivitat i la captació d'adaptació del territori de les Illes Balears en l'àmbit turístic",75432598.909999996,75432598.909999996,96]
[null,null,"Tr. a empreses privades. Estudis de preus d”establiments turístics en zones madures. ",11966.9,11966.9,1]
[null,null,"Patrocini Cranc Illa de Menorca Festival 2023",46736,46736,1]
[null,null,"Patrocini UCI Track Champions League Mallorca",127896,127896,1]
[null,null,"Patrocini Palma Marathon Mallorca",120552,120552,1]
[null,null,"Patrocini 17º Volta Menorca BTT",15816.5,15816,1]
[null,null,"Patrocini Artiem Epic Cami de Cavall 360º Menorca",50840,50840,1]
[null,null,"Servei de creativitat, disseny, producció i execució de campanyes de publicitat sobre inversions i projectes associats al Pla de Modernització i Competitivitat del Sector Turístic (component 14) a les illes Balears. COFFEE C14.I03.P01.S01.SI02",950000,950000,2]
[null,null,"Subministrament de dispositius informàtics per a la gestió del projecte “Plataforma regional de Business Intelligence com a observatori del Turisme\"",16350,10158.56,1]
[null,null,"Execució de campanyes sobre Turisme Responsable i Sostenible dels aeroports de les illes Balears en el marc del Pla de Recuperació, Transformació i Resiliència _ Fiananciado per la Unió Europea- Next Generation",1100000,907300,1]
[null,"C14.I4","Subvenció – Per a la concessió d’ajuts per finançar projectes de millora de l'eficiència energètica de l'envolupant tèrmica, d’ús d'energies renovables a les instal·lacions tèrmiques de calefacció, climatització, refrigeració, ventilació i aigua calenta sanitària, i de les instal·lacions d’il·luminació d’allotjaments turístics",12263892.32,11105461.109999999,41]
[null,null,"Convocatòries d'ajudes de minimis per a la concessió de subvencions per finançar projectes de millora de l'eficiència energètica i l'economia circular a establiments turístics, en el marc del Pla de Recuperació, Transformació i Resiliència (PRTR) finançat per la Unió Europea Next Generation EU",10094723.68,10086678.65,249]
[null,"TOTAL",111,{"$f":"SUM(D17:D127)","v":275203107.72999996},{"$f":"SUM(E17:E127)","v":244190173.21000001},{"$f":"SUM(F17:F127)","v":1978}]
[null,"Sobremobilització",null,8591925.6999999993]
[]
[]
[null,"COMP + INV","Fons assignats","Mobilitzat","Executat","% Iniciada mobilització s/assignat ","% Executat s/ mobilitzat","% Executat s/ assignat "]
[null,"C14",{"$f":"J9+J10+J11+J12","v":264915837.84},{"$f":"D128-D129","v":266611182.02999997},{"$f":"E128","v":244190173.21000001},{"$f":"D133/C133","v":1.0063995577003739},{"$f":"E133/D133","v":0.91590371923156222},{"$f":"E133/C133","v":0.92176509793077155}]
[]
["Actuacions AGE"]
[null,"Component + Inversió","Descripció","Executat","Beneficiaris","Dades beneficiaris"]
[null,"C14.I4","Subvenció – Enfortiment de l'activitat comercial en zones turístiques",{"$f":"163432+210663","v":374095},2,"Ajuntament Eivissa i Ajuntament Sant Josep de Sa Talaia"]
[null,null,"Subvenció -  Xarxa Ciutats Patrimoni",2817368.55,1,"Aj. Eivissa: Millora de l'accessibilitat i energia carrers  Santa Maria i Tur de Montis, Passeig Vara del Rey i Plaça de Sa Carrossa"]
[null,null,"Subvenció -  Rehabilitació d'immobles de Patrimoni Nacional",1640000,1,"Palau de l'Almudaina"]
[null,null,"Subvenció -Ajudes per a l'enfortiment de l'activitat comercial en zones turístiques en el marc del Pla de Recuperació, Transformació i Resiliència per a l'any 2022",{"$f":"919763.2+1212371.2+511370.4","v":2643504.7999999998},3,"Consell de Mallorca (8 actuacions), Consell de Formentera (Senalló 4.0 Comercio, Artesanía y Territorio) i Ajuntament de Maó ( programa per a la dinamització comercial i millora de l'experiència turística de la ciutat"]
[null,null,"Subvenció -  Experiències Turisme Espanya 2021",623844.62,3,"Aj. Eivissa: Viu la posidònia"]
[null,null,"Convocatòria d'ajudes per al programa \"EXPERIÈNCIES TURISME ESPANYA\" 2023",344290,4," -DIA COMPLERT ESPORTS  I ACTIVITATS C.B. (E57142234) 69.825,00 €                  -TURSIJOVEN S.L. B07757537: 69.825,00  €                                                                            -FUNDACIÓ JARDÍ BOTÀNIC DE SÓLLER-MUSEU BALEAR DE CIENCIÉS NATURALS G07829377 33.904,00 €                                                                            - Jumbo Tours España S.L. Unipersonal Empresa B07893365 170.736,00 €                                                                                                  "]
[null,"TOTAL",6,{"$f":"SUM(D137:D142)","v":8443102.9699999988},{"$f":"SUM(E137:E142)","v":14}]

{"sheet":"Sector primari i alimentació","index":8,"n_rows":40,"n_cols":10,"rows_kept":40,"cut":false,"hidden":false,"merged":[[33,5,33,8],[34,5,34,8],[27,1,35,1],[35,5,35,8],[39,5,39,8],[29,5,29,8],[37,5,37,8],[36,1,38,1],[30,5,30,8],[31,5,31,8],[32,5,32,8],[14,1,15,1],[16,1,17,1],[26,5,26,8],[27,5,27,8],[28,5,28,8]]}
["ÀREA ","Sector primari i alimentació"]
[]
["Components"]
[null,"C03.","C03. Transformació ambiental i digital del sistema agroalimentari i pesquer"]
[]
[]
["Assignació CAIB"]
[null,"Component i Inversió","ASSIGNACIÓ 2020","ASSIGNACIÓ 2021","ASSIGNACIÓ 2022","ASSIGNACIÓ 2023","ASSIGNACIÓ 2024","ASSIGNACIÓ 2025","ASSIGNACIÓ 2026","TOTAL"]
[null,"C03.I03.",null,279858.95999999996,67848.72,null,null,null,null,347707.67999999993]
[null,"C03.I04.",null,679019,null,null,null,null,null,679019]
[null,"TOTAL",{"$f":"SUM(C9:C10)","v":0},958877.96,67848.72,0,0,0,0,{"$f":"SUM(J9:J10)","v":1026726.6799999999}]
[]
["Actuacions CAIB"]
[null,"Component + Inversió","Descripció","Mobilitzat","Executat","Beneficiaris"]
[null,"C03.I3","Subvenció - Inversions en bioseguretat vegetal",119565.6,0,0]
[null,null,"Subvenció - Inversions en bioseguretat animal",160293.35999999999,0,0]
[null,"C03.I4","Inversions en eficiència energètica i energies renovables (biogàs i biomassa agrícola)",272314,0,0]
[null,null,"Suport per a l’aplicació d’agricultura de precisió i tecnologies 4.0 al sector agrícola i ramader",406705,0,0]
[null,"TOTAL",4,{"$f":"SUM(D15:D18)","v":958877.96},{"$f":"SUM(E15:E18)","v":0},0]
[]
[]
[]
[null,"COMP + INV","Fons assignats","Mobilitzat","Excutat","% Iniciada mobilització s/assignat ","% Executat s/ mobilitzat","% Executat s/ assignat "]
[null,"C03",{"$f":"J9+J10","v":1026726.6799999999},{"$f":"SUM(D15:D18)","v":958877.96},{"$f":"SUM(E15:E18)","v":0},{"$f":"D24/C24","v":0.93391744724116843},{"$f":"E24/D24","v":0},{"$f":"E24/C24","v":0}]
[]
["Actuacions AGE"]
[null,"Component + Inversió","Descripció","Executat","Beneficiaris","Dades beneficiaris"]
[null,"C03.I1","Pla de millora de l'eficiència i sostenibilitat a regadius Fase I",1060000,1,"Formentera: Comunitat de regants d'aigües regenerades i Mallorca: Comunitat de regants d'aigües regenerades de Porreres - Conveni amb SEIASA signat"]
[null,null,"Pla de millora de l'eficiència i sostenibilitat a regadius Fase II",5300000,1,"Eivissa: Comunitat de regans de Sa Rota, Sant Joan i Santa Eulàlia"]
[null,null,"Pla de millora de l'eficiència i sostenibilitat a regadius Fase III",5300000,1,"Eivissa: comunitat de regants"]
[null,null,"Subministrament i posada en marxa de bombes centrífugues horitzontals amb motor en disposició vertical i bombes centrífugues submergibles per a l'actuació “projecte de consolidació del regadiu a partir de l'optimització de les aigües regenerades a l'Illa de Formentera (illes Balears)”.",{"$f":"30909.69+25773","v":56682.69},2,"KSB ITUR SPAIN, S.A."]
[null,null,"Subministrament de formigó elaborat en planta, posat en obra, per a l'actuació “projecte de consolidació del regadiu a partir de l'optimització de les aigües regenerades a l'Illa de Formentera (illes Balears)”.",31076.99,1,"SUMINISTROS IBIZA DE INVERSIONES Y CORPORACION SL"]
[null,null,"Subministrament, instal·lació, programació i posada en marxa de sistemes per a l'actuació: “projecte de consolidació del regadiu a partir de l'optimització de les aigües regenerades a l'Illa de Formentera (illes Balears)”.",95591.21,2,"INGENIERA CONTROL LA MANCHA SL"]
[null,null,"Subministrament dels sistemes de telecontrol i automatització de l'actuació: “projecte de consolidació del regadiu a partir de l'optimització de les aigües regenerades a l'Illa de Formentera (illes Balears)”.",65024.19,1,"VAO SISTEMAS SL"]
[null,null,"Subministrament de calderí antiariet per a l'obra de consolidació del regadiu a partir de l'optimització d'aigües regenerades a l'Illa de Formentera (illes Balears).",17067.03,1,"VÁLVULAS AUTOMATICAS ROSS S.A"]
[null,null,"Subministrament, instalacion i posada en marxa dels equips de tractament terciari destinats al projecte de consolidació del regadiu a partir de l'optimització d'aigües regenerades a l'Illa de Formentera (illes Balears).",204840.9,1,"GRUPO TECNOLOGICO MEDITERRANEO SL"]
[null,"C03.I6","Treballs d'instal·lació i posada en marxa de sistemes d'estacionament segur, inclòs el seu subministrament.",222391.95,1,"Bile Comunication SL"]
[null,null,"Subministrament d'aparcaments per a bicicletes i patinets a l'illa de Mallorca, en el marc del pla de recuperació, transformació i resiliència finançat per la unió europea – nextgeneration (prtr)",143258.6,3,"Benito Urban S.L.U. + La Factoria Bike-In SL"]
[null,null,"Subministrament de materials de ferreteria.",47151.59,1,"SERVICIOS PALAU S.L."]
[null,"TOTAL",12,{"$f":"SUM(D28:D39)","v":12543085.149999999},{"$f":"SUM(E28:E39)","v":16}]

{"sheet":"Esports","index":9,"n_rows":36,"n_cols":10,"rows_kept":36,"cut":false,"hidden":false,"merged":[[15,1,20,1],[26,1,29,1],[21,1,25,1]]}
["ÀREA ","Esports"]
[]
["Components"]
[null,"C26.","C26. Pla de foment del sector de l'esport"]
[]
[]
["Assignació CAIB"]
[null,"Component i Inversió","ASSIGNACIÓ 2020","ASSIGNACIÓ 2021","ASSIGNACIÓ 2022","ASSIGNACIÓ 2023","ASSIGNACIÓ 2024","ASSIGNACIÓ 2025","ASSIGNACIÓ 2026","TOTAL"]
[null,"C26.I01.",null,null,308517.24,757918.93,null,null,null,1066436.17]
[null,"C26.I02.",null,5529634.6399999997,2934091.85,79713.66,null,null,null,{"$f":"SUM(C10:I10)","v":8543440.1500000004}]
[null,"C26.I03.",null,null,439669.75,126523.67,null,null,null,566193.42000000004]
[null,"TOTAL",{"$f":"SUM(C9:C11)","v":0},5529634.6399999997,3682278.84,964156.26000000013,0,0,0,{"$f":"SUM(J9:J11)","v":10176069.74}]
[]
["Actuacions CAIB"]
[null,"Component + Inversió","Descripció","Mobilitzat","Executat","Beneficiaris"]
[null,"C26.I1","Subvenció-Per a les entitats locals de les Illes Balears per a la creació d’Unitats Actives d’Exercici Físic als municipis de les Illes Balear",170000,55826.42,6]
[null,null,"Convocatòria d'ajuts per a les entitats de les Illes Balears per a la creació d'Unitats d'Exercici Físic als municipis de les Illes Balears, en el marc del Pla de Recuperació, Transformació i Resiliència",180721.13,39964.199999999997,3]
[null,null,"Matriculació 186 professionals sanitaris IB-SALUT Illes Blaears, formació docent ‘Actívate, prescribe ejercicio’",13950,13950,1]
[null,null,"Servei del ús de la eina digital VITALEDAD, per a realitzar el seguiment i control del programa B@les",17633.669999999998,17633.669999999998,1]
[null,null,"Subministrament i instal·lació de material esportiu d'alta tecnologia per a la modernització digital del centre especialitzat d'Alt Rendiment de Ciclisme (Velòdrom), del Centre de Tecnificació Esportiva de les illes Balears (CTEIB) i el Centre especialitzat de tecnificació esportiva de tir amb arc a Eivissa (És Cubells) de les illes Balears.",757883.79,324797.88,3]
[null,null,"Conveni Colef Pla Prescripció Activitat Física",59701.4,59701.4,1]
[null,"C26.I2","Subvenció – Per a modernitzar la Xarxa de Centres d'instal·lacions esportives existents a la comunitat autònoma de les Illes Balears",3963726.49,1033837,4]
[null,null,"Obra d'instal·lació d'una caldera de biomassa i dipòsit per a escalfar l'aigua de dues piscines en el Centre de Tecnificació Esportiva Illes Balears (CTEIB)",356049.28,355065.15,1]
[null,null,"Obres per al desenvolupament del projecte de telecomunicacions i sistemes per a la modernització i renovació d'instal·lacions de dades, megafonia, electricitat i telefonia en el Centre de Tecnificació Esportiva de les illes Balears en el marc del Pla de Recuperació, Transpormación i Resiliència finançat per la Unió Europea Next Generation EU.",481204.62]
[null,null,"OBRA de renovació dels sistemes d'il·luminació per a la pista de ciclisme del Velòdrom Illes Balears, finançat en el marc de l'instrument de finançament NextGeneration EU",3234728.05,2253580.62,1]
[null,null,"Redacció modificat projecte ejecutiu per a la realització de les obres de instalacion d'un parc fotovoltaic amb injecció d'excedent en el Velòdrom Illes Balears",12057.65,12057.65,1]
[null,"C26.I3","Subvenció – Formació esportiva de les dones a l’àmbit esportiu",60000,40663.9,68]
[null,null,"Subvenció-Proporcionar i facilitar l’adquisició d’immobilitzat material per a la practica d’esports adaptats",100000,90220.21,12]
[null,null,"Subvenció-Foment de la igualtat de gènere i la inclusió de persones amb discapacitat a l’esport a l’àmbit de les federacions esportives de les Illes Balears i delegacions de les federacions esportives espanyoles a les Illes Balear",175000,3885,1]
[null,null,"PROMOCION DE LA IGUALDAD EN EL DEPORTE 2023 SINCO 2023 0000007146",46050,46050,1]
[null,"TOTAL",15,{"$f":"SUM(D16:D30)","v":9628706.0800000001},{"$f":"SUM(E16:E30)","v":4347233.1000000006},{"$f":"SUM(F16:F30)","v":104}]
[]
[]
[]
[null,"COMP + INV","Fons assignats","Mobilitzat","Excutat","% Iniciada mobilització s/assignat ","% Executat s/ mobilitzat","% Executat s/ assignat "]
[null,"C26",{"$f":"J9+J10+J11","v":10176069.74},{"$f":"SUM(D16:D30)","v":9628706.0800000001},{"$f":"SUM(E16:E30)","v":4347233.1000000006},{"$f":"D36/C36","v":0.94621070079262248},{"$f":"E36/D36","v":0.45148673808101125},{"$f":"E36/C36","v":0.42720158283820886}]

{"sheet":"Investigació i transferència de","index":10,"n_rows":66,"n_cols":10,"rows_kept":66,"cut":false,"hidden":false,"merged":[[64,5,64,8],[65,5,65,8],[57,5,57,8],[58,5,58,8],[59,5,59,8],[60,5,60,8],[61,5,61,8],[62,5,62,8],[57,1,63,1],[63,5,63,8],[47,1,56,1],[47,5,47,8],[48,5,48,8],[49,5,49,8],[50,5,50,8],[51,5,51,8],[52,5,52,8],[53,5,53,8],[54,5,54,8],[55,5,55,8],[56,5,56,8],[17,1,22,1],[41,5,41,8],[33,5,33,8],[34,5,34,8],[35,5,35,8],[36,5,36,8],[37,5,37,8],[23,1,24,1],[35,1,46,1],[42,5,42,8],[43,5,43,8],[44,5,44,8],[38,5,38,8],[39,5,39,8],[40,5,40,8],[45,5,45,8]]}
["ÀREA ","Investigació i transferència del coneixement"]
[]
["Components"]
[null,"C17.","C17. Reforma institucional i enfortiment de les capacitats del sistema nacional de ciència, tecnologia i innovació"]
[null,"C16.","C16. Estratègia Nacional dIntel·ligència Artificial"]
[]
["Assignació CAIB"]
[null,"Component i Inversió","ASSIGNACIÓ 2020","ASSIGNACIÓ 2021","ASSIGNACIÓ 2022","ASSIGNACIÓ 2023","ASSIGNACIÓ 2024","ASSIGNACIÓ 2025","ASSIGNACIÓ 2026","TOTAL"]
[null,"C16.R01.",null,null,null,630000,null,null,null,{"$f":"SUM(C9:I9)","v":630000}]
[null,"C17.I01.",null,null,4748671,null,null,null,null,4748671]
[null,"C17.I03.",null,null,112125,37375,null,null,null,{"$f":"SUM(C11:I11)","v":149500}]
[null,"C17.I04.",null,null,null,534059,371007.78,null,null,{"$f":"SUM(C12:I12)","v":905066.78}]
[null,"C17.I06.",null,977590.9,null,2256217,2832610,null,null,{"$f":"SUM(C13:I13)","v":6066417.9000000004}]
[null,"TOTAL",{"$f":"SUM(C10:C13)","v":0},977590.9,4860796,2827651,3203617.7800000003,0,0,{"$f":"SUM(J9:J13)","v":12499655.68}]
[]
["Actuacions CAIB"]
[null,"Component + Inversió","Descripció","Mobilitzat","Executat","Beneficiaris"]
[null,"C17.I1","Subvenció directa per part de l’Administració CAIB a favor de la UIB per finançar despeses derivades del projecte de l’àrea d’Astrofísica i física d’altes energies “Tecnologies avançades per a l’exploració de l’univers i els seus components” en el marc del PRTR",1000000,1000000,1]
[null,null,"Subvenció directa per part de l’Administració CAIB a favor de la UIB per finançar despeses derivades del programa de l’àrea de Biodiversitat “Exploració, anàlisi i prospectiva de la Biodiversitat: Possibles respostes a l’estratègia 2030 de Desenvolupament Sostenible en un escenari de Canvi Global” en el marc del PRTR",1792850,1792850,1]
[null,null,"Plans complementaris basats en l’execució dels programes d’I+D+i en l’àrea de ciències marines (SOCIB)",606050,606050,1]
[null,null,"Plans complementaris basats en l’execució dels programes d’I+D+i en l’àrea de ciències marines. (CSIC)",838350,838350,1]
[null,null,"Plans complementaris basats en l’execució dels programes d’I+D+i en l’àrea de ciències marines. (UIB)",196011,196011,1]
[null,null,"Convocatòria per a ajudes a projectes i actuacions de recerca en biodiversitat emmarcats en els plans complementaris del Pla de Recuperació Transformació i Resiliència ",889554,873592,14]
[null,"C17.I6","Licitació- Subministrament i instal·lació d'un equip de microtomografia (microCT) per a investigació científica, diagnòstic per imatge i obtenció de models 3D amb destinació a la Plataforma de Cirurgia Experimental i Estabulari",363000,362879,1]
[null,null,"Subministrament i instal·lació d'equipament per a la plataforma d'anàlisi multi-ómicos en imatge molecular basada en espectrometria de masses d'ultra-alta resolució del IdISBa.",1400000,1400000,1]
[null,"TOTAL",8,{"$f":"SUM(D18:D25)","v":7085815},{"$f":"SUM(E18:E25)","v":7069732},{"$f":"SUM(F18:F25)","v":21}]
[]
[]
[]
[null,"COMP + INV","Fons assignats","Mobilitzat","Excutat","% Iniciada mobilització s/assignat ","% Executat s/ mobilitzat","% Executat s/ assignat "]
[null,"C17",{"$f":"J14","v":12499655.68},{"$f":"SUM(D18:D25)","v":7085815},{"$f":"SUM(E18:E25)","v":7069732},{"$f":"D31/C31","v":0.56688081507217969},{"$f":"E31/D31","v":0.9977302540357037},{"$f":"E31/C31","v":0.56559413962993266}]
[]
["Actuacions AGE"]
[null,"Component + Inversió","Descripció","Executat","Beneficiaris","Dades beneficiaris"]
[null,"C16.R1","Subvenció – Missions IA 2021",776485.05,1,"Balantia Consultores SL"]
[null,"C17.I2","Subvenció-Ajudes públiques per a les Infraestructures Científiques i Tècniques Singulars (ICTS) corresponents a l'any 2021",180000,1,"SOCIB"]
[null,null,"Subvenció - Equipament Cientificotècnic 2021",1661273.76,3,"(UIB + SOCIB) i CSIC"]
[null,null,"Subvenció -  Infraestructures Científiques i Tècniques Singulars",342000,1,"SOCIB"]
[null,null,"Licitació - Subministrament d'un ordinador del Lot 5 per al projecte MAPA01_COB_PRTR (adjudicada)",1073.5,1,"DYNABOOK EUROPE GMBH"]
[null,null,"Licitació - Adquisició de 4 monitors per a 2 projectes PRTR del COB (adjudicada)",634.04,1,"MCR INFO ELECTRONIC, S.L"]
[null,null,"Licitació - Subministrament i instal·lació d'un sistema analític per a metabolòmica marina (adjudicada)",1047494.65,1,"THERMO FISHER SCIENTIFIC\nNIF B28954170"]
[null,null,"Subministrament d'ordinadors portàtils superiors i llicència S.O. més complements. Fi. PRTR ( AgenciaDescripción Estatal Consell Superior de Recerques Cientificas (CSIC)",3751.17,1,"HP PRINTING AND COMPUTING SOLUTIONS, S.L.U."]
[null,null,"Subministrament de monitors i complements. financiacion europea. PRTR-RECUPERA ( Agència Estatal Consell Superior de Recerques Cientificas (CSIC) )",417.45,1,"MCR INFO ELECTRONIC, S.L."]
[null,null,"Subministrament de monitors i complements. Financiacion europea. PRTR ( Agència Estatal Consell Superior de Recerques Cientificas (CSIC) )",695.75,1,"MCR INFO ELECTRONIC, S.L."]
[null,null,"Subministrament d'ordinador portatil superior i llicencia S.O dt. complements.. Financiacion europea PRTR ( Agència Estatal Consell Superior de Recerques Cientificas (CSIC) )",1250.3900000000001,1,"HP PRINTING AND COMPUTING SOLUTIONS, S.L.U."]
[null,null,"Subministrament de dos planadors de mostreig oceanogràfic (GLIDERS)",574560,1,"INNOVA oceanografia litoral, s.l."]
[null,null,"38290000-Instrumentos y aparatos de geodesia, hidrografía, oceanografía e hidrología.",94380,1,"NAUTILUS OCEANICA S.L."]
[null,"C17.I3","Subvenció - Projectes de R+D+i «Programació Conjunta Internacional» 2020",130450,2,"UIB + SOCIB"]
[null,null,"Subvenció - Accions de Dinamització «Europa Recerca» 2020",7200,2,"UIB + CSIC"]
[null,null,"Subvenció – Proves concepte 2021",286350,1,"UIB"]
[null,null,"Subvenció -  R+D+i en línies estratègiques, en col·laboració públic-privada 2021",190000,1,"UIB"]
[null,null,"Subvenció - Missions en ciència i innovació 2021.  Impulsar la indústria espanyola en la revolució industrial del segle XXI  ",548586.6,1,"TIRME SA: Indústria 4.0 sostenible, digital i circular, amb noves tecnologies de processos, IA i simbiosi industrial per a maximitzar la valorització de residus de combustió"]
[null,null,"Subvenció - projectes estratègics orientats a la transició ecològica i digital del Pla estatal de recerca científica, tècnica i d'innovació 2021 – 2023",{"$f":"184575+179400+30705+85330+171350+27715+111320+384790+103500+175030+184000+47840+114310+193200+74750+212750+69115+34500+20010+138000+255300+174800+108100+112700","v":3193090},3,"UIB: 2.404.190 € (Facultat Economia i Empresa; Dpt. Biologia; Dpt. Dret Públic; Dpt. Economia i Empresa; INAGEA; Dpt. Enginyeria Indus i Construcció; Dpt. Enginyeria Indus i Construcció; Dpt. Geografia; Dpt. Química; Facultat de ciències; Dpt. Infermeria; Dpt. ciències Matemàtiques i Informàtica; IFISC; Facultat de Dret). IMEDEA: 676.200 €; Institut Oceanogràfic: 112.700 €"]
[null,null,"Subvenció - Ajudes corresponents a la convocatòria 2022 de projectes de \"prova de concepte\", en el marc del programa estatal per a impulsar la recerca científica-tècnica i la seva transferència, del Pla estatal de recerca científica i tècnica i d'innovació 2021-2023",148350,2,"Dpt. Biologia UIB: 148.350€"]
[null,null,"Subvenció - projectes de col·laboració públic-privada",{"$f":"192373+52290.43+76500","v":321163.43},3,"UIB, Center for Intelligent Research in crystal engineering SL, Laminar Pharmaceuticals SA"]
[null,null,"Subvenció - Missions de ciència i innovació 2022",225557.35,1,"Astilleros de Mallorca SA (Descarbonització del transport marítim a través de solucions d'emmagatzematge d'hidrogen) "]
[null,null,"Projectes en col·laboració público-privat 2022",1134484.3899999999,3,"1) Laminar Pharmaceuticals, SA (238.576) i UIB (53.375); 2) Laminar Pharmaceuticals, SA (373.013,35) i UIB (117.481,97); 3) UIB (169.756,07); 4) Juniper Consulting, SL (182.282)"]
[null,"C17.I4","Subvenció – Juan de la Cierva Formació 2021",412300,2,"UIB, IMEDEA  "]
[null,null,"Subvenció – Torres Quevedo (PTQ) 2020",77615.679999999993,1,"Sanifit Therapeutics SA"]
[null,null,"Subvenció - AEI Ajudes Juan de la Cierva  - Formació postdoctoral 2021",740124.06,12]
[null,null,"Subvenció - AEI Ajudes Juan de la Cierva  - Incorporació 2021",201900,3]
[null,null,"Convocatòria 2022 ajudes per incentivas consolidació investigadora (Agencia Estatal Investigació)",962154.1,1,"UIB (Q0718001A): 962.154,10€."]
[null,null,"AEI Ajudes Juan de la Cierva  - 2022",269600,1,"UIB (Manuel Ayuso Vilaboa JDC2022-049135-I: 67.400€; Lidia López Serrano JDC2022-049385-I: 67.400€; Adriana Nicolau Jiménez JDC2022-049116-I: 67.400€; Isabel Suárez Fernández JDC2022-048431-I: 67.400)."]
[null,null,"Ajudes convocatòria 2023, Atreure i retenir talent, del Pla de Recerca Científica, ècnica i Innovació 2021-23, en el Pla  de Recuperacío, Transformació i Resiliència.",1342844.16,7,"UIB (Q0718001A): 199.865,38€; Agencia Estatal Consejo Superior de Investigaciones Científicas (CSIC) (Q2818002D): 199.558,01€; Agencia Estatal Consejo Superior de Investigaciones Científicas (CSIC) (Q2818002D):199.952,47€; Agencia Estatal Consejo Superior de Investigaciones Científicas (CSIC) (Q2818002D): 199.460€; UIB (Q0718001A): 199.070€; Agencia Estatal Consejo Superior de Investigaciones Científicas (CSIC) (Q2818002D): 188.812€; UIB (Q0718001A): 156.126,30€."]
[null,"C17.I5","Convocatòria Programa NEOTEC 2023",325000,1,"Projecte Turbina Undimotriz Roe (Renewable Ocean Energy, SL B67987040): 325.000 €"]
[null,"TOTAL",31,{"$f":"SUM(D35:D65)","v":15200785.529999999},{"$f":"SUM(E35:E65)","v":62}]

{"sheet":"Innovació i tecnologia","index":11,"n_rows":95,"n_cols":10,"rows_kept":95,"cut":false,"hidden":false,"merged":[[25,1,46,1],[87,5,87,8],[88,1,89,1],[88,5,88,8],[89,5,89,8],[49,1,50,1],[53,1,54,1],[80,5,80,8],[77,1,82,1],[83,1,86,1],[86,5,86,8],[94,5,94,8],[91,5,91,8],[93,5,93,8],[91,1,92,1],[92,5,92,8],[90,5,90,8],[55,1,56,1],[74,5,74,8],[75,5,75,8],[72,1,76,1],[76,5,76,8],[71,5,71,8],[72,5,72,8],[73,5,73,8],[77,5,77,8],[83,5,83,8],[84,5,84,8],[85,5,85,8],[81,5,81,8],[78,5,78,8],[79,5,79,8]]}
["ÀREA ","Innovació i tecnologia"]
[]
["Components"]
[null,"C13.","C13. Impuls a la pime"]
[null,"C15+C19.","Creació d’una càtedra de ciberseguretat turística per comentar l’ecosistema innovador vinculat a empreses i universitats"]
[null,"C14.","C14. Pla de modernització i competitivitat del sector turístic"]
[null,"C11.","C11. Modernització de les administracions públiques"]
[null,"C15.","C15. Connectivitat Digital, impuls de la ciberseguretat i desplegament del 5G"]
[null,"C19.","C19. Pla Nacional de Competències Digitals (digital skills)"]
[]
[]
["Assignació CAIB"]
[null,"Component i Inversió","ASSIGNACIÓ 2020","ASSIGNACIÓ 2021","ASSIGNACIÓ 2022","ASSIGNACIÓ 2023","ASSIGNACIÓ 2024","ASSIGNACIÓ 2025","ASSIGNACIÓ 2026","TOTAL"]
[null,"C11.I03.",null,2919000.35,6610366,12491117.539999999,null,null,null,{"$f":"SUM(C14:I14)","v":22020483.890000001}]
[null,"C13.I01.",null,null,null,3450000,null,null,null,{"$f":"SUM(C15:I15)","v":3450000}]
[null,"C14.I02.",null,null,null,810000,null,null,null,810000]
[null,"C15.I02.",null,{"$f":"3660000+490000","v":4150000},490000,637000,null,null,null,{"$f":"SUM(C17:I17)","v":5277000}]
[null,"C15.I03.",null,142000,142000,67360,null,null,null,351360]
[null,"C15.I04.",null,514000,1028000,154200,null,null,null,1696200]
[null,"C15+C19.              C15.I07. + C19.I04.",null,null,null,1440000,null,null,null,1440000]
[null,"C19.I01.",null,3464525,null,1395430,null,null,null,4859955]
[null,"TOTAL",{"$f":"SUM(C14:C21)","v":0},11189525.35,8270366,20445107.539999999,0,0,0,39904998.890000001]
[]
["Actuacions CAIB"]
[null,"Component + Inversió","Descripció","Mobilitzat","Executat","Beneficiaris"]
[null,"C11.I3","Licitació - Contracte mixt de subministrament i servei d' implantació d' una plataforma centralitzada que permeti la automatització robòtica de processos (RPA)",864781.56,580872.24,1]
[null,null,"Licitació-Adquisició de llicències i serveis per a la migració de l'entorn ofimàtic actual i la plataforma de correu Lotus Notes/Domino a l'entorn de treball col·laboratiu",3446110.47,3303684.05,1]
[null,null,"Licitació-Subprojecte CIBERAP, actuació; Contractació d'una eina Govern, Risc i Compliment de les mesures de protecció de dades i de seguretat de la informació ",144026.67000000001,131125.28,1]
[null,null,"Subprojecte CIBERAP, actuació; Contractació d'una solució de seguretat i control de dispositius mèdics per a l'Atenció Primària en el marc del Pla de Recuperació, Transformació i Resiliència - Finançat per la Unió Europea – Next Generation EU",946228.62,574503.73,1]
[null,null,"Implantació d'una plataforma omnicanal per al Canal de Salut per a la Ciutadania del Servei de Salut dels Illes Balears, en el marc del Pla de Recuperació, Transformació i Resiliència - Finançat per la Unió Europea – Next Generation EU i els serveis de suport i manteniment de la nova Solució",1966187.29,1966187.29,1]
[null,null,"Contracte mixt de subministrament de la infraestructura i la prestació del servei del Centre d'Operacions de Ciberseguretat (SOC) de la CAIB en el marc del Pla de Recuperació, Transformació i Resiliència - Finançat parcialment per la unió Europea – NextGenerationEU.",3354170.3,3354170.3,1]
[null,null,"Contracte mixt per a la implantació de la nova història clínica electrònica d'Atenció Primària de les Illes Balears en el marc del Pla de Recuperació, Transformació i Resiliència - Finançat per la Unió Europea – NextGenerationEU",4219321.4000000004,4219321.4000000004,1]
[null,null,"Prestació de serveis per a la gestió del projecte de nova Història Clínica electrònica per a Atenció Primària en el marc del Pla de Recuperació, Transformació i Resiliència - Finançat per la Unió Europea – NextGenerationE",133659.16,122912.96000000001,1]
[null,null,"Anàlisi, disseny, determinació i la seva posterior implementació d'un pla i un sistema d'atenció digital personalitzada per al Servei de Salut dels Illes Balears [PADP] en el marc del Pla de Recuperació, Transformació i Resiliència - Finançat per la Unió Europea – NextGenerationEU",2660603.2200000002,1543000,1]
[null,null,"Servei de suport i manteniment correctiu, adaptatiu i evolutiu del Sistema Economicofinancer (SIGEF) del Govern de les Illes Balears, que inclou la migració de la infraestructura tecnològica de SIGEF de la versió SAP ERP 6.0 EHP5 sector públic, a la versió SAP s/4HANA i, simultàniament migrar a la Base de dades HANA.",1865441.77,1865441.77,1]
[null,null,"Conveni de col·laboració amb la Universitat de les Illes Balears (UIB) per a la Implantació i gestió d’una infraestructura d’Intel·ligència Artificial (IA) i Big Data dintre el component 11: Modernització de les administracions públiques, Inversió 3: Transformació Digital i Modernització de les CCAA i les EELL en el marc del Pla de Recuperació, Transformació i Resiliència, finançat per la Unió Europea, Next Generation i d’autorització i disposició de la despesa",1116211.81,1116211.81,1]
[null,null,"Renovació dels firewalls Pal Alt per a Atenció Primària i el Servei de Salut de les Illes Balears en el marc del Pla de Recuperació, Transformació i Resiliència - Finançat per la Unió Europea – NextGenerationEU.",273365.96000000002]
[null,null,"Adaptació de NEXA als processos del PADP del IB-*Salut, en el marc del Pla de Recuperació, Transformació i Resiliència - Finançat per la Unió Europea – NextGenerationEU",589600]
[null,null,"Ampliació de sistemes d'agregació de trànsit (packet brocker) per a control i protecció del trànsit de xarxa en el marc del Pla de Recuperació, Transformació i Resiliència - Finançat per la Unió Europea – NextGenerationEU",208359]
[null,null,"Adaptació de la plataforma SISN2+ per a implementar els canvis necessaris que permetin el funcionament del Pla d'atenció digital personalitzada (PADP) en el marc del Pla de Recuperació, Transformació i Resiliència Finançat per la Unió Europea – NextGenerationEU",599956.92000000004]
[null,null,"Prestació de servei per a la gestió del canvi, difusió, formació i gestió de projecte de PADP i els seus casos d'ús en el marc del Pla de Recuperació, Transformació i Resiliència - Finançat per la Unió Europea – NextGenerationEU",449336.34,408315.71,1]
[null,null,"Adquisició de noves llicències de Red Hat per a la nova plataforma de contenidors d'Openshift. Finançat per la Unió Europea – NextGenerationEU en el marc del Pla de Recuperació, Transformació i Resiliència – Finançat per la Unió Europea – NextGenerationEU",392113.08]
[null,null,"Ampliació de CPU d'Oracle per al projecte Plataforma d'Atenció Digital Personalitzada (PADP)",383176.14]
[null,null,"Adquisició de llicències per a la solució de TM V1 Cyber ​​Risk Exposure Management (CREM) i TM V1 XDR",259242]
[null,null,"Ampliació de la infraestructura de l'eina de monitoratge d'aplicacions crítica DYNATRACE en el marc del Pla de Recuperació, Transformació i Resiliència. Finançat per la Unió Europea – Next Generation EU",54667.37]
[null,null,"Llicències antivirus Security Container"]
[null,null,"Adquisició protecció antivirus Deep Security i XDR per a 150 servidors HCEAP (Història Clínica electrònica d'Atenció Primària)",193945.5]
[null,"C13.I1","Serveis de consultoria i desenvolupament per a la implantacion i suport en la creació d'una infraestructura de bessons digitals i un espai de dades interoperable per a la gestió eficient dels recursos de les costes dels Illes Balears en el marc del component 13 inversió 1 del Pla de Recuperació, Transformació i Resiliència - Finançat per la Unió Europea – NextGenerationEU",3450000,2823416.88,1]
[null,"C14.I2","Encàrrec de gestió a la FUEIB del servei d'execució del projecte SPAIN LIVING LAB",839973.32,839973.32,1]
[null,"C15.I2","Subvenció -  reforç de connectivitat en centres públics de referència",3538000,23057.7,3]
[null,null,"Licitació - Instal·lació nova xarxa cablejat a la Biblioteca Pública de Palma",18009.919999999998,18009.919999999998,1]
[null,"C15.I3","Subvenció - bons digitals per a col·lectius vulnerables.",351360,3120,13]
[null,"C15.I4","Subvenció -millora de les infraestructures de telecomunicacions en edificis",1696200]
[null,"C15.I7","creació càtedra ciberseguritat",225000,225000,1]
[null,null,"Contracte mixt de servei d'assistència tecnica per a la ejecucion del Projecte CIBERREG (primers passos del Centre Balear de Ciberseguretat, creacion d'un Observatori i d'una finestreta d'assessorament empresarial en ciberseguretat i realizacion d'una campanya de conscienciació i publicitat en ciberseguretat), i de subministrament del programari necessari, en el marc del PRTR finançat ue nextg",1061528.72,1061528.72,1]
[null,"C19.I1","Encàrrec de gestió a la Fundació Universitat Empresa dels Illes Balears per al servei de gestió, suport i coordinació per a la impartició de cursos de formació i l'avaluació i acreditació de les persones formades, referits al component 19, Inversió 1, Projecte “Competències digitals transversals- Capacitació digital de la ciutadania” del Pla de RTS",3464415.02,3464415.02,1]
[null,null,"Encàrrec de gestió a la Fundació Universitat Empresa dels Illes Balears per al servei de gestió, suport i coordinació per a la impartició de cursos de formació i l'avaluació i acreditació de les persones formades, referits al component 19, Inversió 1, Projecte \"Comptetències digitals transversals - Capacitació digital per al repte demogràfic\" del Plan de Recuperació, Transformació i Resiliència",1395383,1395383,1]
[null,"TOTAL",32,{"$f":"SUM(D26:D57)","v":40160374.56000001},{"$f":"SUM(E26:E57)","v":29039651.100000001},{"$f":"SUM(F26:F57)","v":35}]
[]
[]
[]
[null,"COMP + INV","Fons assignats","Mobilitzat","Executat","% Iniciada mobilització s/assignat ","% Executat s/ mobilitzat","% Executat s/ assignat "]
[null,"C11",{"$f":"J14","v":22020483.890000001},24120504.579999998,19185746.539999999,{"$f":"D63/C63","v":1.0953666913266},{"$f":"E63/D63","v":0.79541232134539375},{"$f":"E63/C63","v":0.87126816267251417}]
[null,"C13",{"$f":"J15+J1","v":3450000},{"$f":"SUM(D48)","v":3450000},2823416.88,{"$f":"D64/C64","v":1},0,{"$f":"E64/C64","v":0.81838170434782609}]
[null,"C14",{"$f":"J16","v":810000},{"$f":"D49","v":839973.32},{"$f":"E49","v":839973.32},1.0370040987654321,0,1.0370040987654321]
[null,"C15",{"$f":"J17+J18+J19","v":7324560},{"$f":"SUM(D50:D55)","v":6890098.6399999997},1330716.3400000001,0.94068430595148378,0.19313458479021139,0.18167867284860797]
[null,"C15+C19",{"$f":"J20","v":1440000},0,0,0,0,0]
[null,"C19",{"$f":"J21","v":4859955},{"$f":"SUM(D56:D57)","v":4859798.0199999996},{"$f":"SUM(E56:E57)","v":4859798.0199999996},0.99996769928939666,1,0.99996769928939666]
[null,null,{"$f":"SUM(C63:C68)","v":39904998.890000001},{"$f":"SUM(D63:D68)","v":40160374.560000002},{"$f":"SUM(E63:E68)","v":29039651.099999998},1.0063995909561094,0.72309213791356619,0.72771963181979171]
[]
["Actuacions AGE"]
[null,"Component + Inversió","Descripció","Executat","Beneficiaris","Dades beneficiaris"]
[null,"C11.I3","Subvenció – Transformació digital i modernització de les Administracions de les entitats locals 2022",{"$f":"148246.58+44120+190201.48","v":382568.06},2,"Ajuntament Calvià i Ajuntament Eivissa"]
[null,null,"Subvenció -Transformació digital i modernització  de les administracions de les entitats locals que no han presentat projectes per l'import màxim assignat 2022",1543217.6,1,"Ajuntament de Palma (Mobilitat al lloc de feina del treballador públic + Implantació d'un SOC i millores als elements de la seguretat de la informació)"]
[null,null,"Subvenció –Projectes de modernització i digitalització en l'àmbit de les administracions de les entitats locals 2022",{"$f":"1827507.83+40000+82310+310387.75+187036.55+204881.24+261134.48+288023.88+284886.81+283196.25","v":3769364.79},10,"Consell de Mallorca (digitalització serveis públics per a empreses i ciutadans i provisió de llocs de treball amb mobilitat Ajuntaments), Consell de Menorca (sistema integral d'arxiu ajuntaments Fase I), Consell de Formentera (modernitació infraestrucutres digitals i interoperabilitat de serveis bàsics d'administració digital: desenvolupament de la integració de la Carpeta ciutadana, adreça electrònica habilitada única, Dehu), Aj. Inca (desenvolupament integració amb la carpeta ciutadana, Inca Digital), Aj. Sant Antoni de Portmany (desenvolupament integració amb la carpeta ciutadana i millora del centre de processament de dades), Aj. Maó (modernització infraestructures tecnològiques), Aj. Marratxí (implantació de serveis d'interoperabilitat i modernització de sistemes i infraestrucutres digitals, dotació de llocs de treball amb mobilitat), Aj. Manacor (integració carpeta ciutadana i modernització parc informàtic), Aj. Santa Eulària (migració serveis al cloud i optimització del centre de processament de dades, integració de l'estat d'expedients oberts al registre d'entrada i sortida i padró municipal amb la carpeta ciutadana), Aj. Llucmajor (Llucmajor digital i infraestructures digitals)"]
[null,null,"Subvencions destinades a la transformació digital i modernització de les Administracions de les entitats locals 2023",2728107.55,4,"Consell Insular de Formentera: 27.231,42€: Consell Insular de Mallorca: 2.181.194,62€; Consell Insular de Menorca: 235.924,57€; Consell Insular d'Eivissa: 283.756,94€."]
[null,null,"subvencions destinades a la transformació digital i modernització dels sistemes de gestió del padró municipal de les entitats locals, en el marc del Pla de Recuperació, Transformació i Resiliència",1918770,4,"Consell de Mallorca, Formentera, Menorca i  Eivissa"]
[null,"C11.I4","Licitació – Instal·lació diversos punts de recàrrega per a les UCOs adscrites a la SEA 61 (adjudicada)",{"$f":"14216.53+7966.64+7681.92","v":29865.090000000004},2,"REDES Y TENDIDOS DE BALEARES S.A. (1) i MOVELCO MOBILITY, S.L. (2 i 3)"]
[null,null,"Licitació – Obra de renovació exterior de l'enllumenat en el centre penitenciari de Mallorca (en avaluació, import mobilitzat)",165815.97,1,"SERVEO SERVICIOS, S.A.U."]
[null,null,"Obres de Reforma d'Instal·lacions en l'Edifici d'Usos Múltiples de Palma, situat al Carrer Feliciá Fuster núm. 7 de Palma.",2442199.7400000002,1,"EIFFAGE ENERGÍA, S.L.U"]
[null,null,"Obra de Millora de l'Eficiència Energètica en l'Aquarterament de la Guàrdia Civil en Ciutadella, illa de Menorca (Balears)en el marc del PRTR finançat pels Fons NextGenerationEU (23.153.TE4022.OB.08)",1178280,1,"ANTONIO GOMILA, S.A."]
[null,null,"s'autoritza l'execució del projecte bàsic i d'execució per a la millora de l'eficiència energètica de l'immoble del Patrimoni Sindical Acumulat situat en la Plaça Miranda, 20, Maó (Menorca, illes Balears).",1875500,1,"ANTONIO GOMILA, S.A."]
[null,null,"Subministrament i posada en obra d'estructures metàl·liques per a execució de marquesines per al projecte de millora d'optimització d'Edar Santa Ponça (Mallorca)."]
[null,"C13.I1","Projecte ICEX VIVES (Resolució de 15/12/2022) (Resolucio 19/08/2024)",385677.17,14,"Decelera Institute, SL (B02782746)."]
[null,null,"Programa Impuls de l'Ecosistema Emprenedor Innovador. Convocatòria per a actuacions realitzades o a realitzar en 2022 i 2023.",128000,1,"Catalina Echevarría García-Faria: 40.000€;\nRicardo Cardona Poloche: 42.500€; \nCarmen Forcades Sánchez: 25.150€;\nGiovanni Petrilli Esquius: 26.300€;\nMario Jimeno Bennassar: 25.700€;\nVíctor Morales Mora: 36.500€;\nAntonio Fluxa Hernández: 24.100€;\nJosé María Conrado Hernández: 41.100€;\nMaría López Borrás: 21.250€;\nMaría Romero Molina: 21.250€;\nMarina Canaves Canals: 22.227,17€; Marta Castells Antolí: 13.650€"]
[null,null,"\"Programa d'Acceleració d'Startups\"",306380.48,56,"Mansion Studios, S.L. (B16607731); Volta Movement Ear CB (E44615300); Iki Health Group, SL (B72819360); We Are Lab, SL (B44625473); Phoenix 3DP, SL (B16807513); Ivax Asesores, SL (B16597593); Yaurimeka, SL (B13996921); Layla Serra Gürtler; Maria Valles Garau; María José Arraez Fernández; Catalina Nebot Rios; Nuria Urcelay Martínez; Eficiencia y Sol, SL (B67631002), Isabel Guijosa Creus (***1416**); Margarita Pallicer Fiol (***6335**); José Luís Martín Pascual (***5878**); Tatiana Torres Díaz (***0967**); Susana Ferreras Diaz (***0992**); Ftouhouiamhorma Laarousii (***6459**); Maria Peidrootal (***8365**); Last Minute Dynamics S.L. (B02975894); Balearic Urban Air Mobility Services, S.R.L (B56445919); Zebundo Group, SL (B56975469); Marta Yolanda Romero Carrasco SA (***3515**); Stahlhaus Mallorca SLU (B05366851); Difusalud Formacions, SL (B10573392); Fisioactividad Ibiza, SL (B56709926); Ordenamigas ESPJ (E72735293); Maria Jose Andres Marin (***4664**); Jaime Martorell Nuñez (**5100**); Callendary (B13765003); Evolution Leap, SL (B67859017); Indigenas Digitales, SL (B72848054); Apolonia Pou Obrador (**2460**); Jeronimo Obrador Rossello (***3884**); Sara Lechuga Ardeo (***9230**); Adntro Genetics; SL (B01663657); Ibiza Testing SL (B05450291); ENG TV Media SLU (B16664138); Jitka Klalová (****4866**); Aliud Alternativa, S.L. (B16657025); Guadalupe Hurtado Ocon (***5455**); Samir Rojas Quirós (***4457**); Agnes Miquel Flaquer (***3973***)"]
[null,null,"Proyecto ICEX Vives (Resolución de 19 de febrero de 2025)",94925,6]
[null,"C14.I2","Ajudes per a projectes de digitalització de \"ultima milla\" a empreses del sector turístic 2021",3065891,16,"Sol·lictuds ESTIMADES L1: - Projecte TDA Traveltool - Transformación digital agencias:\nTravel Agencies Management (B16554891): 499.375€; Viajes Alcúdia Tours, SL (B07475791): 60.000€; Veci Group Tech, SL (B57784464): 64.000€.\n- Projecte DIPDS: Definición de metodología e implantación de proyecto de data science en Riu Hotels: RIU II, SA (A07632474): 59.085€; Sling Technology, SLU (B16569527): 786.776€.\n- Projecte TOTAL, Profit Platform: Customia Builder, SL (B57839888): 100.000€; - Projecte Luigi: Desarrollo de un asistente virtual basado en IA para el sector turístico:  SMY Properties 2018 (B16572612): 725.019€; Travel Agencies Management, SL (B16554891): 13.750€; OKLOGY, SL (B16872905): 12.452€; Hotelogy, SL (B57964629): 12.452€.\nSol·licituds ESTIMADES L2: - Projecte Laboratorio de Automatización de Aplicaciones RIU-Test Labs: RIU II, SA (A07632474): 33.225€; Sling Technology, SLU (B16569527): 264.144€. \n- Projecte Back-Travel: Backoffice de facturación: Dynasoft Spain, SLU (B57865925): 74.168€; IT Travel Services, SLU (B57844920): 53.613€.\n- Projecte WEEN (PW): Corporación travel PArtners, SAU (A60741501): 35.476€. Patterson on line, SL (B16502536): 272.356€."]
[null,"C15.I1","Subvenció – Únic Banda Ampla 2021",3838550,1,"Telefónica. Actuacions a 52 municipis IB"]
[null,null,"Subvenció – Únic Banda Ampla 2022",3103272,1,"Telefónica. Actuacions a 52 municipis IB"]
[null,"C15.I3","Convocatoria de ayudas del Programa de bonos de conectividad «UNICO Demanda Bono PYME».",107600,54]
[null,"C15.I6","UNICO 5G Xarxes Actives ",6631204.7999999998,1,"Telefónica Móviles, SA (A78923125): 6.631.204,80 € de proposta d'ajuda.\n80 emplaçaments assignats per a executar la mesura."]
[null,null,"Convocatoria ayudas para provisión del conjunto de equipamiento activo e infraestr. auxiliar para provisión de servicios de com. móviles con tecnología 5G en zonas donde no existe cobertura móvil 4G con servicio mínimo de 50 Mbps (UNICO 5G Redes Activas)",77696.92,1,"ORANGE ESAPAÑA COMUNICACIONES FIJAS S.L.U. (B87706305)"]
[null,"C19.I1","Resolución de la entidad pública empresarial red.es, M.P. por la que se convocan las ayudas 2024 para actuaciones de formación en competencias básicas digitales en el marco del Plan de recuperación, transformación y resiliencia",5000000,1,"FUNDACION BANCARIA LA CAIXA (G58899998)"]
[null,"TOTAL",22,{"$f":"SUM(D73:D94)","v":38772886.170000002},{"$f":"SUM(E73:E94)","v":179}]

{"sheet":"Habitatge","index":12,"n_rows":75,"n_cols":10,"rows_kept":75,"cut":false,"hidden":false,"merged":[[14,1,28,1],[29,1,61,1],[73,5,73,8],[74,5,74,8],[70,5,70,8],[71,1,72,1],[71,5,71,8],[72,5,72,8]]}
["ÀREA ","Habitatge"]
[]
["Components"]
[null,"C02.","C02. Pla de rehabilitació d'habitatge i regeneració urbana"]
[]
[]
["Assignació CAIB"]
[null,"Component i Inversió","ASSIGNACIÓ 2020","ASSIGNACIÓ 2021","ASSIGNACIÓ 2022","ASSIGNACIÓ 2023","ASSIGNACIÓ 2024","ASSIGNACIÓ 2025","ASSIGNACIÓ 2026","TOTAL"]
[null,"C02.I01.",null,28326110,34183290,null,10582300,null,null,{"$f":"SUM(C9:I9)","v":73091700}]
[null,"C02.I02.",null,null,12305000,12305000,null,null,null,24610000]
[null,"TOTAL",{"$f":"SUM(C9:C10)","v":0},28326110,46488290,12305000,10582300,0,0,97701700]
[]
["Actuacions CAIB"]
[null,"Component + Inversió","Descripció","Mobilitzat","Executat","Beneficiaris"]
[null,"C02.I1","Subvenció – Convocatòria del Programa 5 d’Ajuda per Elaborar el Llibre de l'Edifici Existent per a la Rehabilitació i la Redacció de Projectes de Rehabilitació",3832027.24,1516815.98,306]
[null,null,"Subvenció – Convocatòria de subvencions: Programa 3 d’Ajuda per a les Actuacions de Rehabilitació en l’Àmbit de l’Edifici i del Programa 4 d’Ajuda per a les Actuacions de Millora de l’Eficiència Energètica en Habitatges,",{"$f":"16000000+20000000+1000000+25000000+696239.53","v":62696239.530000001},52862334,2074]
[null,null,"Subvenció - REHAB. A NIVELL DE BARRI FASE I PROGRAMA 1 RD 8 SINCO 2023 0000006626 CONTB 2500002335 500377839 2 AD (R) 04.07.2023 P0702700F 1006 AJUNTAMENT D'INCA",301412.23,301412.23,1]
[null,null,"REHAB. A NIVELL DE BARRI FASE I PROGRAMA 1 RD 8 SINCO 2023 0000006591 AJUNTAMENT DE SOLLER",365021,365021,1]
[null,null,"Rehabilitació a nivell de barri fase i programa 1 RD 853/2021 Ajuntament d'Eivissa",1985000,1985000,1]
[null,null,"Conveni de col·laboració amb el Col·legi Oficial d”Arquitectes Tècnics d”Eivissa i Formentera per a les Oficines de Rehabilitació (PROGRAMA 2 RD 853/2021)",161896,161896,1]
[null,null,"Conveni de col·laboració amb el Col·legi Oficial d”Administradors de Finques de les IB per a les Oficines de Rehabilitació (PROGRAMA 2 RD 853/2021)",88833,88833,1]
[null,null,"Conveni de col·laboració amb el Col·legi Oficial d”Arquitectes Tècnics de Mallorca per a les Oficines de Rehabilitació (PROGRAMA 2 RD 853/2021)",192582,192582,1]
[null,null,"Conveni de col·laboració amb el Col·legi Oficial d”Arquitectes de les IB per a les Oficines de Rehabilitació (PROGRAMA 2 RD 853/2021)",320735,320735,1]
[null,null,"Conveni de col·laboració amb el Col·legi Oficial d”Arquitectes Tècnics de Menorca per a les Oficines de Rehabilitació (PROGRAMA 2 RD 853/2021)",161896,161896,1]
[null,null,"Prorroga Conveni de col·laboració amb el Col·legi Oficial d”Arquitectes Tècnics d”Eivissa i Formentera per a les Oficines de Rehabilitació (PROGRAMA 2 RD 853/2021) (Conveni)",122400,122400,1]
[null,null,"Prorroga del Conveni de col·laboració amb el Col·legi Oficial d”Administradors de Finques de les IB per a les Oficines de Rehabilitació (PROGRAMA 2 RD 853/2021) (Conveni)",72459.89,72459.89,1]
[null,null,"Prorroga Conveni de col·laboració amb el Col·legi Oficial d”Arquitectes Tècnics de Mallorca per a les Oficines de Rehabilitació (PROGRAMA 2 RD 853/2021) (Conveni)",455132,455132,1]
[null,null,"Prorroga Conveni de col·laboració amb el Col·legi Oficial d”Arquitectes Tècnics de Menorca per a les Oficines de Rehabilitació (PROGRAMA 2 RD 853/2021) (Conveni)",205210,205210,1]
[null,null,"Prorroga Conveni de col·laboració amb el Col·legi Oficial d”Arquitectes de les IB per a les Oficines de Rehabilitació (PROGRAMA 2 RD 853/2021) (Conveni)",641600,641600,1]
[null,"C02.I2","Licitació-Execució de les obres pendents de 35 habitatges de protecció pública i aparcaments al c/ Fornaris, 34, de Palma.",1153845,1153845,1]
[null,null,"Licitació-Execució de les obres d'una promoció de 11 vivendes de protecció pública a Sant Lluís (Menorca)",423332,423332,1]
[null,null,"Execució de les obres d'una promoció de 60 habitatges de protecció pública a l'av. Isidor Macabich, Eivissa",1830920,1830920,1]
[null,null,"Licitació - Execució de les obres d”un edifici de 11 habitatges de protecció pública i aparcaments al carrer León XIII, núm. 15, de Manacor (Mallorca)",99410.51,99410.51,1]
[null,null,"Licitació - Obres del 77,05 % d”execució pendent en edifici en construcció de 18 habitatges de protecció pública, locals i aparcaments a la parcel·la 11, c/ Borja Moll, Maó (Menorca)",568328.51,568328.51,1]
[null,null,"Licitació - Obres d”execució dun edifici de 23 habitatges de protecció pública i aparcaments al carrer Coves des Vicari, de Santanyí, Mallorca",938595,938595,1]
[null,null,"Licitació - Obres d”execució pendents (87,29 %) a l”edifici en construcción de 40 habitatges tutelats, centre de dia i aparcaments al carrer Borja Moll, Maó (Menorca)",1502753.22,1502753.22,1]
[null,null,"Licitació - Obres d”execució de dos edificis de 14 habitatges de protecció pública (LOTE 1) i 15 habitatges de protecció pública (LOTE 2) a les parcel·les 13 i 16 del carrer Roca i Vinent, de Maó, respectivament. ",1140429,1140429,1]
[null,null,"Licitació - Adjudicació de les obres d'un edifici de 19 habitatges protegits i aparcaments, i d'urbanització i dotació de serveis en la c/ Salvador Espriu, núm. 37, de Palma",311184.77,311184.77,1]
[null,null,"Licitació - Obres d'execució d'un edifici de 42 habitatges de protecció pública i aparcaments en la c/ Cos, 49-53, de Son Servera, Mallorca",1162729.02,1162729.02,1]
[null,null,"Licitació - Obres d'execució d'un edifici de 22 habitatges de protecció pública en la c/ Vaig moldre Nou, núm. 1, de Vilafranca de Bonany, Mallorca",88585.35,88585.35,1]
[null,null,"Licitació - Obres d'execució d'un edifici de 57 habitatges tutelats i centre de dia en la c/ Cuba, És Molinar, de Palma",2262078,2262078,1]
[null,null,"Licitació - Obres d'execució de 43 habitatges de protecció pública i aparcament en la c/ Brolleu, de Palma (Mallorca)",599802.62,599802.62,1]
[null,null,"Licitació - Obres d'execució d'un edifici de 6 habitatges de protecció pública en Santa Eugenia (Mallorca)",300000,300000,1]
[null,null,"Licitació - Construcció d'un edifici d'onze habitatges de protecció pública a Coll d'en Rabassa, Palma (Mallorca) ",428753.6,428753.6,1]
[null,null,"Licitació - Construcció de dos edificis de 12 i 22 habitatges de protecció pública i aparcaments en la c/ Juli Ramis de Marratxí",1164352,1164352,2]
[null,null,"Licitació - Construcció de nou habitatges de protecció pública a Inca (Mallorca)",418104,418104,1]
[null,null,"Licitació - Execució de les obres d'edificació de 48 habitatges de protecció pública i aparcaments en l'Av. S'Olivera, de Magaluf, Calviá ",489063.03,489063.03,1]
[null,null,"Licitació - Construcció d'un edifici de sis habitatges de protecció pública a Puigpunyent (Mallorca)",220934,220934,1]
[null,null,"Licitació - Construcció d'un edifici de nou habitatges de protecció pública as Migjorn Gran (Menorca)",339633,339633,1]
[null,null,"Licitació - Construcció d'un edifici de sis habitatges de protecció pública a la Ribera, Palma ",231041,231041,1]
[null,null,"Licitació - Construcció d'un edifici de quinze habitatges de protecció pública a Sant Llorenç des Cardassar (Mallorca) ",535675,535675,1]
[null,null,"Licitació - Execució de les obres pendents de 38 habitatges de protecció pública, distribuïdes en dos edificis, de 8 habitatges, el primer, i de 30 habitatges i aparcament, el segon, en la c/ Josep Togores, núm. 6 i 12, de Palma ",971859,971859,1]
[null,null,"Licitació - Construcció d'un edifici d'onze habitatges de protecció pública i aparcaments en Fornells, Es Mercadal (Menorca)",481208,481208,1]
[null,null,"Licitació - 25 habitatges carrer Lope de Vega, Palma (Mallorca)",820916,820916,1]
[null,null,"Licitació - Execució de les obres de deu habitatges de protecció pública en la c/ de Pere Estelrich Fuster, de Santa Margalida (Mallorca).",352268,352268,1]
[null,null,"Licitació - Execució de les obres per a la construcció de 18 allotjaments dotacionals a Esporles (Mallorca). ",645036,645036,1]
[null,null,"Licitació - Execució de les obres d'un edifici de trenta-cinc allotjaments dotacionals en la c/ Pintor Vives, des Castell (Menorca) ",1296119.3999999999,1296119.3999999999,1]
[null,null,"Licitació - Execució de les obres d'un edifici de disset allotjaments dotacionals en la c/ Alacant, de Sant Ferran de Ses Roques (Formentera)",632219,632219,1]
[null,null,"Licitació - Execució de les obres de dos habitatges en la c/ Vinyes, 7- 9, d'Artà, Mallorca",65436,65436,1]
[null,null,"Licitació - Execució de les obres de quinze habitatges de protecció pública en la c/ Guillem Martí i Coll de Binissalem (Mallorca)",638733.56999999995,638733.56999999995,1]
[null,null,"Redacció dels projectes bàsic i d'execució, la direcció facultativa i la coordinació en matèria de seguretat i salut de les obres d'un edifici de 12 habitatges de protecció pública d'Alaior (Menorca), en el marc del Pla de Recuperació, Transformació i Resiliència - Finançat per la Unió Europea – NG EU",265531.27,201865.86,2]
[null,null,"Assistència tècnica en arquitectura tècnica, estructura i instal·lacions d'un edifici de 24 habitatges de protecció pública en C/Bonavida, 2, de Peguera (Calvià, Mallorca), dividit en tres lots. Contracte finançat per la Unió Europea en el marc del Pla de Recuperació, Transformació i Resiliència – NextGenerationEU",172535.73,93465.16,1]
[null,"TOTAL",48,{"$f":"SUM(D15:D62)","v":94153854.489999995},{"$f":"SUM(E15:E62)","v":81862001.719999969},{"$f":"SUM(F15:F62)","v":2428}]
[]
[]
[]
[null,"COMP + INV","Fons assignats","Mobilitzat","Excutat","% Iniciada mobilització s/assignat ","% Executat s/ mobilitzat","% Executat s/ assignat "]
[null,"C02",{"$f":"J9+J10","v":97701700},{"$f":"SUM(D15:D62)","v":94153854.489999995},{"$f":"SUM(E15:E62)","v":81862001.719999969},{"$f":"D68/C68","v":0.96368696235582385},{"$f":"E68/D68","v":0.86944928769426499},{"$f":"E68/C68","v":0.83787694298052096}]
[]
["Actuacions AGE"]
[null,"Component + Inversió","Descripció","Executat","Beneficiaris","Dades beneficiaris"]
[null,"C02.I01","Subvenció – PIREP Local: Ajudes per a la rehabilitació d'edificis de tituralitat pública en el marc del PRTR (línia 1)",{"$f":"1963740.13+1114698.28+328681.52+824835.56+236999.4+790317.84+234535.28+1339623.13+408875","v":7242306.1400000006},9,"Aj. Sóller, Aj. Consell, Aj. Es Castell. Aj Selva, Aj. Es Migjorn Gran, Aj. Vilafranca de Bonany, Aj. Sant Llorenç des Cardassar, Aj. Santa Eugènia,  Consell de Mallorca"]
[null,null,"Subvenció – PIREP Local: Ajudes per a la rehabilitació d'edificis de tituralitat pública en el marc del PRTR (línia 2) PROVISIONAL",{"$f":"3000000+236470.64+3000000+1080784.12","v":7317254.7600000007},4,"Consell de Menorca (Sa Granja Rural Lab), Aj. Lloseta (Reforma antic Ajuntament), Aj. Calvià (Rehabilitació del centre d'innovació ambiental i transició ecològica Finca pública de Galatzó), Aj. Inca (Rehabilitació de l'edifici principal Quarter General Luque)"]
[null,"C02.I06","Subvemció-Ajudes per a l'elaboració de projectes pilot de Plans d'Acció locals de l'Agenda Urbana espanyola   ",200000,1,"Consell de Menorca"]
[null,"TOTAL",3,{"$f":"SUM(D72:D74)","v":14759560.900000002},{"$f":"SUM(E72:E74)","v":14}]

{"sheet":"Empreses i autònoms","index":13,"n_rows":50,"n_cols":10,"rows_kept":50,"cut":false,"hidden":false,"merged":[[47,1,48,1],[47,5,47,8],[48,5,48,8],[49,5,49,8],[42,1,44,1],[42,5,42,8],[43,5,43,8],[44,5,44,8],[45,1,46,1],[45,5,45,8],[46,5,46,8],[13,1,15,1],[24,5,24,8],[25,5,25,8],[26,5,26,8],[35,5,35,8],[31,1,41,1],[25,1,30,1],[27,5,27,8],[28,5,28,8],[29,5,29,8],[30,5,30,8],[41,5,41,8],[38,5,38,8],[39,5,39,8],[40,5,40,8],[31,5,31,8],[32,5,32,8],[33,5,33,8],[36,5,36,8],[37,5,37,8],[34,5,34,8]]}
["ÀREA ","Empreses i autònoms"]
[]
["Components"]
[null,"C13.","C13. Impuls a la pime"]
[]
[]
["Assignació CAIB"]
[null,"Component i Inversió","ASSIGNACIÓ 2020","ASSIGNACIÓ 2021","ASSIGNACIÓ 2022","ASSIGNACIÓ 2023","ASSIGNACIÓ 2024","ASSIGNACIÓ 2025","ASSIGNACIÓ 2026","TOTAL"]
[null,"C13.I04.",null,null,1440484,1440484,null,null,null,2880968]
[null,"TOTAL",{"$f":"SUM(C9)","v":0},0,1440484,1440484,0,0,0,{"$f":"SUM(J9)","v":2880968}]
[]
["Actuacions CAIB"]
[null,"Component + Inversió","Descripció","Mobilitzat","Executat","Beneficiaris"]
[null,"C13.I4","Subvenció - Programa de modernització del comerç (Fons Tecnològic) 2022",1354055,1253176.79,60]
[null,null,"Subvenció - Programa de modernització del comerç (Fons Tecnològic) 2023",1354055,789896.95,53]
[null,null,"Projecte temporal – Fons Tecnològic",130367.01,130367.01,1]
[null,"TOTAL",3,{"$f":"SUM(D14:D16)","v":2838477.01},{"$f":"SUM(E14:E16)","v":2173440.75},{"$f":"SUM(F14:F16)","v":114}]
[]
[]
[]
[null,"COMP + INV","Fons assignats","Mobilitzat","Excutat","% Iniciada mobilització s/assignat ","% Executat s/ mobilitzat","% Executat s/ assignat "]
[null,"C13",{"$f":"J10","v":2880968},{"$f":"SUM(D14:D16)","v":2838477.01},{"$f":"SUM(E14:E16)","v":2173440.75},{"$f":"D22/C22","v":0.98525114128306868},{"$f":"E22/D22","v":0.76570665971326646},{"$f":"E22/C22","v":0.75441336037054207}]
[]
["Actuacions AGE"]
[null,"Component + Inversió","Descripció","Executat","Beneficiaris","Dades beneficiaris"]
[null,"C13.I2","Subvenció – Ajudes a la innovació oberta a través de la iniciativa Activa Startups",39730,1,"Public Affairs Experts SL (Ferreries)"]
[null,null,"Subvenció – Ajudes a la innovació oberta a través de la iniciativa Activa Startups",565383,15,"15 EMPRESES. Les de 40.000 € són: Dynatel Systems SL, Matilde Rebassa Gomila; Jardineria Mallorquina Pujol"]
[null,null,"Ajudes dirigides a impulsar el creixement de les PIMES a través de la iniciativa \"Activa Creixement\"",209100,34,"Fresh Dinosaurs, SL (B57980799): 6.150€;\nDIO2 Asesoria Energética, SL (B57703779): 6.150€; Asesora, S.C. (J10637478): 6.150€; Potencia Alquiler de Maquinaria, S.L.U. (B57982530): 6.150€; Redrapid balear SLU (B57321192): 6.150€; Davall Sa Volta, SL (B57300535): 6.150€; Inmuebles Sa Galera SL (B57225740): 6.150€; Javier Pons (B57080558): 6.150€; Searebbel (B42842898): 6.150€; Toledo Comercialy Representaciones, SL (B07512221): 6.150€; Distribuidora Rotger (B07039514): 6.150€; Suliar SA (A07129976): 6.150€; Materiales Construccion Galmes (A07077910): 6.150€; Kimberley Diaz Jimenez (***9737***): 6.150€; Virginia Torrecilla Reyes (***7322**): 6.150€; Joan Garau Figuerola (***3842**): 6.150€; "]
[null,null,"Ajudes dirigides a impulsar la innovació oberta a través de la iniciativa «Activa Startups» amb domicili fiscal a les Illes Balears 2023",389585,11,"11 empreses: Dra Balear, SL (B57104358) 40.000€; Agrup Inno Tech, SL (B56233778) 40.000€; Ansa per ansa menorca, SL (B16668154) 40.000€; Solucions Informàtiques Icono, SL (B57043135) 40.000€; Entomo Lab, SL (B13723242) 40.000€; Fundación Handisport (G57468035) 39.785€; Servinautic Care, SL (B57592107) 40.000€; Planta Cero Mallorca, SL (B16638710) 14.900€; Customia Builder, SL (B57839888); Vivien Bodnar, SL (B10754950 40.000€; Terramar Inversiones 2020, SLU (B01788934) 14.900€."]
[null,null,"Ajudes dirigides a impulsar la transformación digital a través de la iniciativa «Activa Industria 4.0»",111,15,"Per ara 14 empreses: Distribuidora Alimentaria Mallorquina, SAU (A07034036): 7.400€; Joan Garau Figueroa: 7.400€; Imprenta Bahia, SL (B07110539): 7.400€; Imprenta Bristol, SL (B07703705): 7.400€; Alfernox, SL (B57205619): 7.400€; Agropecuaria Son Vich de Superna, SL (B57373367): 7.400€; Mynterior Mallorca, SL (B5792310): 7.400€;  DIS-PER Albero (B57215089): 7.400€; Hierros 2012, SLU (B86564895): 7.400€; Poraxa Mallorca, SL (B07175615): 7.400€; Polivas, SL (B07472111): 7.400€; Ansa per Ansa Menorca, SL (B16668154): 7.400€; Carpinteria mecánica de Campanet, SLU (B07612997): 7.400€; Queseria Menorquina, SL (B57619868): 7.400€;"]
[null,null,"\"Activa Ciberseguretat\"",40660,19,"Affilired, SL (B57642928); Redrapid Balear, SLU (B57321192); Distribuidora Rotger, SL (B07039514); Grup Cupama, SL (B07759269); Nex Romantic Central Services, SL (B57422297); Nautica Viamar, SA (A07244049)"]
[null,"C13.I3","Subvenció – Digitalització d'empreses del segment I en el marc de l'agenda Espanya digital 2025, Programa Kit Digital",12770076.189999999,1445,"Petites i mitjanes empreses IB de 10 a menys de 50 treballadors"]
[null,null,"Subvenció – Digitalització d'empreses del segment II en el marc de l'agenda Espanya digital 2025, Programa Kit Digital",8494109.3100000005,1826,"Petites i mitjanes empreses IB de 3 a menys de 10 treballadors"]
[null,null,"Subvenció – Digitalització d'empreses del segment III en el marc de l'agenda Espanya digital 2025, Programa Kit Digital",24749388.620000001,9036,"Petites i mitjanes empreses IB de 0 a menys de 3 treballadors"]
[null,null,"Ajudes destinades a la digitalització de comunitats de bens, societats civils professionals i explotacions agraries de titularitat compartida del segment I, II, III en el marc de l'agenda Espanya digital 2025, Programa Kit Digital.",877879.44,259,"CB, SCP i Explotacions agraries"]
[null,null,"Resolución de E.P.E Red.es por la que se convocan ayudas destinadas a digitalizar empresas del segmento IV(entre 50 y menos de 100 empleados) y el segmento V (entre 100 y menos de 250 empleados). Programa Kit Digital.",2091000,79]
[null,null,"Subvenció - Creació de la xarxa d'oficines Acelera PIME per a entorns rurals.",735140,2,"Consell de Mallorca, Federació de la petita i mitjana empresa de Menorca"]
[null,null,"Ajudes creació xarxa oficines ACCELERA PIME 2022",788661.6,2,"Col. Oficial Enginyers industrials de Balears: 381.941,60€; Confederació nacional de la construcció (CNC): 406.720€"]
[null,null,"Resolución de E.P.E Red.es por la que se convocan ayudas a pequeñas y medianas empresas para la contratación de Servicios de Asesoramiento para la Transformación Digital. Sector servicios de I.E.G. (KIT CONSULTING)",138000,10,"LEVEL ELECTRONICS ,S.L. (B07061856); GENER ENERGIES RENOVABLES DE LES ILLES BALEARS (B16655896); BIOLINEAINT SL (B57056814); MAGIC CATAMARANS, S.L. (B17557893); SINENSIS TECH SL (B57412959); QUIÑOBUS, S.L. (B57759516); HOTELINKING, SL (B57943185); TRANSACOBO, S.L. (B57213928); NAUTICAL ADVENTURES, S.L. (B57501249)"]
[null,null,"Resolución de E.P.E Red.es por la que se convocan ayudas a pequeñas y medianas empresas para la contratación de Servicios de Asesoramiento para la Transformación Digital. Sector agrícola (KIT CONSULTING)",72000,6,"B16607780 CAN ESCARRER SL B57980088 FUNKY FAMILY SL B57796922 ATZABARA IBIZA GARDEN DESIGN SL B07774003 PROFITUR INVERSION SL B09999731 JARDINERIA MALLORQUINA PUJOL B07894850 ATA ECOTECNOLOGIA E HIGIENE DEL AGUA SL  , B07722713 CASA CRISTIAN SLU "]
[null,null,"Resolución de E.P.E Red.es por la que se convocan ayudas a pequeñas y medianas empresas para la contratación de Servicios de Asesoramiento para la Transformación Digital (KIT CONSULTING)",4889190,399]
[null,null,"Resolución E.P.E Red.es de convocatoria de ayudas para digitalizar comunidades de bienes, sociedades civiles con objeto mercantil, sociedades civiles profesionales y explotaciones agrarias de titularidad compartida. Segmento I, II, III. Sector agrícola.",41000,13]
[null,"C13.I4","Subvenció - suport a mercats, zones urbanes comercials, comerç no sedentari i canals curts de comercialització",913450.2,1,"Ajuntament Santa Eulària des Riu"]
[null,null,"Subvenció - PIME AGROALIMENTÀRIA 2021. Comerç a l'engròs de productes alimentaris i begudes",180000,1]
[null,null,"Subvencions_Mercats rurals sostenibles 2022",393634.4,1,"Consell de Mallorca (Activitat comercial zones rurals (24 municipis)"]
[null,"C13.I5","Subvenció - Línia digitalització de federacions i associacions d'exportadors 2021",5783,1,"SEBIME.  Associació Espanyola de Fabricants de Bijuteria (Maó)"]
[null,null,"Subvenció- Línia digitalització de federacions i associacions d'exportadors 2023",1399,1,"SEBIME.  Associació Espanyola de Fabricants de Bijuteria (MAÓ)"]
[null,"C13.I11","refiançament PROGRAMA D'AVALS PER A PIMES ANY 2025 MRR Reglament (UE) 651/2014 SA.112149",57565498.82,754]
[null,null,"refiançament PROGRAMA D'AVALS PER A PIMES ANY 2025 MRR REG (UE) 2023/2831 de minimis, General",3970625.69,128]
[null,"TOTAL",24,{"$f":"SUM(D26:D49)","v":119921405.27000001},{"$f":"SUM(E26:E49)","v":14059}]

{"sheet":"Salut i benestar","index":14,"n_rows":55,"n_cols":10,"rows_kept":55,"cut":false,"hidden":false,"merged":[[18,1,31,1],[32,1,34,1],[52,5,52,8],[53,5,53,8],[54,5,54,8],[36,1,40,1],[41,1,42,1]]}
["ÀREA ","Salut i benestar"]
[]
["Components"]
[null,"C18.","C18. Renovació i ampliació de les capacitats del Sistema Nacional de Salut"]
[]
[]
["Assignació CAIB"]
[null,"Component i Inversió","ASSIGNACIÓ 2020","ASSIGNACIÓ 2021","ASSIGNACIÓ 2022","ASSIGNACIÓ 2023","ASSIGNACIÓ 2024","ASSIGNACIÓ 2025","ASSIGNACIÓ 2026","TOTAL"]
[null,"C18.I01.",null,8667580,13395306.82,null,null,null,null,22062886.82]
[null,"C18.I02.",null,98292.38,145986.54,145986.54,null,null,null,390265.46]
[null,"C18.I03.",null,466263.39,114897.60000000001,null,null,null,null,581160.99]
[null,"C18.I04.",null,102010.85,120933.02,2125978.89,null,null,null,{"$f":"SUM(C12:I12)","v":2348922.7600000002}]
[null,"C18.I05.",null,null,null,{"$f":"649725.32+853138.51","v":1502863.83},null,null,null,{"$f":"SUM(C13:I13)","v":1502863.83}]
[null,"C18.I06.",null,null,null,961782,null,null,null,{"$f":"SUM(D14:I14)","v":961782}]
[null,"TOTAL",{"$f":"SUM(C9:C14)","v":0},9334146.620000001,13777123.979999999,4736611.26,0,0,0,{"$f":"SUM(J9:J14)","v":27847881.859999999}]
[]
["Actuacions CAIB"]
[null,"Component + Inversió","Descripció","Mobilitzat","Executat","Beneficiaris"]
[null,"C18.I1","Licitació – Renovació de tres acceleradors linials d’alta energia i altres prestacions (tipus 1) i l’ampliació d’un accelerador linial per a tractaments de radiocirurgia i SBRT (tipus 2) a l’HU Son Espases",10205653,7925500,1]
[null,null,"Licitació – Subministrament i obra, clau en mà, amb instal·lació i posada en servei d'una sala de ressonància magnètica de 1,5 T i dels seus elements auxiliars pel servei de Radiologia de l'Hospital Universitari Son Llàtzer (HUSLL) de Palma",1297120,1282600,1]
[null,null,"Licitació – Subministrament  d'un equip de TC (tomografia computaritzada) Tipus 1, lot 1 AM 2021/102 del Pla INVEAT. Servei de Radiologia de l'Hospital de Manacor (Mallorca), pel Servei Salut de les Illes Balears (IBSalut)",408035.5,344300.59899999999,1]
[null,null,"Licitació – Subministrament d”un equip de TC (Tomografia Computeritzada),  pel servei de radioteràpia de l'Hospital Universitari de Son Espases (HUSE)",508269.99,508200,1]
[null,null,"Licitació -Submininistament d”un equip de TC (tomografia computaritzada) Tipus 1 lot AM 2021/102 del Pla INVEAT, pel servei de Radiologia de l'Hospital Comarcal d'Inca (Mallorca)",408035.5,344300.59899999999,1]
[null,null,"Licitació – Subministrament d”un equip de SPECT-TC Banda 2, del lot 2 AM 2021/105 pel servei de Medicina Nuclear de l'Hospital Universitari Son Espases, incloent instal·lació.",752510.66,634969.08900000004,1]
[null,null,"Licitació -Subministrament Sala d'Hemodinàmica Tipus 3, LOT 3 AM 2021/100 del Pla INVEAT pel servei de Cardiologia de l'Hospital Universitari Son Espases de Palma",870358.35,868598.5,1]
[null,null,"Licitació –Subministrament d”un equip de Radiologia Neurovascular intervencionista, lot 2 AM 2021/101 del Pla INVEAT pel servei de Radiologia de l'Hospital Universitari Son Espases de Palma, i la redacció del projecte",1226052.8899999999,1213953.07,1]
[null,null,"Licitació -Subministrament de dos equips TC (tomografia computaritzada) amb destinació al Servei de Radiologia de l'Hospital Universitari de Son Llàtzer,",1156019.96,1065735.314,1]
[null,null,"Licitació – Subministrament de dos equips de TC (tomografia computaritzada) pel servei de radiologia del HUSE (Mallorca)",2344711.0699999998,2165303.4700000002,1]
[null,null,"Licitació – Subministrament de dos equips de TC Tipus 2, Lot 2 AM 2021/102 del Pla InvEAT pel servei de Radiologia de l'HUSE de Palma (Mallorca)",1156019.96,1065735.314,1]
[null,null,"Licitació - Subministrament, respectuós amb el medi ambient, d'un equip de TC Tipus 2, LOT 2 AM 2021/102 del Pla INVEAT pel  servei de Radiologia de l'Hospital Can Misses (Eivissa)",578009.98,393125.5,1]
[null,null,"Licitació - Subministrament d'un equip PT TC, banda 2, lot 2 de l'AM 2021/085 d'altes prestacions pel Servei de Medicina Nuclear de HUSE Mallorca SSCC PD 280/22",2583723.85,2522850,1]
[null,null,"Licitació – Subministrament de dos equips, de Radiologia vascular intervencionista, lot 1 AM 2021/101 del Pla INVEAT, amb destinació al servei de Radiologia de l'Hospital Universitari de Son Espases, Palma.",1755435.72,1610176.04,1]
[null,"C18.I2","Adquisició ensobradora automàtica programa càncer",11579.7,11579.7,1]
[null,null,"Subministrament de col·lectors per a la detecció de sang oculta en femta amb cessió d'equips per al programa de detecció precoç de càncer de còlon i recte de les illes Balears",426888,142477.5,1]
[null,null,"Creatividad, branding, campanya PDPC",21901,21901,1]
[null,"C18.I3","Projecte temporal -Reforç dels sistemes d’informació de vigilància epidemiològica",105073.01,105073.01,1]
[null,"C18.I4","Subministrament, instal·lació i posada en marxa d'un exoesquelet pediàtric per al programa de marxa per a nens amb trastorn motor greu de l'Illa de Mallorca",190000,190000,1]
[null,null,"Subministrament, instal·lació i posada en marxa d'un equip de cromatografia líquida acoblat a espectrometria de masses en tàndem, triple quadrupol (LC-MS/MS) per al Servei d'Anàlisis Clíniques de l'Hospital Universitari Són Espases.",321838.45,321838.45,1]
[null,null,"Formació contínua professionals sanitaris",93960.83,93960.83,1]
[null,null,"Adaptació de NEXA al projecte UNICAS del IB-*Salut, en el marc del Pla de Recuperació, Transformació i Resiliència - Finançat per la Unió Europea – NextGenerationEU",301500]
[null,null,"Ampliació Renovació infraestructura de virtualització corporativa dins de l'àmbit de UNICAS",440843.33,414159.39,1]
[null,"C18.I5","Subministrament, instal·lació i posada en marxa d'un robot d'alta capacitat de preparació de llibreries d'ADN per a la Unitat de Diagnòstic Molecular i Genètica Clínica de l'Hospital Universitari Són Espases, dependent del Ib-*Salut.",246004.9,237296.71,1]
[null,null,"Subministrament, instal·lació i posada en marxa d'un seqüenciador de tercera generació basat en lectures llargues, un termociclador digital, un seqüenciador capil·lar i sis sistemes de congelació de reactius i mostres per a la Unitat de Diagnòstic Molecular i Genètica Clínica de l'Hospital Universitari Són Espases",405606.33199999999]
[null,"C18.I6","Creació d'un espai de dades del Servei de Salut de les Illes Balears per a la seva posterior integració a l'Espai de Dades Nacional i Europeu,",1329522.8600000001,1169828,1]
[null,"TOTAL",26,{"$f":"SUM(D19:D44)","v":29144674.841999996},{"$f":"SUM(E19:E44)","v":24653462.084999997},{"$f":"SUM(F19:F44)","v":24}]
[null,"Sobremobilització",null,148843.32]
[]
[]
[null,"COMP + INV","Fons assignats","Mobilitzat","Excutat","% Iniciada mobilització s/assignat ","% Executat s/ mobilitzat","% Executat s/ assignat "]
[null,"C18",{"$f":"J9+J10+J11+J12+J13+J14","v":27847881.859999999},28995831.52,{"$f":"SUM(E19:E44)","v":24653462.084999997},{"$f":"D50/C50","v":1.0412221534754815},{"$f":"E50/D50","v":0.85024159655484155},{"$f":"E50/C50","v":0.8852903861392637}]
[]
["Actuacions AGE"]
[null,"Component + Inversió","Descripció","Executat","Beneficiaris","Dades beneficiaris"]
[null,"C18.I2","Subvencions – Accions destinades a la promoció d'estils de vida saludable mitjançant la creació o rehabilitació d'entorns saludables 2021",{"$f":"160000","v":160000},1,"Aj. Calvià  (2 parcs biosaludables)"]
[null,"TOTAL",1,{"$f":"SUM(D54:D54)","v":160000},1]

{"sheet":"Igualtat","index":15,"n_rows":19,"n_cols":10,"rows_kept":19,"cut":false,"hidden":false,"merged":[[13,1,14,1]]}
["ÀREA ","Igualtat"]
[]
["Components"]
[null,"C22.","C22. Pla de xoc per a l'economia de les cures i el reforçament de les polítiques d'inclusió"]
[]
[]
["Assignació CAIB"]
[null,"Component i Inversió","ASSIGNACIÓ 2020","ASSIGNACIÓ 2021","ASSIGNACIÓ 2022","ASSIGNACIÓ 2023","ASSIGNACIÓ 2024","ASSIGNACIÓ 2025","ASSIGNACIÓ 2026","TOTAL"]
[null,"C22.I04.",null,465036.62,1085085.44,399726.39,null,null,null,1949848.4500000002]
[null,"TOTAL",{"$f":"SUM(C9)","v":0},465036.62,1085085.44,399726.39,0,0,0,{"$f":"SUM(J9)","v":1949848.4500000002}]
[]
["Actuacions CAIB"]
[null,"Component + Inversió","Descripció","Mobilitzat","Executat","Beneficiaris"]
[null,"C22.I4","Conveni Centre Crisi Consell Insular Mallorca + Addenda",1000000,1000000,1]
[null,null,"Conveni Centre Crisi 24 hores CIMENORCA-IBDONA (Conveni)",400000,400000,1]
[null,"TOTAL",2,{"$f":"SUM(D14:D15)","v":1400000},{"$f":"SUM(E14:E15)","v":1400000},2]
[]
[null,"COMP + INV","Fons assignats","Mobilitzat","Excutat","% Iniciada mobilització s/assignat ","% Executat s/ mobilitzat","% Executat s/ assignat "]
[null,"C22",{"$f":"J9","v":1949848.4500000002},{"$f":"D14+D15","v":1400000},{"$f":"E14+E15","v":1400000},{"$f":"D19/C19","v":0.71800451978716595},{"$f":"E19/D19","v":1},{"$f":"E19/C19","v":0.71800451978716595}]

{"sheet":"Industria","index":16,"n_rows":10,"n_cols":6,"rows_kept":10,"cut":false,"hidden":false,"merged":[[6,5,6,8],[8,5,8,8],[9,5,9,8],[7,5,7,8]]}
["ÀREA ","Industria"]
[]
["Components"]
[null,"C12.","C12. Política Industrial Espanya 2030"]
[]
["Actuacions AGE"]
[null,"Component + Inversió","Descripció","Executat","Beneficiaris","Dades beneficiaris"]
[null,"C12.I1","Resolución de la Secretaría de Estado de Digitalización e Inteligencia Artificial, por la que se efectúa la convocatoria para la concesión de ayudas mediante el desarrollo de productos y servicios tecnológicos para espacios de datos.",181596.6,1,"IT TRAVEL SERVICES SL (B57844920)"]
[null,"C12.I2","Orden ICT/1306/2022, de 21 de diciembre, por la que se modifica la Orden ICT/739/2022, de 28 de julio, y se efectúa la convocatoria mediante tramitación anticipada correspondiente al año 2023. PERTE NAVAL",946006.4,2,"ESEA PROPULSION, SL (B06798441): 534.175,80€; V2 ASTILLEROS Y EMBARCACIONES (B16502387): 411.830,60€"]
[null,"TOTAL",2,{"$f":"SUM(D8:D9)","v":1127603},{"$f":"SUM(E8:E9)","v":3}]

{"sheet":"Cicle de l'aigua","index":17,"n_rows":55,"n_cols":10,"rows_kept":55,"cut":false,"hidden":false,"merged":[[54,5,54,8],[31,5,31,8],[39,5,39,8],[43,5,43,8],[44,1,45,1],[44,5,44,8],[45,5,45,8],[46,1,53,1],[46,5,46,8],[47,5,47,8],[48,5,48,8],[49,5,49,8],[50,5,50,8],[51,5,51,8],[52,5,52,8],[53,5,53,8],[16,1,17,1],[32,5,32,8],[33,5,33,8],[34,5,34,8],[35,5,35,8],[18,1,21,1],[32,1,42,1],[42,5,42,8],[36,5,36,8],[37,5,37,8],[38,5,38,8],[41,5,41,8],[40,5,40,8]]}
["ÀREA ","Cicle de l'aigua"]
[]
["Components"]
[null,"C05.","C05. Preservació de lespai litoral i els recursos hídrics"]
[]
[]
["Assignació CAIB"]
[null,"Component i Inversió","ASSIGNACIÓ 2020","ASSIGNACIÓ 2021","ASSIGNACIÓ 2022","ASSIGNACIÓ 2023","ASSIGNACIÓ 2024","ASSIGNACIÓ 2025","ASSIGNACIÓ 2026","TOTAL"]
[null,"C05.I01.",null,3414391,null,null,null,null,null,{"$f":"SUM(C9:I9)","v":3414391}]
[null,"C05.I02.",null,null,1554740,null,null,null,null,{"$f":"SUM(C10:I10)","v":1554740}]
[null,"C05.I03.",null,null,7967980,null,null,null,null,7967980]
[null,"TOTAL",{"$f":"SUM(C9:C11)","v":0},3414391,9522720,0,0,0,0,12937111]
[]
[]
[]
[null,"Component + Inversió","Descripció","Mobilitzat","Executat","Beneficiaris"]
[null,"C05.I1","Subvencions públiques per a la millora de l'abastiment d'aigua i reducció de pèrdues a les xarxes en els municipis petits i mitjans de les Illes Balears, finançats per la Unió Europea-NextGeneration EU.",2606098.25,2282932.52,19]
[null,null,"Projecte inversió. Incorporació personal. Pla millora abastament aigua",71579.83,71579.83,1]
[null,"C05.I3","Subministrament i instal·lació de l'instrumental de mesura i control de punts d'aigua per a l'automatització de la xarxa de control del Domini Públic Hidràulic de les Illes Balears, amb càrrec als fons europeus procedents del Pla de Recuperació, Transformació i Resiliència, finançat per la Unió Europea (Next Generation UE)",2700168.99,{"$f":"1561660.04+1138508.95","v":2700168.99},2]
[null,null,"Subministrament i instal·lació de comptadors ultrasònics de petit calibre per a l'automatització de la xarxa de control de consums hídrics de la Demarcació Hidrogràfica de les Illes Balears, com a execució de les actuacions incloses en la segona fase del PERTE de digitalització del cicle de l'aigua a les Illes Balears",3199732.48,3199732.48,1]
[null,null,"Convocatòria de subvencions per a la concessió d’ajuts per finançar projectes per a la digitalització del cicle urbà de l’aigua en els municipis amb població inferior a 20.000 habitants de les IB, PERTE digitalització cicle de l'aigua, PRTR",1318800]
[null,null,"Servei de disseny i implantació del sistema de digitalització del cicle de l'aigua de l'Agència Balear de l'Aigua i de la Qualitat Ambiental, en el marc del Pla de Recuperació, Transformació i Resiliència - Finançat per la Unió Europea - NextGenerationEU.",1581590.58]
[null,"TOTAL",6,11477970.130000001,{"$f":"SUM(E17:E20)","v":8254413.8200000003},{"$f":"SUM(F17:F20)","v":23}]
[]
[]
[]
[null,"COMP + INV","Fons assignats","Mobilitzat","Excutat","% Iniciada mobilització s/assignat ","% Executat s/ mobilitzat","% Executat s/ assignat "]
[null,"C05",{"$f":"J12","v":12937111},11477970.130000001,{"$f":"SUM(E17:E20)","v":8254413.8200000003},{"$f":"D28/C28","v":0.88721277339276139},{"$f":"E28/D28","v":0.71915275318807614},{"$f":"E28/C28","v":0.63804150864903297}]
[]
[]
["Actuacions AGE"]
[null,"Component + Inversió","Descripció","Executat","Beneficiaris","Dades beneficiaris"]
[null,"C05.I1","Licitació - Redacció del projecte constructiu, l'execució de les obres i la seva posada en marxa de la \"Ampliació i remodelació de la EDAR de Palma II (adjudicada)",118535363.09999999,3,"Técnicas de Desalinización de Agua, S.A. (TEDAGUA) + LANTANIA, S.A.U. + S.A. DE OBRAS Y SERVICIOS, COPASA"]
[null,null,"Licitació – Serveis d'Assistència Tècnica a la Direcció Facultativa en la Supervisió de la Redacció del Projecte Constructiu, en la Supervisió i Control de l'Execució de les Obres i la seva Posada en marxa, en la Coordinació de Seguretat i Salut i en la Supervisió i Control Mediambiental de les Obres de “Ampliació i Remodelació de la EDAR de Palma II” (adjudicada)",2406638.85,1,"AYESA INGENIERIA Y ARQUITECTURA, S.A.U."]
[null,null,"Serveis d'Assistència Tècnica per a l'elaboració de l'estudi d'alternatives, els estudis ambientals i la redacció dels projectes constructius de l'EDAR de Can Picafort i de l'Emisari submarí. T.M. Santa Margalida (Mallorca)",535082.57999999996,1,"UTE INNCIVE-PROES"]
[null,null,"Execució d'infraestructures d'energia elèctrica, mitjançant reforç, adequació, adaptació o reforma d'instal·lacions de xarxa de distribució existent en servei, a realitzar per Edistribución Xarxes Digitals, SLU per a subministrament elèctric a EDAR Palma II (palma de mallorca), cofinançada amb el Mecanisme de recuperació i resiliència-Finançat per la Unió Europea-next Generation EU",262531.5,1,"EDISTRIBUCION REDES DIGITALES, S.L.U"]
[null,null,"Contracte derivat de l'Acord marc per a l'arrendament de maquinària autopropulsada amb conductor en l'àmbit territorial de la gerència d'illes Balears",16331.37,1,"Excavaciones Cotxu S.L."]
[null,null,"Contracte derivat de l'Acord marc per a l'arrendament de maquinària autopropulsada amb conductor en l'àmbit territorial de la gerència d'illes Balears",48702.5,1,"Excavaciones Cotxu S.L."]
[null,null,"Acord marc per a l'arrendament de maquinària autopropulsada amb conductor en l'àmbit territorial de la gerència d'illes Balears durant dues anualitats, en el marc del pla de recuperació, transformació i resiliència europeu-prtr.",14036,1,"FONT E HIJOS, S.A."]
[null,null,"contracte derivat de l'acord marc per a l'arrendament de maquinària autopropulsada amb conductor en l'àmbit territorial de la gerència d'illes balears durant dues anualitats, en el marc del pla de recuperació, transformació i resiliència europeu-prtr. a adjudicar per procediment obert simplificat. Núm. 1633131 ACT. REHAB. INFRAESTRU. CABRER, PRTR",65340,1,"MOTECAL SL"]
[null,null,"contracte derivat de l'acord marc per a l'arrendament de maquinària autopropulsada amb conductor en l'àmbit territorial de la gerència d'illes balears durant dues anualitats, en el marc del pla de recuperació, transformació i resiliència europeu-prtr. a adjudicar per procediment obert simplificat. Núm. 1633103 MILLORA EFIC ENERGÈTICA EDIF. P, PRTR",2904,1,"MOTECAL SL"]
[null,null,"Segona convocatòria del programa d'ajudes per a la millora de l'eficiència del cicle urbà de l'aigua, en el marc del PRTR",5998991.9000000004,1,"EMAYA EMPRESA MUNICIPAL D'AIGÜES I CLAVEGUERAM, S.A. (A07000029)"]
[null,null,"Tercera convocatoria del programa de ayudas para la mejora de la eficiencia del ciclo urbano del agua, en el marco del PRTR",369798.72,2,"Gestión de Servicios ubanos de Baleares i Andratx Obres Sanejament SL (Andratx)"]
[null,"C05.I2","Convocatòria de la Fundació Biodiversitat, per a actuacions dirigides a la restauració d'ecosistemes fluvials i reducció del risc d'inundació en entorns urbans espanyols a través de solucions basades en la naturalesa 2021 en el marc del  PRTR.",2211977.06,3,"Ajuntament Alcúdia, UIB i ADENA - WWF España"]
[null,"C05.I3","Primera convocatòria projectes de millora de l'eficiència del cicle urbà de l'aigua (PERTE Digitalització del cicle de l'aigua)",7502821.4199999999,1,"Sociedad General de Aguas de Barcelona S.A.U. (A08000234). Localització de les actuacions: Calvià, Algaida, Ariany, Costitx, Lloret de Vistalegre. Maria de la Salut, Montuïri, Porreres, Santa Eugènia, Sineu, Vilafranca de Bonany."]
[null,null,"Subministrament i muntatge d'instal·lació elèctrica i climatització en el radar mateorológico de Cap-*Blanc (Llucmajor, Mallorca).",196403.91,2,"Gestion Integral de mantenimientos y servicios auxiliares S.L. + Elite Performance s.l."]
[null,"C5.I4","Licitació – Subministrament de captadors de vímet per al projecte “actuacions de lluita contra l'erosió de la costa de balears per a l'augment de la seva resiliència i enfortiment del litoral enfront dels efectes del canvi climàtic 2022” (adjudicada)",66058.89,1,"Bruc BOAL SL"]
[null,null,"Licitació - Subministrament de corda de pita per a l'obra “actuacions de lluita contra l'erosió de la costa de balears per a l'augment de la seva resiliència i enfortiment del litoral enfront dels efectes del canvi climàtic 2022”  (adjudicada)",128876.93,1,"Antonio Donado Mazarron Martinez"]
[null,null,"Licitació - Subministrament d'elements de fusta tractada per a l'obra “actuacions de lluita contra l'erosió de la costa de balears per a l'augment de la seva resiliència i enfortiment del litoral enfront dels efectes del canvi climàtic 2022”  (adjudicada)",230167.98,1,"Maderas Cunill SA"]
[null,null,"Licitació - Subministrament d'elements de fusta de pi tractada, per a l'obra “Millora d'accessibilitat ordenada i correcta al domini públic marítim-terrestre de l'Illa de Formentera 2022\" (en avaluació, import mobilitzat)",541122.63,1,"MADERAS IMPREGNADAS PARA EL EXTERIOR, S.L."]
[null,null,"Licitació - Construcció de passarel·les de fusta serrada tractada per a l'obra: “millora d'accessibilitat ordenada i correcta al domini públic marítim-terrestre de l'illa de Formentera 2022\" (publicada, import mobilitzat)",495728.67,1,"HERMANOS PARROT SA"]
[null,null,"Suministrament d’elements de fixació, cargols i ancoratges per a les obres de Tragsa a les comarques dEivissa i Formentera.",100068.39,1,"INOX IBERICA S.A."]
[null,null,"Demolició mecànica i càrrega sobre contenidors de piscina, bar-restaurant i terrassa solàrieum a cala conills, Sant Elm",73511.94,1,"URCOTEX INMOBILIARIA, S.L.U."]
[null,null,"Subministrament de corda de pita, per a l'obra \"millora d'accessibilitat ordenada i correcta al domini públic maritimoterrestre de l'illa de Formentera 2022\"",64873.55,1,"Antonio Donado Mazarron Martinez"]
[null,"TOTAL",22,{"$f":"SUM(D33:D54)","v":139867331.88999996},{"$f":"SUM(E33:E54)","v":28}]

{"sheet":"Residus","index":18,"n_rows":34,"n_cols":10,"rows_kept":34,"cut":false,"hidden":false,"merged":[[33,5,33,8],[30,5,30,8],[31,5,31,8],[32,5,32,8],[14,1,20,1]]}
["ÀREA ","Residus"]
[]
["Components"]
[null,"C12.","C12. Política Industrial Espanya 2030"]
[]
[]
["Assignació CAIB"]
[null,"Component i Inversió","ASSIGNACIÓ 2020","ASSIGNACIÓ 2021","ASSIGNACIÓ 2022","ASSIGNACIÓ 2023","ASSIGNACIÓ 2024","ASSIGNACIÓ 2025","ASSIGNACIÓ 2026","TOTAL"]
[null,"C12.I03.",null,15876840.189999999,6532059.79,null,{"$f":"1932046.78+14231895","v":16163941.779999999},null,null,{"$f":"SUM(C9:I9)","v":38572841.759999998}]
[null,"TOTAL",{"$f":"SUM(C9:C9)","v":0},15876840.189999999,6532059.79,0,16163941.779999999,0,0,38572841.759999998]
[]
[]
[]
[null,"Component + Inversió","Descripció","Mobilitzat","Executat","Beneficiaris"]
[null,"C12.I3","Convocatòria per a l’any 2022 de subvencions per al suport a la implementació de la normativa de residus i el foment de l’economia circular a les Illes Balears finançat per la Unió Europea-Next Generation EU",15559303.390000001,14529396.439999999,36]
[null,null,"Convocatòria per a l’any 2023 de subvencions per al suport a la implementació de la normativa de residus a les Illes Balears finançat per la Unió Europea-Next Generation EU",6272059.7999999998,1585258.54,31]
[null,null,"Convocatòria de subvencions per al suport a la implementació de la normativa de residus i al foment de l'economia circular de les Illes Balears, per l'any 2024, 2025 i 2026, en el marc del Pla de Recuperació, Transformació i Resiliència",2764338.78,2764338.78,20]
[null,null,"Portal web i assistent basat en IA per a la Direcció General d'Economia Circular, Transició Energètica i Canvi Climàtic en el marc del Pla de Recuperació, Transformació i Resiliència - Finançat per la Unió Europea –NextGenerationEU",280463.62,255319.91,2]
[null,null,"Projecte inversió personal (convocatòria subvencions residus i economia circular) ",488650.66,488650.66,1]
[null,null,"Resolució del conseller d’Empresa, Autònoms i Energia, per la qual es concedeix una subvenció directa al Consell Insular de Mallorca per a la construcció de la planta de compostatge per a la fracció orgànica dels residus municipals (FORM) de Llucmajor, fase II, finançada per la Unió Europea – Next Generation EU, en el marc del Pla de Recuperació, Transformació i Resiliència",8366690,8366690,1]
[null,null,"Resolució del conseller d’Empresa, Autònoms i Energia, per la qual es concedeix una subvenció directa al Consell Insular de Mallorca per a la construcció de la planta de compostatge per a la fracció orgànica dels residus municipals (FORM) de Llucmajor, fase III, finançada per la Unió Europea – Next Generation EU, en el marc del Pla de Recuperació, Transformació i Resiliència",5865205,5865205,1]
[null,"TOTAL",7,{"$f":"SUM(D15:D21)","v":39596711.25},{"$f":"SUM(E15:E21)","v":33854859.329999998},{"$f":"SUM(F15:F21)","v":92}]
[]
[]
[null,"COMP + INV","Fons assignats","Mobilitzat","Excutat","% Iniciada mobilització s/assignat ","% Executat s/ mobilitzat","% Executat s/ assignat "]
[null,"C12.",{"$f":"J9","v":38572841.759999998},39596711.25,41512542.75,{"$f":"D26/C26","v":1.0265437920382043},{"$f":"E26/D26","v":1.0483836015547883},{"$f":"E26/C26","v":1.0762116778507222}]
[]
[]
[]
["Actuacions AGE"]
[null,"Component + Inversió","Descripció","Executat","Beneficiaris","Dades beneficiaris"]
[null,"C12.I3","Ordre TED/1211/2022, d'1 de desembre, per la qual s'estableixen les bases reguladores i s'efectua la convocatòria per a la concessió d'ajudes a l'impuls de l'economia circular.",320492.79999999999,1,"TmAlcudiaReciclatges (B57545303): 320.492,80€"]
[null,"C12.I5","CONVOCATORIA DE SUBVENCIONES, EN RÉGIMEN DE CONCURRENCIA COMPETITIVA, PARA EL IMPULSO DE LA ECONOMÍA CIRCULAR EN EL SECTOR DEL TEXTIL, DE LA MODA Y CONFECCIÓN Y DEL CALZADO, EN EL MARCO DEL PLAN DE RECUPERACIÓN, TRANSFORMACIÓN Y RESILIENCIA, PARA 2024",600642.21,1,"Adalmo S.L. (B07047525)"]
[null,"TOTAL",2,{"$f":"SUM(D32:D33)","v":921135.01},{"$f":"SUM(E32:E33)","v":2}]

{"sheet":"Govern obert","index":19,"n_rows":26,"n_cols":10,"rows_kept":26,"cut":false,"hidden":false,"merged":[[13,1,18,1]]}
["ÀREA ","Govern obert"]
[]
["Components"]
[null,"C02.","C02. Pla de rehabilitació d'habitatge i regeneració urbana"]
[]
[]
["Assignació CAIB"]
[null,"Component i Inversió","ASSIGNACIÓ 2020","ASSIGNACIÓ 2021","ASSIGNACIÓ 2022","ASSIGNACIÓ 2023","ASSIGNACIÓ 2024","ASSIGNACIÓ 2025","ASSIGNACIÓ 2026","TOTAL"]
[null,"C02.I05.",null,10234200,null,null,null,null,null,{"$f":"SUM(C9:I9)","v":10234200}]
[null,"TOTAL",{"$f":"SUM(C9:C9)","v":0},10234200,0,0,0,0,0,10234200]
[]
[]
[null,"Component + Inversió","Descripció","Mobilitzat","Executat","Beneficiaris"]
[null,"C02.I5","Reforma, rehabilitació integral i ampliació d'edificacions existents per al seu ús com a centre cultural Junyer-Canals a Llucalcari i com a habitatge adscrit.",452850.62,452850.62,1]
[null,null,"Obra de millora de l”eficiència energètica de les oficines de la Conselleria de Fons Europeus, Universitat i Cultura, situades al Carrer Sant Pere núm. 7 de Palma ",491205,491205,2]
[null,null,"Redacció projecte executiu, estudi de seguretat i salut i direcció dobra i resta dassistència tècnica segons PCAP",20000,20000,1]
[null,null,"Instal·lació fotovoltaica per autoconsum en el centre Son Rutllan. Passatge Cala Figuera. (Refinançament PIREP) ",58128,58128,1]
[null,null,"Obra per a la millora de l'eficiència energètica d'una part de l'Edifici Són Espanyol del Parc Bit en el marc del Pla de Recuperació, Transformació i Resiliència - Finançat per la Unió Europea – Next Generation EU",165000,165000,1]
[null,null,"Transferencia UIB per dur a terme actuacions incloses PIREP + aportació extra edifici Mateu Orfila i Ramon Llull i implementació planta tèrmica",12274077.02,12274077.02,1]
[null,"TOTAL",6,{"$f":"SUM(D14:D19)","v":13461260.640000001},{"$f":"SUM(E14:E19)","v":13461260.640000001},{"$f":"SUM(F14:F19)","v":7}]
[null,"Sobremobilització",null,3227060.64]
[null,"Sobreexecució",null,null,3227060.64]
[]
[]
[null,"COMP + INV","Fons assignats","Mobilitzat","Excutat","% Iniciada mobilització s/assignat ","% Executat s/ mobilitzat","% Executat s/ assignat "]
[null,"C02",{"$f":"J10","v":10234200},{"$f":"SUM(D13:D19)-D21","v":10234200},{"$f":"SUM(E13:E19)-E22","v":10234200},{"$f":"D26/C26","v":1},{"$f":"E26/D26","v":1},{"$f":"E26/C26","v":1}]

{"sheet":"Infancia, joventut i famílies","index":20,"n_rows":19,"n_cols":10,"rows_kept":19,"cut":false,"hidden":false,"merged":[]}
["ÀREA ","Infancia, joventut i famílies"]
[]
["Components"]
[null,"C19.","C19. Pla Nacional de Competències Digitals (digital skills)"]
[]
[]
["Assignació CAIB"]
[null,"Component i Inversió","ASSIGNACIÓ 2020","ASSIGNACIÓ 2021","ASSIGNACIÓ 2022","ASSIGNACIÓ 2023","ASSIGNACIÓ 2024","ASSIGNACIÓ 2025","ASSIGNACIÓ 2026","TOTAL"]
[null,"C19.I01.",null,null,1063200,null,null,null,null,{"$f":"SUM(C9:I9)","v":1063200}]
[null,"TOTAL",{"$f":"SUM(C9:C9)","v":0},0,1063200,0,0,0,0,1063200]
[]
[]
[null,"Component + Inversió","Descripció","Mobilitzat","Executat","Beneficiaris"]
[null,"C19.I1","Encàrrec de gestió del servei de formació en competències digitals a nens i adolescents en situació de vulnerabilitat",970783.77,970783.77,1]
[null,"TOTAL",1,{"$f":"SUM(D14:D14)","v":970783.77},{"$f":"SUM(E14:E14)","v":970783.77},{"$f":"SUM(F14:F14)","v":1}]
[]
[]
[null,"COMP + INV","Fons assignats","Mobilitzat","Excutat","% Iniciada mobilització s/assignat ","% Executat s/ mobilitzat","% Executat s/ assignat "]
[null,"C19",{"$f":"J10","v":1063200},{"$f":"D15","v":970783.77},{"$f":"E15","v":970783.77},{"$f":"D19/C19","v":0.91307728555304746},{"$f":"E19/D19","v":1},{"$f":"E19/C19","v":0.91307728555304746}]